Workbook

Sheet DCF (2012)
A1: DCF-Rechnung | B1: =[4]Brst!$B$4 -> Frankreich | F1: to be updated with new MPE_NOM
A2: Jahr | F2: 2006-12-31 | G2: 2007-12-31 | H2: 2008-12-31 | I2: 2009-12-31 | J2: 2010-12-31 | K2: 2011-12-31 | L2: 2012-12-31 | M2: 2013-12-31 | N2: 2014-12-31 | O2: 2015-12-31 | P2: 2016-12-31 | Q2: 2017-12-31 | R2: 2018-12-31 | S2: 2019-12-31 | T2: 2020-12-31 | U2: 2021-12-31 | V2: 2022-12-31 | W2: 2023-12-31 | X2: 2024-12-31 | Y2: 2025-12-31 | Z2: 2026-12-31 | AA2: 2027-12-31 | AB2: 2028-12-31 | AC2: 2029-12-31 | AD2: 2030-12-31 | AE2: 2031-12-31 | AF2: 2032-12-31 | AG2: 2033-12-31 | AH2: 2034-12-31 | AI2: 2035-12-31 | AJ2: 2036-12-31 | AK2: 2037-12-31 | AL2: 2038-12-31 | AM2: 2039-12-31 | AN2: 2040-12-31 | AO2: 2041-12-31 | AP2: 2042-12-31 | AQ2: 2043-12-31 | AR2: 2044-12-31 | AS2: 2045-12-31 | AT2: 2046-12-31 | AU2: 2047-12-31 | AV2: 2048-12-31 | AW2: 2049-12-31 | AX2: 2050-12-31 | AY2: 2051-12-31 | AZ2: 2052-12-31 | BA2: 2053-12-31 | BB2: 2054-12-31 | BC2: 2055-12-31 | BD2: 2056-12-31 | BE2: 2057-12-31 | BF2: 2058-12-31 | BG2: 2059-12-31 | BH2: 2060-12-31 | BI2: 2061-12-31 | BJ2: 2062-12-31 | BK2: 2063-12-31 | BL2: 2064-12-31 | BM2: 2065-12-31 | BN2: 2066-12-31 | BO2: 2067-12-31 | BP2: 2068-12-31 | BQ2: 2069-12-31 | BR2: 2070-12-31
A3: Nominalzins n. St. | B3: 0.069 | F3: =IF(YEAR(F$2)>=YEAR($B$6),(1+$B3)^-(YEARFRAC($B$6-1,F$2,4)),(1+$B3)^(YEARFRAC($B$6-1,F$2,4))) -> 1.234814572 | G3: =IF(YEAR(G$2)>=YEAR($B$6),(1+$B3)^-(YEARFRAC($B$6-1,G$2,4)),(1+$B3)^(YEARFRAC($B$6-1,G$2,4))) -> 1.155111854 | H3: =IF(YEAR(H$2)>=YEAR($B$6),(1+$B3)^-(YEARFRAC($B$6-1,H$2,4)),(1+$B3)^(YEARFRAC($B$6-1,H$2,4))) -> 1.080553652 | I3: 1.010807906 | J3: 0.9455639911 | K3: 0.8845313294 | L3: 0.8274381004 | M3: 0.7740300285 | N3: 0.7240692502 | O3: 0.6773332556 | P3: 0.6336138967 | Q3: 0.5927164609 | R3: 0.5544588035 | S3: 0.5186705364 | T3: 0.4851922698 | U3: 0.4538749016 | V3: 0.4245789538 | W3: 0.3971739512 | X3: 0.3715378402 | Y3: 0.3475564455 | Z3: 0.3251229611 | AA3: 0.3041374753 | AB3: 0.2845065251 | AC3: 0.2661426802 | AD3: 0.2489641536 | AE3: 0.2328944374 | AF3: 0.217861962 | AG3: 0.2037997774 | AH3: 0.1906452548 | AI3: 0.178339808 | AJ3: 0.1668286324 | AK3: 0.1560604606 | AL3: 0.1459873345 | AM3: =IF(YEAR(AM$2)>=YEAR($B$6),(1+$B3)^-(YEARFRAC($B$6-1,AM$2,4)),(1+$B3)^(YEARFRAC($B$6-1,AM$2,4))) -> 0.1365643915 | AN3: 0.1277496647 | AO3: 0.1195038959 | AP3: 0.1117903609 | AQ3: 0.1045747062 | AR3: 0.09782479534 | AS3: 0.09151056627 | AT3: 0.08560389735 | AU3: 0.08007848209 | AV3: 0.07490971196 | AW3: 0.07007456685 | AX3: 0.06555151249 | AY3: 0.06132040457 | AZ3: 0.05736239904 | BA3: 0.05365986814 | BB3: 0.05019632192 | BC3: 0.04695633482 | BD3: 0.04392547691 | BE3: 0.04109024969 | BF3: 0.0384380259 | BG3: 0.03595699336 | BH3: 0.0336361023 | BI3: 0.03146501618 | BJ3: 0.02943406565 | BK3: 0.02753420547 | BL3: 0.02575697425 | BM3: 0.02409445674 | BN3: 0.02253924858 | BO3: 0.02108442337 | BP3: 0.01972350175 | BQ3: 0.01845042259 | BR3: 0.01725951599
A4: Inflation ab 2030 | B4: 0.02 | G4: 1 | H4: =(1+[5]Sonstiges!H$6)*G4 -> 1.021526419 | I4: =(1+[5]Sonstiges!I$6)*H4 -> 1.042074364 | J4: =(1+[5]Sonstiges!J$6)*I4 -> 1.061643836 | K4: =(1+[5]Sonstiges!K$6)*J4 -> 1.080234834 | L4: =(1+[5]Sonstiges!L$6)*K4 -> 1.097847358 | M4: =(1+[5]Sonstiges!M$6)*L4 -> 1.114481409 | N4: =(1+[5]Sonstiges!N$6)*M4 -> 1.13111546 | O4: =(1+[5]Sonstiges!O$6)*N4 -> 1.147749511 | P4: =(1+[5]Sonstiges!P$6)*O4 -> 1.166340509 | Q4: =(1+[5]Sonstiges!Q$6)*P4 -> 1.186888454 | R4: =(1+[5]Sonstiges!R$6)*Q4 -> 1.208414873 | S4: =(1+[5]Sonstiges!S$6)*R4 -> 1.230919765 | T4: =(1+[5]Sonstiges!T$6)*S4 -> 1.254403131 | U4: =(1+[5]Sonstiges!U$6)*T4 -> 1.278864971 | V4: =(1+[5]Sonstiges!V$6)*U4 -> 1.30332681 | W4: =(1+[5]Sonstiges!W$6)*V4 -> 1.328767123 | X4: =(1+[5]Sonstiges!X$6)*W4 -> 1.35518591 | Y4: =(1+[5]Sonstiges!Y$6)*X4 -> 1.38258317 | Z4: =(1+[5]Sonstiges!Z$6)*Y4 -> 1.410958904 | AA4: =(1+[5]Sonstiges!AA$6)*Z4 -> 1.440313112 | AB4: =(1+[5]Sonstiges!AB$6)*AA4 -> 1.470645793 | AC4: =(1+[5]Sonstiges!AC$6)*AB4 -> 1.502935421 | AD4: =(1+[5]Sonstiges!AD$6)*AC4 -> 1.534246575 | AE4: =(1+[5]Sonstiges!AE$6)*AD4 -> 1.566536204 | AF4: =(1+[5]Sonstiges!AF$6)*AE4 -> 1.599804305 | AG4: =(1+[5]Sonstiges!AG$6)*AF4 -> 1.633072407 | AH4: =(1+[5]Sonstiges!AH$6)*AG4 -> 1.667318982 | AI4: =(1+[5]Sonstiges!AI$6)*AH4 -> 1.700587084 | AJ4: =(1+$B$4)*AI4 -> 1.734598826 | AK4: =(1+$B$4)*AJ4 -> 1.769290802 | AL4: 1.804676618 | AM4: 1.840770151 | AN4: 1.877585554 | AO4: 1.915137265 | AP4: 1.95344001 | AQ4: 1.99250881 | AR4: 2.032358987 | AS4: 2.073006166 | AT4: 2.11446629 | AU4: 2.156755615 | AV4: 2.199890728 | AW4: 2.243888542 | AX4: 2.288766313 | AY4: 2.334541639 | AZ4: 2.381232472 | BA4: 2.428857122 | BB4: 2.477434264 | BC4: 2.526982949 | BD4: 2.577522608 | BE4: 2.62907306 | BF4: 2.681654522 | BG4: 2.735287612 | BH4: 2.789993364 | BI4: 2.845793232 | BJ4: 2.902709096 | BK4: 2.960763278 | BL4: 3.019978544 | BM4: 3.080378115 | BN4: 3.141985677 | BO4: 3.20482539 | BP4: 3.268921898 | BQ4: 3.334300336 | BR4: 3.400986343
A5: GuD | G5: =1/G4 -> 1 | H5: =1/H4 -> 0.9789272031 | I5: 0.9596244131 | J5: 0.9419354839 | K5: 0.9257246377 | L5: =1/L4 -> 0.9108734403 | M5: 0.8972783143 | N5: 0.884083045 | O5: 0.8712702472 | P5: 0.8573825503 | Q5: 0.8425391591 | R5: 0.8275303644 | S5: 0.8124006359 | T5: 0.7971918877 | U5: 0.7819433818 | V5: 0.7672672673 | W5: 0.7525773196 | X5: 0.7379061372 | Y5: 0.7232837933 | Z5: 0.7087378641 | AA5: 0.6942934783 | AB5: 0.6799733866 | AC5: 0.6653645833 | AD5: 0.6517857143
A6: IBN | B6: 2010-03-01
A7: Abschlag für DB nach 15a Betrieb | B7: =VLOOKUP($A$5,[4]Sonstiges!$A$16:$B$28,2,FALSE) -> 0.01
A8: Efficiency [%] | E8: =56.9% -> 0.569 | F8: =E8 -> 0.569 | G8: 0.569 | H8: 0.569 | I8: 0.569 | J8: 0.569 | K8: 0.569 | L8: 0.569 | M8: 0.569 | N8: 0.569 | O8: 0.569 | P8: 0.569 | Q8: 0.569 | R8: 0.569 | S8: 0.569 | T8: 0.569 | U8: 0.569 | V8: 0.569 | W8: 0.569 | X8: 0.569 | Y8: 0.569 | Z8: 0.569 | AA8: 0.569 | AB8: 0.569 | AC8: 0.569 | AD8: 0.569 | AE8: =AD8 -> 0.569 | AF8: =AE8 -> 0.569 | AG8: =AF8 -> 0.569 | AH8: =AG8 -> 0.569 | AI8: =AH8 -> 0.569
A9: Availability | B9: 0.931
K10: =4200*K33 -> 4200 | L10: =4200*L33 -> 4200
A11: Anteil CO2 Freizertifikate (%) | J11: 1 | K11: =K10/K35 -> 1.251508593 | L11: =L10/L35 -> 1.248697267 | M11: ='[5]CO2 frei'!N10 -> 0 | N11: ='[5]CO2 frei'!O10 -> 0 | O11: ='[5]CO2 frei'!P10 -> 0 | P11: ='[5]CO2 frei'!Q10 -> 0 | Q11: ='[5]CO2 frei'!R10 -> 0 | R11: ='[5]CO2 frei'!S10 -> 0 | S11: ='[5]CO2 frei'!T10 -> 0 | T11: ='[5]CO2 frei'!U10 -> 0 | U11: ='[5]CO2 frei'!V10 -> 0 | V11: ='[5]CO2 frei'!W10 -> 0 | W11: ='[5]CO2 frei'!X10 -> 0 | X11: ='[5]CO2 frei'!Y10 -> 0 | Y11: ='[5]CO2 frei'!Z10 -> 0 | Z11: ='[5]CO2 frei'!AA10 -> 0 | AA11: ='[5]CO2 frei'!AB10 -> 0 | AB11: ='[5]CO2 frei'!AC10 -> 0 | AC11: ='[5]CO2 frei'!AD10 -> 0 | AD11: ='[5]CO2 frei'!AE10 -> 0 | AE11: ='[5]CO2 frei'!AF10 -> 0 | AF11: ='[5]CO2 frei'!AG10 -> 0 | AG11: ='[5]CO2 frei'!AH10 -> 0 | AH11: ='[5]CO2 frei'!AI10 -> 0 | AI11: ='[5]CO2 frei'!AJ10 -> 0
A14: Capacity [MW] | B14: =413.6*2 -> 827.2
A15: Invest costs [€/kW] | B15: =$D$100 -> 576.0805921
A16: Lifetime [years] | B16: 25
A17: Depreciation [yeras] | B17: 25
E19: =IF($B$20="Gas","Prix de gaz moyen pondéré pour les points de charge, dans lesquels la centrale électrique produit :","") -> Prix de gaz moyen pondéré pour les points de charge, dans lesquels la centrale électrique produit :
A20: Fuel Costs [€/GJ] | B20: =VLOOKUP($A$5,'[4]LTMP-GENKWDaten'!$E$5:$F$134,2,0) -> Gas | C20: 1 | J20: =24.6/0.9/3.6 -> 7.592592593 | K20: =26.55/0.9/3.6 -> 8.194444444 | L20: =27.68/0.9/3.6 -> 8.543209877 | M20: =Gaspreis_Durchschnitt(SUM(M26,M28)+(SUM(M23:M24)+M21)*3.6/M8,M$8*(1-$B$27),$B$20) -> 7.165549163 | N20: 6.909041656 | O20: 6.742311675 | P20: 5.709637628 | Q20: 5.979773859 | R20: 7.099045396 | S20: 7.669935297 | T20: 7.721192356 | U20: 7.710225983 | V20: 7.691684012 | W20: 7.722208443 | X20: 7.605633553 | Y20: 7.68888582 | Z20: 8.433577258 | AA20: 8.771961806 | AB20: 8.946746218 | AC20: 9.635399218 | AD20: 10.64187118 | AE20: =Gaspreis_Durchschnitt(SUM(AE26,AE28)+(SUM(AE23:AE24)+AE21)*3.6/AE8,AE$8*(1-$B$27),$B$20) -> 10.9497718 | AF20: 11.27702487 | AG20: 11.47286572 | AH20: 10.82893715 | AI20: 11.11061274
A22: Certificate pricess [€/tCO2] | J22: 15.1 | K22: 15.72 | L22: 16.54 | M22: =[5]Brst!N10 -> 18.9 | N22: =[5]Brst!O10 -> 21.8 | O22: =[5]Brst!P10 -> 24.8 | P22: =[5]Brst!Q10 -> 25.9 | Q22: =[5]Brst!R10 -> 27.2 | R22: =[5]Brst!S10 -> 28.4 | S22: =[5]Brst!T10 -> 29.8 | T22: =[5]Brst!U10 -> 31.2 | U22: =[5]Brst!V10 -> 32.5 | V22: =[5]Brst!W10 -> 33.9 | W22: =[5]Brst!X10 -> 35.4 | X22: =[5]Brst!Y10 -> 37.3 | Y22: =[5]Brst!Z10 -> 39.2 | Z22: =[5]Brst!AA10 -> 41.3 | AA22: =[5]Brst!AB10 -> 43.5 | AB22: =[5]Brst!AC10 -> 45.8 | AC22: =[5]Brst!AD10 -> 48.2 | AD22: =[5]Brst!AE10 -> 50.7 | AE22: =[5]Brst!AF10 -> 53.4 | AF22: =[5]Brst!AG10 -> 56.2 | AG22: =[5]Brst!AH10 -> 59.1 | AH22: =[5]Brst!AI10 -> 62.3 | AI22: =[5]Brst!AJ10 -> 65.5
A23: CO2 Belastung [€/GJ] | B23: =IF($B$20="Gas",0.2, IF($B$20="Kohle",0.3384, IF($B$20="CCS Kohle",0.04,0.4))) -> 0.2 | J23: =J22*$B$23/3.6 -> 0.8388888889 | K23: 0.8733333333 | L23: 0.9188888889 | M23: 1.05 | N23: 1.211111111 | O23: 1.377777778 | P23: 1.438888889 | Q23: 1.511111111 | R23: 1.577777778 | S23: 1.655555556 | T23: 1.733333333 | U23: 1.805555556 | V23: 1.883333333 | W23: 1.966666667 | X23: 2.072222222 | Y23: 2.177777778 | Z23: 2.294444444 | AA23: 2.416666667 | AB23: 2.544444444 | AC23: 2.677777778 | AD23: 2.816666667 | AE23: =AE22*$B$23/3.6 -> 2.966666667 | AF23: 3.122222222 | AG23: 3.283333333 | AH23: 3.461111111 | AI23: 3.638888889
A26: Variable O&M (€/MWh) | B26: =([6]LTM_Hornaing!$B$26)/$H$4 -> 3.382004231 | J26: =$B26*J$4 -> 3.590483944 | K26: 3.653358778 | L26: 3.71292441 | M26: 3.769180841 | N26: 3.825437271 | O26: 3.881693702 | P26: 3.944568536 | Q26: 4.014061773 | R26: 4.086864213 | S26: 4.162975854 | T26: 4.242396697 | U26: 4.325126742 | V26: 4.407856787 | W26: 4.493896033 | X26: 4.583244482 | Y26: 4.675902132 | Z26: 4.771868984 | AA26: 4.871145037 | AB26: 4.973730293 | AC26: 5.082933952 | AD26: 5.188828409 | AE26: 5.298032069 | AF26: 5.41054493 | AG26: 5.52305779 | AH26: 5.638879853 | AI26: 5.751392714
A27: Variable Starts/Stops (€/MWh) | B27: 0.05 | C27: =SUMPRODUCT(H27:AD27,H5:AD5)/26 -> 1.576123194 | J27: =$B$27*J20*3.6/J8 -> 2.401874634 | K27: 2.592267135 | L27: 2.702597149 | M27: 2.266781809 | N27: 2.185637079 | O27: 2.132892973 | P27: 1.806212255 | Q27: 1.891668356 | R27: 2.245743711 | S27: 2.42634157 | T27: 2.442556457 | U27: 2.439087306 | V27: 2.433221656 | W27: 2.442877891 | X27: 2.406000069 | Y27: 2.432336463 | Z27: 2.667915477 | AA27: 2.774961555 | AB27: 2.830253637 | AC27: 3.048105201 | AD27: 3.366497035 | AE27: =$B$27*AE20*3.6/AE8 -> 3.46389969 | AF27: 3.567424387 | AG27: 3.629377557 | AH27: 3.425674319 | AI27: 3.514780831
A28: Minumum Margin for Dispatching [€/MWh] | J28: =[5]Sonstiges!J9 -> 0 | K28: =[5]Sonstiges!K9 -> 0 | L28: =[5]Sonstiges!L9 -> 0 | M28: =[5]Sonstiges!M9 -> 2 | N28: =[5]Sonstiges!N9 -> 2 | O28: =[5]Sonstiges!O9 -> 2 | P28: =[5]Sonstiges!P9 -> 2 | Q28: =[5]Sonstiges!Q9 -> 2 | R28: =[5]Sonstiges!R9 -> 2 | S28: =[5]Sonstiges!S9 -> 2 | T28: =[5]Sonstiges!T9 -> 2 | U28: =[5]Sonstiges!U9 -> 2 | V28: =[5]Sonstiges!V9 -> 2 | W28: =[5]Sonstiges!W9 -> 2 | X28: =[5]Sonstiges!X9 -> 2 | Y28: =[5]Sonstiges!Y9 -> 2 | Z28: =[5]Sonstiges!Z9 -> 2 | AA28: =[5]Sonstiges!AA9 -> 2 | AB28: =[5]Sonstiges!AB9 -> 2 | AC28: =[5]Sonstiges!AC9 -> 2 | AD28: =[5]Sonstiges!AD9 -> 2 | AE28: =[5]Sonstiges!AE9 -> 2 | AF28: =[5]Sonstiges!AF9 -> 2 | AG28: =[5]Sonstiges!AG9 -> 2 | AH28: =[5]Sonstiges!AH9 -> 2 | AI28: =[5]Sonstiges!AI9 -> 2
A29: Production costs without gas [€/MWh] | J29: =SUM(J26:J28)+(SUM(J23:J24)+J21)*3.6/J8 -> 11.2999157 | K29: 11.77110922 | L29: 12.22922982 | M29: 14.67919639 | N29: 15.67364026 | O29: 16.73163413 | P29: 16.85447148 | Q29: 17.46636282 | R29: 18.31503323 | S29: 19.06383412 | T29: 19.65156124 | U29: 20.18776414 | V29: 20.75671992 | W29: 21.37965617 | X29: 22.09996511 | Y29: 22.88679747 | Z29: 23.95648042 | AA29: 24.93608902 | AB29: 25.90240221 | AC29: 27.07304267 | AD29: 28.37606358 | AE29: =SUM(AE26:AE28)+(SUM(AE23:AE24)+AE21)*3.6/AE8 -> 29.53170329 | AF29: 30.73192362 | AG29: 31.92572182 | AH29: 32.96262096 | AI29: 34.28902065
A30: Production costs with fuel [€/MWh] | J30: =J29+J20*3.6/J8 -> 59.33740837 | K30: 63.61645192 | L30: 66.2811728 | M30: 60.01483257 | N30: 59.38638184 | O30: 59.38949358 | P30: 52.97871657 | Q30: 55.29972994 | R30: 63.22990744 | S30: 67.59066552 | T30: 68.50269038 | U30: 68.96951025 | V30: 69.42115304 | W30: 70.23721398 | X30: 70.2199665 | Y30: 71.53352674 | Z30: 77.31478996 | AA30: 80.43532013 | AB30: 82.50747494 | AC30: 88.03514669 | AD30: 95.70600428 | AE30: =AE29+AE20*3.6/AE8 -> 98.80969708 | AF30: 102.0804114 | AG30: 104.513273 | AH30: 101.4761073 | AI30: 104.5846373
A33: Part Year [%] | I33: =IF(YEAR(I$2)=YEAR($B$6),YEARFRAC($B6-1,I$2,4), IF(YEAR(I$2)=YEAR($B$6)+$B$16, 100%-(YEARFRAC($B6-1,I$2,4)-$B$16),100%)) -> 1 | J33: 0.8388888889 | K33: 1 | L33: =IF(YEAR(L$2)=YEAR($B$6),YEARFRAC($B6-1,L$2,4), IF(YEAR(L$2)=YEAR($B$6)+$B$16, 100%-(YEARFRAC($B6-1,L$2,4)-$B$16),100%)) -> 1 | M33: 1 | N33: 1 | O33: 1 | P33: 1 | Q33: 1 | R33: 1 | S33: 1 | T33: 1 | U33: 1 | V33: 1 | W33: 1 | X33: 1 | Y33: 1 | Z33: 1 | AA33: 1 | AB33: 1 | AC33: 1 | AD33: 1 | AE33: 1 | AF33: 1 | AG33: 1 | AH33: 1 | AI33: 0.1611111111 | AJ33: 1 | AK33: 1 | AL33: 1 | AM33: 1 | AN33: 1 | AO33: 1 | AP33: 1 | AQ33: 1 | AR33: 1 | AS33: =IF(YEAR(AS$2)=YEAR($B$6),YEARFRAC($B6-1,AS$2,4), IF(YEAR(AS$2)=YEAR($B$6)+$B$16, 100%-(YEARFRAC($B6-1,AS$2,4)-$B$16),100%)) -> 1 | AT33: 1 | AU33: 1 | AV33: 1 | AW33: 1 | AX33: 1 | AY33: 1 | AZ33: 1 | BA33: 1 | BB33: 1 | BC33: 1 | BD33: 1 | BE33: 1 | BF33: 1 | BG33: 1 | BH33: 1 | BI33: 1 | BJ33: 1 | BK33: 1 | BL33: 1 | BM33: 1 | BN33: 1
A34: Capacity [MW] | B34: 0.96 | J34: =IF(OR(J$2<$B$6,YEAR(J$2)>YEAR($B$6)+$B$16),0,$B$14)*$B$34 -> 794.112 | K34: 794.112 | L34: 794.112 | M34: 794.112 | N34: =IF(OR(N$2<$B$6,YEAR(N$2)>YEAR($B$6)+$B$16),0,$B$14)*$B$34 -> 794.112 | O34: 794.112 | P34: 794.112 | Q34: 794.112 | R34: 794.112 | S34: 794.112 | T34: 794.112 | U34: 794.112 | V34: 794.112 | W34: 794.112 | X34: 794.112 | Y34: 794.112 | Z34: 794.112 | AA34: 794.112 | AB34: 794.112 | AC34: 794.112 | AD34: 794.112 | AE34: 794.112 | AF34: 794.112 | AG34: 794.112 | AH34: 794.112 | AI34: 794.112 | AJ34: 0 | AK34: 0 | AL34: 0 | AM34: 0 | AN34: =IF(OR(AN$2<$B$6,YEAR(AN$2)>YEAR($B$6)+$B$16),0,$B$14)*$B$34 -> 0 | AO34: 0 | AP34: 0 | AQ34: 0 | AR34: 0 | AS34: 0 | AT34: 0 | AU34: 0 | AV34: 0 | AW34: 0 | AX34: 0 | AY34: 0 | AZ34: 0 | BA34: 0 | BB34: 0 | BC34: 0 | BD34: 0 | BE34: 0 | BF34: 0 | BG34: 0 | BH34: 0 | BI34: 0 | BJ34: 0 | BK34: 0 | BL34: 0 | BM34: 0 | BN34: 0 | BO34: 0 | BP34: 0 | BQ34: 0 | BR34: 0
A35: Full load hours [h/a] | J35: =J36/J34*1000 -> 2577.722034 | K35: =K36/K34*1000 -> 3355.94979 | L35: =L36/L34*1000 -> 3363.5054 | M35: =$B$9*vbh(M$29,M$8,$B$20)*M$33 -> 4045.195 | N35: =$B$9*vbh(N$29,N$8,$B$20)*N$33 -> 3680.243 | O35: 3097.437 | P35: 4136.433 | Q35: 3901.821 | R35: 2825.585 | S35: 2357.292 | T35: 2788.345 | U35: 3106.747 | V35: 3130.953 | W35: 3190.537 | X35: 3438.183 | Y35: 3454.941 | Z35: 2788.345 | AA35: 2621.696 | AB35: 2305.156 | AC35: 2223.228 | AD35: 1846.173 | AE35: 1971.858 | AF35: 1813.588 | AG35: 1687.903 | AH35: 1971.858 | AI35: 317.6882333
A36: Production [GWh/a] | J36: 2047 | K36: 2665 | L36: 2671 | M36: =M35*M34/1000 -> 3212.337892 | N36: 2922.525129 | O36: 2459.711891 | P36: 3284.791082 | Q36: 3098.482878 | R36: 2243.830956 | S36: 1871.953865 | T36: 2214.258225 | U36: 2467.105074 | V36: 2486.327349 | W36: 2533.643718 | X36: 2730.302378 | Y36: 2743.610107 | Z36: 2214.258225 | AA36: 2081.920254 | AB36: 1830.552041 | AC36: 1765.492034 | AD36: 1466.068133 | AE36: =AE35*AE34/1000 -> 1565.8761 | AF36: 1440.191994 | AG36: 1340.384027 | AH36: 1565.8761 | AI36: 252.2800383
A37: Actual CO2 Emissionen [Mio t CO2] | I37: =IF(I34=0,"",$B$23/I8*$B$14*I35/1000000) ->  | J37: 0.7494874048 | K37: 0.97576157 | L37: 0.9779584066 | M37: 1.176163551 | N37: 1.070051673 | O37: 0.9005974996 | P37: 1.202691521 | Q37: 1.134476742 | R37: 0.8215549779 | S37: 0.6853961133 | T37: 0.8107272351 | U37: 0.9033044353 | V37: 0.910342468 | W37: 0.9276668564 | X37: 0.9996713454 | Y37: 1.00454383 | Z37: 0.8107272351 | AA37: 0.7622730865 | AB37: 0.6702372735 | AC37: 0.6464162396 | AD37: 0.5367853447 | AE37: =IF(AE34=0,"",$B$23/AE8*$B$14*AE35/1000000) -> 0.5733289763 | AF37: 0.5273110698 | AG37: 0.4907674382 | AH37: 0.5733289763 | AI37: 0.09236966841
A38: average power market price on economic generation [€/MWh] | B38: 1.5 | C38: 1 | J38: 80.7 | K38: 84.34 | L38: 86.57 | M38: =Strompreis_Durchschnitt(M$29,M$8,$B$20)+($B$38+$C$38)/3 -> 77.23218512 | N38: =Strompreis_Durchschnitt(N$29,N$8,$B$20)+($B$38+$C$38)/3*2 -> 76.95942786 | O38: =Strompreis_Durchschnitt(O$29,O$8,$B$20)+$B$38+$C$38 -> 82.0926265 | P38: 75.50362956 | Q38: 79.71775631 | R38: 96.06522523 | S38: 120.3797564 | T38: 121.1226097 | U38: =Strompreis_Durchschnitt(U$29,U$8,$B$20)+$B$38+$C$38-$C$38/10 -> 120.8045246 | V38: =Strompreis_Durchschnitt(V$29,V$8,$B$20)+$B$38+$C$38-$C$38/10*2 -> 116.1962961 | W38: =Strompreis_Durchschnitt(W$29,W$8,$B$20)+$B$38+$C$38-$C$38/10*3 -> 122.9386763 | X38: =Strompreis_Durchschnitt(X$29,X$8,$B$20)+$B$38+$C$38-$C$38/10*4 -> 121.1721974 | Y38: =Strompreis_Durchschnitt(Y$29,Y$8,$B$20)+$B$38+$C$38-$C$38/10*5 -> 127.968889 | Z38: =Strompreis_Durchschnitt(Z$29,Z$8,$B$20)+$B$38+$C$38-$C$38/10*6 -> 150.0569009 | AA38: =Strompreis_Durchschnitt(AA$29,AA$8,$B$20)+$B$38+$C$38-$C$38/10*7 -> 158.0936297 | AB38: =Strompreis_Durchschnitt(AB$29,AB$8,$B$20)+$B$38+$C$38-$C$38/10*8 -> 171.1952984 | AC38: =Strompreis_Durchschnitt(AC$29,AC$8,$B$20)+$B$38+$C$38-$C$38/10*9 -> 184.4861902 | AD38: =Strompreis_Durchschnitt(AD$29,AD$8,$B$20)+$B$38+$C$38-$C$38/10*10 -> 206.4015344 | AE38: =Strompreis_Durchschnitt(AE$29,AE$8,$B$20)+$B$38 -> 203.5992454 | AF38: =Strompreis_Durchschnitt(AF$29,AF$8,$B$20)+$B$38 -> 213.996635 | AG38: 223.3924258 | AH38: 206.5518261 | AI38: 211.0759131
A39: Income from Electricity [Mio €] | J39: =(J35*(J34)/1000*J38/1000) -> 165.1929 | K39: =(K35*(K34)/1000*K38/1000) -> 224.7661 | L39: 231.22847 | M39: 248.0958747 | N39: 224.9158619 | O39: 201.9242096 | P39: 248.0136491 | Q39: 247.004103 | R39: 215.5541261 | S39: 225.3453503 | T39: 268.1967348 | U39: 298.0374556 | V39: 288.9020287 | W39: 311.4828049 | X39: 330.8367387 | Y39: 351.0967373 | Z39: 332.2647269 | AA39: 329.1383298 | AB39: 313.381903 | AC39: 325.7088991 | AD39: 302.5987123 | AE39: 318.8111923 | AF39: 308.1962404 | AG39: 299.4316393 | AH39: 323.4345679 | AI39: 53.25023946
A40: Income from Soregies [Mio €] | B40: 1 | C40: 0
A41: spec. var. expenditure [€/MWh] | J41: =J30 -> 59.33740837 | K41: 63.61645192 | L41: 66.2811728 | M41: 60.01483257 | N41: 59.38638184 | O41: 59.38949358 | P41: 52.97871657 | Q41: 55.29972994 | R41: 63.22990744 | S41: 67.59066552 | T41: 68.50269038 | U41: 68.96951025 | V41: 69.42115304 | W41: 70.23721398 | X41: 70.2199665 | Y41: 71.53352674 | Z41: 77.31478996 | AA41: 80.43532013 | AB41: 82.50747494 | AC41: 88.03514669 | AD41: 95.70600428 | AE41: =AE30 -> 98.80969708 | AF41: 102.0804114 | AG41: 104.513273 | AH41: 101.4761073 | AI41: 104.5846373
A42: variable expenditure [Mio €] | J42: =J41*J36/1000 -> 121.4636749 | K42: 169.5378444 | L42: =L41*L36/1000 -> 177.0370125 | M42: 192.7879207 | N42: 173.5581933 | O42: 146.0810436 | P42: 174.0240158 | Q42: 171.3452664 | R42: 141.8772236 | S42: 126.5266075 | T42: 151.6826456 | U42: 170.1550287 | V42: 172.6037114 | W42: 177.956076 | X42: 191.7217416 | Y42: 196.260107 | Z42: 171.1949096 | AA42: 167.4599221 | AB42: 151.0342267 | AC42: 155.4253501 | AD42: 140.311523 | AE42: =AE41*AE36/1000 -> 154.7237431 | AF42: 147.0153912 | AG42: 140.0879217 | AH42: 158.8990112 | AI42: 26.3846163
A43: Credit Minimum margin for dispatching [Mio €] | J43: =J$28*J$35*J34/1000000 -> 0 | K43: 0 | L43: =L$28*L$35*L34/1000000 -> 0 | M43: 6.424675784 | N43: 5.845050258 | O43: 4.919423782 | P43: 6.569582165 | Q43: 6.196965756 | R43: 4.487661911 | S43: 3.743907729 | T43: 4.428516449 | U43: 4.934210147 | V43: 4.972654697 | W43: 5.067287436 | X43: 5.460604757 | Y43: 5.487220215 | Z43: 4.428516449 | AA43: 4.163840508 | AB43: 3.661104083 | AC43: 3.530984067 | AD43: 2.932136267 | AE43: =AE$28*AE$35*AE34/1000000 -> 3.1317522 | AF43: 2.880383988 | AG43: 2.680768054 | AH43: 3.1317522 | AI43: 0.5045600767
A44: SDL=Service Systemes + Ajustement [Mio. €] | B44: =[6]LTM_Hornaing!B43/$H$4+0.7/250*846 -> 5.03657427 | J44: =IF(J34=0,0,$B$44*J$4) -> 5.347048027 | K44: 5.440682969 | L44: 5.529389756 | M44: 5.613168389 | N44: 5.696947022 | O44: 5.780725654 | P44: 5.874360597 | Q44: 5.977851849 | R44: 6.086271256 | S44: 6.199618818 | T44: 6.317894535 | U44: 6.441098406 | V44: 6.564302278 | W44: 6.692434304 | X44: 6.825494485 | Y44: 6.963482822 | Z44: 7.106399313 | AA44: 7.254243959 | AB44: 7.407016759 | AC44: 7.56964587 | AD44: 7.727346825 | AE44: =IF(AE34=0,0,$B$44*AE$4) -> 7.889975936 | AF44: 8.057533201 | AG44: 8.225090467 | AH44: 8.397575887 | AI44: 8.565133152
A45: CO2 free certificates [Mio €] | J45: =IF(J34=0,0,J$11*J$37*J$22) -> 11.31725981 | K45: 19.19685511 | L45: 20.19821779 | M45: 0 | N45: 0 | O45: 0 | P45: 0 | Q45: 0 | R45: 0 | S45: 0 | T45: 0 | U45: 0 | V45: 0 | W45: 0 | X45: 0 | Y45: 0 | Z45: 0 | AA45: 0 | AB45: 0 | AC45: 0 | AD45: 0 | AE45: =IF(AE34=0,0,AE$11*AE$37*AE$22) -> 0 | AF45: 0 | AG45: 0 | AH45: 0 | AI45: 0
A46: Gross margin [Mio €] | I46: =I39+I40-I42+SUM(I43:I45) -> 0 | J46: =J39+J40-J42+SUM(J43:J45) -> 60.3935329 | K46: =K39+K40-K42+SUM(K43:K45) -> 79.86579371 | L46: 79.919065 | M46: 67.34579815 | N46: 62.89966587 | O46: 66.54331543 | P46: 86.43357607 | Q46: 87.83365424 | R46: 84.25083565 | S46: 108.7622693 | T46: 127.2605002 | U46: 139.2577355 | V46: 127.8352743 | W46: 145.2864507 | X46: 151.4010964 | Y46: 167.2873334 | Z46: 172.6047331 | AA46: 173.0964921 | AB46: 173.4157972 | AC46: 181.3841789 | AD46: 172.9466724 | AE46: =AE39+AE40-AE42+SUM(AE43:AE45) -> 175.1091774 | AF46: 172.1187664 | AG46: 170.2495761 | AH46: 176.0648848 | AI46: 35.93531639 | AJ46: =IF(AJ$34>0,(AI46*(IF(YEAR(AJ$2)>=YEAR($B$6)+15,(1+2.25%)/(1+$B$7),1+2.25%))))*IF((YEAR(AJ2)-YEAR($B$6))>=$B$16+1,0,1)*AJ$33 -> 0 | AK46: 0 | AL46: 0 | AM46: 0 | AN46: 0 | AO46: 0 | AP46: 0 | AQ46: 0 | AR46: 0 | AS46: 0 | AT46: 0 | AU46: 0 | AV46: 0 | AW46: 0 | AX46: 0 | AY46: 0 | AZ46: 0 | BA46: 0 | BB46: 0 | BC46: 0 | BD46: 0 | BE46: 0 | BF46: 0 | BG46: 0 | BH46: 0 | BI46: 0 | BJ46: 0 | BK46: 0 | BL46: 0 | BM46: 0 | BN46: 0 | BO46: 0 | BP46: 0 | BQ46: 0 | BR46: 0
A47: Fixed costs [Mio €] | B47: =(1-$C$40)*15.18 -> 15.18 | I47: =IF(I34>0,$B$47*$B$14/1000*I$4*I33,0) -> 0 | J47: 11.18318687 | K47: 13.56439646 | L47: 13.7855551 | M47: 13.99442715 | N47: 14.20329919 | O47: 14.41217124 | P47: 14.64561647 | Q47: 14.90363488 | R47: 15.17393988 | S47: 15.45653148 | T47: 15.75140966 | U47: 16.05857443 | V47: 16.36573921 | W47: 16.68519058 | X47: 17.01692853 | Y47: 17.36095308 | Z47: 17.71726422 | AA47: 18.08586195 | AB47: 18.46674627 | AC47: 18.87220377 | AD47: 19.26537468 | AE47: =IF(AE34>0,$B$47*$B$14/1000*AE$4*AE33,0) -> 19.67083219 | AF47: 20.08857628 | AG47: 20.50632038 | AH47: 20.93635106 | AI47: 3.440381997 | AJ47: 0 | AK47: 0 | AL47: 0 | AM47: 0 | AN47: =IF(AN34>0,$B$47*$B$14/1000*AN$4*AN33,0) -> 0 | AO47: 0 | AP47: 0 | AQ47: 0 | AR47: 0 | AS47: 0 | AT47: 0 | AU47: 0 | AV47: 0 | AW47: 0 | AX47: 0 | AY47: 0 | AZ47: 0 | BA47: 0 | BB47: 0 | BC47: 0 | BD47: 0 | BE47: 0 | BF47: 0 | BG47: 0 | BH47: 0 | BI47: 0 | BJ47: 0 | BK47: 0 | BL47: 0 | BM47: 0 | BN47: 0 | BO47: 0 | BP47: 0 | BQ47: 0 | BR47: 0
A48: Fixed gas costs [Mio. €] | B48: =(1-$C$40)*(2.3-2.0525) -> 0.2475 | D48: =1700/423*E8 -> 2.286761229 | E48: =1525.875/423*E8 -> 2.052536348 | I48: =IF(AND(I34>0,$A$5="GuD"),$B$48/I$8*$B$14/1000,0)*I$33*I$4 -> 0 | J48: 0.3204473963 | K48: 0.3886795043 | L48: 0.3950166702 | M48: 0.4010017712 | N48: 0.4069868723 | O48: 0.4129719734 | P48: 0.419661204 | Q48: 0.4270545641 | R48: 0.434799989 | S48: 0.4428974787 | T48: 0.4513470331 | U48: 0.4601486523 | V48: 0.4689502715 | W48: 0.4781039555 | X48: 0.4876097043 | Y48: 0.4974675178 | Z48: 0.5076773961 | AA48: 0.5182393391 | AB48: 0.5291533469 | AC48: 0.5407714843 | AD48: 0.5520375569 | AE48: =IF(AND(AE34>0,$A$5="GuD"),$B$48/AE$8*$B$14/1000,0)*AE$33*AE$4 -> 0.5636556942 | AF48: 0.5756258964 | AG48: 0.5875960985 | AH48: 0.5999183654 | AI48: 0.09858204699 | AJ48: =IF(AJ34>0,$AD48*AJ$4/$AD$4,0)*AJ33 -> 0 | AK48: 0 | AL48: 0 | AM48: 0 | AN48: 0 | AO48: 0 | AP48: 0 | AQ48: 0 | AR48: 0 | AS48: 0 | AT48: 0 | AU48: 0 | AV48: 0 | AW48: 0 | AX48: 0 | AY48: 0 | AZ48: 0 | BA48: 0 | BB48: 0 | BC48: 0 | BD48: 0 | BE48: 0 | BF48: 0 | BG48: 0 | BH48: 0 | BI48: 0 | BJ48: 0 | BK48: 0 | BL48: 0 | BM48: 0 | BN48: 0 | BO48: 0 | BP48: 0 | BQ48: 0 | BR48: 0
A49: Cash Flow before tax [Mio €] w/o invest | I49: =I46-I47-I48 -> 0 | J49: 48.88989864 | K49: 65.91271774 | L49: 65.73849323 | M49: 52.95036924 | N49: 48.2893798 | O49: 51.71817222 | P49: 71.3682984 | Q49: 72.50296479 | R49: 68.64209578 | S49: 92.8628403 | T49: 111.0577435 | U49: 122.7390124 | V49: 111.0005848 | W49: 128.1231562 | X49: 133.8965582 | Y49: 149.4289128 | Z49: 154.3797915 | AA49: 154.4923909 | AB49: 154.4198976 | AC49: 161.9712037 | AD49: 153.1292601 | AE49: 154.8746895 | AF49: 151.4545642 | AG49: 149.1556596 | AH49: 154.5286154 | AI49: 32.39635234 | AJ49: 0 | AK49: 0 | AL49: 0 | AM49: 0 | AN49: =AN46-AN47-AN48 -> 0 | AO49: 0 | AP49: 0 | AQ49: 0 | AR49: 0 | AS49: 0 | AT49: 0 | AU49: 0 | AV49: 0 | AW49: 0 | AX49: 0 | AY49: 0 | AZ49: 0 | BA49: 0 | BB49: 0 | BC49: 0 | BD49: 0 | BE49: 0 | BF49: 0 | BG49: 0 | BH49: 0 | BI49: 0 | BJ49: 0 | BK49: 0 | BL49: 0 | BM49: 0 | BN49: 0 | BO49: 0 | BP49: 0 | BQ49: 0 | BR49: 0
A50: Lifetime value | C50: =SUM(D50:BR50) -> 7213.072661 | I50: =I46-I43+I42 -> 0 | J50: =J46-J43+J42 -> 181.8572078 | K50: 249.4036381 | L50: 256.9560775 | M50: 253.7090431 | N50: 230.6128089 | O50: 207.7049352 | P50: 253.8880097 | Q50: 252.9819549 | R50: 221.6403974 | S50: 231.5449691 | T50: 274.5146294 | U50: 304.478554 | V50: 295.466331 | W50: 318.1752392 | X50: 337.6622332 | Y50: 358.0602201 | Z50: 339.3711262 | AA50: 336.3925737 | AB50: 320.7889198 | AC50: 333.278545 | AD50: 310.3260592 | AE50: 326.7011683 | AF50: 316.2537736 | AG50: 307.6567297 | AH50: 331.8321438 | AI50: 61.81537261 | AJ50: 0 | AK50: 0 | AL50: 0 | AM50: 0 | AN50: 0 | AO50: 0 | AP50: 0 | AQ50: 0 | AR50: 0 | AS50: 0 | AT50: 0 | AU50: 0 | AV50: 0 | AW50: 0 | AX50: 0 | AY50: 0 | AZ50: 0 | BA50: 0 | BB50: 0 | BC50: 0 | BD50: 0 | BE50: 0 | BF50: 0 | BG50: 0 | BH50: 0 | BI50: 0 | BJ50: 0 | BK50: 0 | BL50: 0 | BM50: 0 | BN50: 0 | BO50: 0 | BP50: 0 | BQ50: 0 | BR50: 0
A51: Invest [Mio €] | F51: =F92 -> 6.438460925 | G51: 91.77073882 | H51: 217.7208856 | I51: 130.1002903 | J51: 42.8313344 | K51: 0 | L51: 0 | M51: 0 | N51: 0 | O51: 0 | P51: 0 | Q51: 0 | R51: 0 | S51: 0 | T51: 0 | U51: 0 | V51: 0 | W51: 0 | X51: 0 | Y51: 0 | Z51: 0 | AA51: 0 | AB51: 0 | AC51: 0 | AD51: 0 | AE51: 0 | AF51: 0 | AG51: 0 | AH51: 0 | AI51: 0 | AJ51: 0 | AK51: 0 | AL51: 0 | AM51: =AM92 -> 0 | AN51: 0 | AO51: 0 | AP51: 0 | AQ51: 0 | AR51: 0 | AS51: 0 | AT51: 0 | AU51: 0 | AV51: 0 | AW51: 0 | AX51: 0 | AY51: 0 | AZ51: 0 | BA51: 0 | BB51: 0 | BC51: 0 | BD51: 0 | BE51: 0 | BF51: 0 | BG51: 0 | BH51: 0 | BI51: 0 | BJ51: 0 | BK51: 0 | BL51: 0 | BM51: 0 | BN51: 0 | BO51: 0 | BP51: 0 | BQ51: 0 | BR51: 0
A53: Grid Connection [Mio €] | B53: see invest
A54: Demolition [Mio €] | B54: =IF($A$5="GuD",0.8%,1%)*$B$15*$B$14/1000 -> 3.812270926 | G54: =IF(YEAR($B$6)+$B$16+1=YEAR(G$2),$B54*G$4,0) -> 0 | H54: 0 | I54: 0 | J54: =IF(YEAR($B$6)+$B$16+1=YEAR(J$2),$B54*J$4,0) -> 0 | K54: 0 | L54: 0 | M54: 0 | N54: 0 | O54: 0 | P54: 0 | Q54: 0 | R54: 0 | S54: 0 | T54: 0 | U54: 0 | V54: 0 | W54: 0 | X54: 0 | Y54: 0 | Z54: 0 | AA54: 0 | AB54: 0 | AC54: 0 | AD54: 0 | AE54: 0 | AF54: 0 | AG54: 0 | AH54: 0 | AI54: 0 | AJ54: 6.612760672 | AK54: 0 | AL54: 0 | AM54: 0 | AN54: 0 | AO54: 0 | AP54: 0 | AQ54: 0 | AR54: 0 | AS54: 0 | AT54: 0 | AU54: 0 | AV54: 0 | AW54: 0 | AX54: 0 | AY54: 0 | AZ54: 0 | BA54: 0 | BB54: 0 | BC54: 0 | BD54: 0 | BE54: 0 | BF54: 0 | BG54: 0 | BH54: 0 | BI54: 0 | BJ54: 0 | BK54: 0 | BL54: 0 | BM54: 0 | BN54: 0 | BO54: 0 | BP54: 0 | BQ54: 0 | BR54: 0
A55: Cash Flow before tax [Mio €] with invest | G55: =G49-SUM(G51:G54) -> -91.77073882 | H55: =H49-SUM(H51:H54) -> -217.7208856 | I55: -130.1002903 | J55: 6.058564241 | K55: 65.91271774 | L55: 65.73849323 | M55: 52.95036924 | N55: 48.2893798 | O55: 51.71817222 | P55: 71.3682984 | Q55: 72.50296479 | R55: 68.64209578 | S55: 92.8628403 | T55: 111.0577435 | U55: 122.7390124 | V55: 111.0005848 | W55: 128.1231562 | X55: 133.8965582 | Y55: 149.4289128 | Z55: 154.3797915 | AA55: 154.4923909 | AB55: 154.4198976 | AC55: 161.9712037 | AD55: 153.1292601 | AE55: 154.8746895 | AF55: 151.4545642 | AG55: 149.1556596 | AH55: 154.5286154 | AI55: 32.39635234 | AJ55: -6.612760672 | AK55: 0 | AL55: 0 | AM55: =AM49-SUM(AM51:AM54) -> 0 | AN55: 0 | AO55: 0 | AP55: 0 | AQ55: 0 | AR55: 0 | AS55: 0 | AT55: 0 | AU55: 0 | AV55: 0 | AW55: 0 | AX55: 0 | AY55: 0 | AZ55: 0 | BA55: 0 | BB55: 0 | BC55: 0 | BD55: 0 | BE55: 0 | BF55: 0 | BG55: 0 | BH55: 0 | BI55: 0 | BJ55: 0 | BK55: 0 | BL55: 0 | BM55: 0 | BN55: 0 | BO55: 0 | BP55: 0 | BQ55: 0 | BR55: 0
A57: Depreciation [Mio €] | G57: =IF(AND((G$2)>=($B$6),YEAR(G$2)<YEAR($B$6)+$B$17+1),(SUM($C$51:$AJ$51)+$U$98+$U$99+$U$100)/$B$17,0)*G33 -> 0 | H57: =IF(AND((H$2)>=($B$6),YEAR(H$2)<YEAR($B$6)+$B$17+1),(SUM($C$51:$AJ$51)+$U$98+$U$99+$U$100)/$B$17,0)*H33 -> 0 | I57: =IF(AND((I$2)>=($B$6),YEAR(I$2)<YEAR($B$6)+$B$17+1),(SUM($C$51:$AJ$51)+$U$98+$U$99+$U$100)/$B$17,0)*I33 -> 0 | J57: 17.06106042 | K57: 20.33768792 | L57: 20.33768792 | M57: 20.33768792 | N57: 20.33768792 | O57: 20.33768792 | P57: 20.33768792 | Q57: 20.33768792 | R57: 20.33768792 | S57: 20.33768792 | T57: 20.33768792 | U57: 20.33768792 | V57: 20.33768792 | W57: 20.33768792 | X57: 20.33768792 | Y57: 20.33768792 | Z57: 20.33768792 | AA57: 20.33768792 | AB57: 20.33768792 | AC57: 20.33768792 | AD57: 20.33768792 | AE57: 20.33768792 | AF57: 20.33768792 | AG57: 20.33768792 | AH57: 20.33768792 | AI57: 3.276627497 | AJ57: 0 | AK57: 0 | AL57: 0 | AM57: 0 | AN57: 0 | AO57: 0 | AP57: 0 | AQ57: 0 | AR57: 0 | AS57: 0 | AT57: 0 | AU57: 0 | AV57: 0 | AW57: 0 | AX57: 0 | AY57: 0 | AZ57: 0 | BA57: 0 | BB57: 0 | BC57: 0 | BD57: 0 | BE57: 0 | BF57: 0 | BG57: 0 | BH57: 0 | BI57: 0 | BJ57: 0 | BK57: 0 | BL57: 0 | BM57: 0 | BN57: 0 | BO57: 0 | BP57: 0 | BQ57: 0 | BR57: 0
A58: PCA Sorégies [Mio €] | B58: =SUM(D58:BR58) -> 0
A59: EBIT [Mio €] | G59: =G49-G57-G58+IF(AND((G$2)>=($B$6),YEAR(G$2)<YEAR($B$6)+$B$17+1),$B$58/$B$17,0)*G33 -> 0 | H59: 0 | I59: 0 | J59: =J49-J57-J58+IF(AND((J$2)>=($B$6),YEAR(J$2)<YEAR($B$6)+$B$17+1),$B$58/$B$17,0)*J33 -> 31.82883822 | K59: =K49-K57-K58+IF(AND((K$2)>=($B$6),YEAR(K$2)<YEAR($B$6)+$B$17+1),$B$58/$B$17,0)*K33 -> 45.57502982 | L59: =L49-L57-L58+IF(AND((L$2)>=($B$6),YEAR(L$2)<YEAR($B$6)+$B$17+1),$B$58/$B$17,0)*L33 -> 45.40080531 | M59: =M49-M57-M58+IF(AND((M$2)>=($B$6),YEAR(M$2)<YEAR($B$6)+$B$17+1),$B$58/$B$17,0)*M33 -> 32.61268132 | N59: 27.95169189 | O59: =O49-O57-O58+IF(AND((O$2)>=($B$6),YEAR(O$2)<YEAR($B$6)+$B$17+1),$B$58/$B$17,0)*O33 -> 31.38048431 | P59: =P49-P57-P58+IF(AND((P$2)>=($B$6),YEAR(P$2)<YEAR($B$6)+$B$17+1),$B$58/$B$17,0)*P33 -> 51.03061048 | Q59: =Q49-Q57-Q58+IF(AND((Q$2)>=($B$6),YEAR(Q$2)<YEAR($B$6)+$B$17+1),$B$58/$B$17,0)*Q33 -> 52.16527688 | R59: 48.30440787 | S59: =S49-S57-S58+IF(AND((S$2)>=($B$6),YEAR(S$2)<YEAR($B$6)+$B$17+1),$B$58/$B$17,0)*S33 -> 72.52515239 | T59: =T49-T57-T58+IF(AND((T$2)>=($B$6),YEAR(T$2)<YEAR($B$6)+$B$17+1),$B$58/$B$17,0)*T33 -> 90.72005561 | U59: =U49-U57-U58+IF(AND((U$2)>=($B$6),YEAR(U$2)<YEAR($B$6)+$B$17+1),$B$58/$B$17,0)*U33 -> 102.4013245 | V59: 90.66289692 | W59: =W49-W57-W58+IF(AND((W$2)>=($B$6),YEAR(W$2)<YEAR($B$6)+$B$17+1),$B$58/$B$17,0)*W33 -> 107.7854682 | X59: =X49-X57-X58+IF(AND((X$2)>=($B$6),YEAR(X$2)<YEAR($B$6)+$B$17+1),$B$58/$B$17,0)*X33 -> 113.5588703 | Y59: =Y49-Y57-Y58+IF(AND((Y$2)>=($B$6),YEAR(Y$2)<YEAR($B$6)+$B$17+1),$B$58/$B$17,0)*Y33 -> 129.0912248 | Z59: 134.0421036 | AA59: =AA49-AA57-AA58+IF(AND((AA$2)>=($B$6),YEAR(AA$2)<YEAR($B$6)+$B$17+1),$B$58/$B$17,0)*AA33 -> 134.1547029 | AB59: =AB49-AB57-AB58+IF(AND((AB$2)>=($B$6),YEAR(AB$2)<YEAR($B$6)+$B$17+1),$B$58/$B$17,0)*AB33 -> 134.0822097 | AC59: =AC49-AC57-AC58+IF(AND((AC$2)>=($B$6),YEAR(AC$2)<YEAR($B$6)+$B$17+1),$B$58/$B$17,0)*AC33 -> 141.6335158 | AD59: 132.7915722 | AE59: =AE49-AE57-AE58+IF(AND((AE$2)>=($B$6),YEAR(AE$2)<YEAR($B$6)+$B$17+1),$B$58/$B$17,0)*AE33 -> 134.5370016 | AF59: =AF49-AF57-AF58+IF(AND((AF$2)>=($B$6),YEAR(AF$2)<YEAR($B$6)+$B$17+1),$B$58/$B$17,0)*AF33 -> 131.1168763 | AG59: =AG49-AG57-AG58+IF(AND((AG$2)>=($B$6),YEAR(AG$2)<YEAR($B$6)+$B$17+1),$B$58/$B$17,0)*AG33 -> 128.8179717 | AH59: 134.1909275 | AI59: =AI49-AI57-AI58+IF(AND((AI$2)>=($B$6),YEAR(AI$2)<YEAR($B$6)+$B$17+1),$B$58/$B$17,0)*AI33 -> 29.11972485 | AJ59: =AJ49-AJ57-AJ58+IF(AND((AJ$2)>=($B$6),YEAR(AJ$2)<YEAR($B$6)+$B$17+1),$B$58/$B$17,0)*AJ33 -> 0 | AK59: =AK49-AK57-AK58+IF(AND((AK$2)>=($B$6),YEAR(AK$2)<YEAR($B$6)+$B$17+1),$B$58/$B$17,0)*AK33 -> 0 | AL59: 0 | AM59: =AM49-AM57-AM58+IF(AND((AM$2)>=($B$6),YEAR(AM$2)<YEAR($B$6)+$B$17+1),$B$58/$B$17,0)*AM33 -> 0 | AN59: =AN49-AN57-AN58+IF(AND((AN$2)>=($B$6),YEAR(AN$2)<YEAR($B$6)+$B$17+1),$B$58/$B$17,0)*AN33 -> 0 | AO59: =AO49-AO57-AO58+IF(AND((AO$2)>=($B$6),YEAR(AO$2)<YEAR($B$6)+$B$17+1),$B$58/$B$17,0)*AO33 -> 0 | AP59: 0 | AQ59: =AQ49-AQ57-AQ58+IF(AND((AQ$2)>=($B$6),YEAR(AQ$2)<YEAR($B$6)+$B$17+1),$B$58/$B$17,0)*AQ33 -> 0 | AR59: =AR49-AR57-AR58+IF(AND((AR$2)>=($B$6),YEAR(AR$2)<YEAR($B$6)+$B$17+1),$B$58/$B$17,0)*AR33 -> 0 | AS59: =AS49-AS57-AS58+IF(AND((AS$2)>=($B$6),YEAR(AS$2)<YEAR($B$6)+$B$17+1),$B$58/$B$17,0)*AS33 -> 0 | AT59: 0 | AU59: =AU49-AU57-AU58+IF(AND((AU$2)>=($B$6),YEAR(AU$2)<YEAR($B$6)+$B$17+1),$B$58/$B$17,0)*AU33 -> 0 | AV59: =AV49-AV57-AV58+IF(AND((AV$2)>=($B$6),YEAR(AV$2)<YEAR($B$6)+$B$17+1),$B$58/$B$17,0)*AV33 -> 0 | AW59: =AW49-AW57-AW58+IF(AND((AW$2)>=($B$6),YEAR(AW$2)<YEAR($B$6)+$B$17+1),$B$58/$B$17,0)*AW33 -> 0 | AX59: 0 | AY59: =AY49-AY57-AY58+IF(AND((AY$2)>=($B$6),YEAR(AY$2)<YEAR($B$6)+$B$17+1),$B$58/$B$17,0)*AY33 -> 0 | AZ59: =AZ49-AZ57-AZ58+IF(AND((AZ$2)>=($B$6),YEAR(AZ$2)<YEAR($B$6)+$B$17+1),$B$58/$B$17,0)*AZ33 -> 0 | BA59: =BA49-BA57-BA58+IF(AND((BA$2)>=($B$6),YEAR(BA$2)<YEAR($B$6)+$B$17+1),$B$58/$B$17,0)*BA33 -> 0 | BB59: 0 | BC59: =BC49-BC57-BC58+IF(AND((BC$2)>=($B$6),YEAR(BC$2)<YEAR($B$6)+$B$17+1),$B$58/$B$17,0)*BC33 -> 0 | BD59: =BD49-BD57-BD58+IF(AND((BD$2)>=($B$6),YEAR(BD$2)<YEAR($B$6)+$B$17+1),$B$58/$B$17,0)*BD33 -> 0 | BE59: =BE49-BE57-BE58+IF(AND((BE$2)>=($B$6),YEAR(BE$2)<YEAR($B$6)+$B$17+1),$B$58/$B$17,0)*BE33 -> 0 | BF59: 0 | BG59: =BG49-BG57-BG58+IF(AND((BG$2)>=($B$6),YEAR(BG$2)<YEAR($B$6)+$B$17+1),$B$58/$B$17,0)*BG33 -> 0 | BH59: =BH49-BH57-BH58+IF(AND((BH$2)>=($B$6),YEAR(BH$2)<YEAR($B$6)+$B$17+1),$B$58/$B$17,0)*BH33 -> 0 | BI59: =BI49-BI57-BI58+IF(AND((BI$2)>=($B$6),YEAR(BI$2)<YEAR($B$6)+$B$17+1),$B$58/$B$17,0)*BI33 -> 0 | BJ59: 0 | BK59: =BK49-BK57-BK58+IF(AND((BK$2)>=($B$6),YEAR(BK$2)<YEAR($B$6)+$B$17+1),$B$58/$B$17,0)*BK33 -> 0 | BL59: =BL49-BL57-BL58+IF(AND((BL$2)>=($B$6),YEAR(BL$2)<YEAR($B$6)+$B$17+1),$B$58/$B$17,0)*BL33 -> 0 | BM59: =BM49-BM57-BM58+IF(AND((BM$2)>=($B$6),YEAR(BM$2)<YEAR($B$6)+$B$17+1),$B$58/$B$17,0)*BM33 -> 0 | BN59: 0 | BO59: =BO49-BO57-BO58+IF(AND((BO$2)>=($B$6),YEAR(BO$2)<YEAR($B$6)+$B$17+1),$B$58/$B$17,0)*BO33 -> 0 | BP59: =BP49-BP57-BP58+IF(AND((BP$2)>=($B$6),YEAR(BP$2)<YEAR($B$6)+$B$17+1),$B$58/$B$17,0)*BP33 -> 0 | BQ59: =BQ49-BQ57-BQ58+IF(AND((BQ$2)>=($B$6),YEAR(BQ$2)<YEAR($B$6)+$B$17+1),$B$58/$B$17,0)*BQ33 -> 0 | BR59: 0
A60: Carryover [Mio €] | G60: =IF(AND(G59>0,F60>0),0,IF(AND(G59<=0,F60<=0),G59+F60,IF(AND(G59>0,F60<0,G59+F60<0),G59+F60,0))) -> 0 | H60: 0 | I60: 0 | J60: 0 | K60: 0 | L60: 0 | M60: 0 | N60: 0 | O60: 0 | P60: 0 | Q60: 0 | R60: 0 | S60: 0 | T60: 0 | U60: 0 | V60: 0 | W60: 0 | X60: 0 | Y60: 0 | Z60: 0 | AA60: 0 | AB60: 0 | AC60: 0 | AD60: 0 | AE60: 0 | AF60: 0 | AG60: 0 | AH60: 0 | AI60: 0 | AJ60: 0 | AK60: 0 | AL60: 0 | AM60: =IF(AND(AM59>0,AL60>0),0,IF(AND(AM59<=0,AL60<=0),AM59+AL60,IF(AND(AM59>0,AL60<0,AM59+AL60<0),AM59+AL60,0))) -> 0 | AN60: 0 | AO60: 0 | AP60: 0 | AQ60: 0 | AR60: 0 | AS60: 0 | AT60: 0 | AU60: 0 | AV60: 0 | AW60: 0 | AX60: 0 | AY60: 0 | AZ60: 0 | BA60: 0 | BB60: 0 | BC60: 0 | BD60: 0 | BE60: 0 | BF60: 0 | BG60: 0 | BH60: 0 | BI60: 0 | BJ60: 0 | BK60: 0 | BL60: 0 | BM60: 0 | BN60: 0 | BO60: 0 | BP60: 0 | BQ60: 0 | BR60: 0
A61: EBIT for taxes with loss carryover [Mio €] | G61: =IF(G59<0,0,IF(AND(G59>=0,F60>=0),G59,IF(G59+F60<0,0,G59+F60))) -> 0 | H61: 0 | I61: 0 | J61: 31.82883822 | K61: 45.57502982 | L61: 45.40080531 | M61: 32.61268132 | N61: 27.95169189 | O61: 31.38048431 | P61: 51.03061048 | Q61: 52.16527688 | R61: 48.30440787 | S61: 72.52515239 | T61: 90.72005561 | U61: 102.4013245 | V61: 90.66289692 | W61: 107.7854682 | X61: 113.5588703 | Y61: 129.0912248 | Z61: 134.0421036 | AA61: 134.1547029 | AB61: 134.0822097 | AC61: 141.6335158 | AD61: 132.7915722 | AE61: 134.5370016 | AF61: 131.1168763 | AG61: 128.8179717 | AH61: 134.1909275 | AI61: 29.11972485 | AJ61: 0 | AK61: 0 | AL61: 0 | AM61: =IF(AM59<0,0,IF(AND(AM59>=0,AL60>=0),AM59,IF(AM59+AL60<0,0,AM59+AL60))) -> 0 | AN61: 0 | AO61: 0 | AP61: 0 | AQ61: 0 | AR61: 0 | AS61: 0 | AT61: 0 | AU61: 0 | AV61: 0 | AW61: 0 | AX61: 0 | AY61: 0 | AZ61: 0 | BA61: 0 | BB61: 0 | BC61: 0 | BD61: 0 | BE61: 0 | BF61: 0 | BG61: 0 | BH61: 0 | BI61: 0 | BJ61: 0 | BK61: 0 | BL61: 0 | BM61: 0 | BN61: 0 | BO61: 0 | BP61: 0 | BQ61: 0 | BR61: 0
A62: Carryover ja=1 (für IPP); nein=0 (für Portfolio KW) | B62: 0
A63: Taxes | B63: 0.344 | G63: =IF($B$62=0,G59,G61)*$B$63 -> 0 | H63: 0 | I63: 0 | J63: 10.94912035 | K63: 15.67781026 | L63: 15.61787703 | M63: 11.21876237 | N63: 9.61538201 | O63: 10.7948866 | P63: 17.55453001 | Q63: 17.94485525 | R63: 16.61671631 | S63: 24.94865242 | T63: 31.20769913 | U63: 35.22605563 | V63: 31.18803654 | W63: 37.07820108 | X63: 39.06425137 | Y63: 44.40738135 | Z63: 46.11048364 | AA63: 46.14921781 | AB63: 46.12428012 | AC63: 48.72192942 | AD63: 45.68030084 | AE63: 46.28072854 | AF63: 45.10420546 | AG63: 44.31338226 | AH63: 46.16167905 | AI63: 10.01718535 | AJ63: 0 | AK63: 0 | AL63: 0 | AM63: =IF($B$62=0,AM59,AM61)*$B$63 -> 0 | AN63: 0 | AO63: 0 | AP63: 0 | AQ63: 0 | AR63: 0 | AS63: 0 | AT63: 0 | AU63: 0 | AV63: 0 | AW63: 0 | AX63: 0 | AY63: 0 | AZ63: 0 | BA63: 0 | BB63: 0 | BC63: 0 | BD63: 0 | BE63: 0 | BF63: 0 | BG63: 0 | BH63: 0 | BI63: 0 | BJ63: 0 | BK63: 0 | BL63: 0 | BM63: 0 | BN63: 0 | BO63: 0 | BP63: 0 | BQ63: 0 | BR63: 0
A64: Cash Flow after taxes [Mio €] w/o invest | G64: =G49-G63 -> 0 | H64: =H49-H63 -> 0 | I64: 0 | J64: 37.94077829 | K64: 50.23490748 | L64: 50.1206162 | M64: 41.73160686 | N64: 38.67399779 | O64: 40.92328562 | P64: =P49-P63 -> 53.81376839 | Q64: 54.55810955 | R64: 52.02537947 | S64: 67.91418788 | T64: 79.8500444 | U64: 87.51295679 | V64: 79.81254829 | W64: 91.04495508 | X64: 94.83230681 | Y64: 105.0215314 | Z64: 108.2693079 | AA64: 108.343173 | AB64: 108.2956175 | AC64: 113.2492743 | AD64: 107.4489593 | AE64: 108.5939609 | AF64: 106.3503588 | AG64: 104.8422773 | AH64: 108.3669363 | AI64: 22.379167 | AJ64: 0 | AK64: 0 | AL64: 0 | AM64: =AM49-AM63 -> 0 | AN64: 0 | AO64: 0 | AP64: 0 | AQ64: 0 | AR64: 0 | AS64: 0 | AT64: 0 | AU64: 0 | AV64: 0 | AW64: 0 | AX64: 0 | AY64: 0 | AZ64: 0 | BA64: 0 | BB64: 0 | BC64: 0 | BD64: 0 | BE64: 0 | BF64: 0 | BG64: 0 | BH64: 0 | BI64: 0 | BJ64: 0 | BK64: 0 | BL64: 0 | BM64: 0 | BN64: 0 | BO64: 0 | BP64: 0 | BQ64: 0 | BR64: 0
A65: Discounted Cash Flow at start of operation | G65: =G64*G$3 -> 0 | H65: 0 | I65: 0 | J65: 35.87543374 | K65: 44.43434949 | L65: 41.47170746 | M65: 32.30151685 | N65: 28.00265259 | O65: 27.71870228 | P65: =P64*P$3 -> 34.09715149 | Q65: 32.3374896 | R65: 28.84592965 | S65: 35.22508826 | T65: 38.74262429 | U65: 39.71993465 | V65: 33.88672825 | W65: 36.16068454 | X65: 35.23379045 | Y65: 36.50091016 | Z65: 35.20083798 | AA65: 32.95121912 | AB65: 30.81080981 | AC65: 30.14046538 | AD65: 26.7509392 | AE65: 25.29092944 | AF65: 23.16969783 | AG65: 21.36683278 | AH65: 20.65964219 | AI65: 3.991096347 | AJ65: 0 | AK65: 0 | AL65: 0 | AM65: =AM64*AM$3 -> 0 | AN65: 0 | AO65: 0 | AP65: 0 | AQ65: 0 | AR65: 0 | AS65: 0 | AT65: 0 | AU65: 0 | AV65: 0 | AW65: 0 | AX65: 0 | AY65: 0 | AZ65: 0 | BA65: 0 | BB65: 0 | BC65: 0 | BD65: 0 | BE65: 0 | BF65: 0 | BG65: 0 | BH65: 0 | BI65: 0 | BJ65: 0 | BK65: 0 | BL65: 0 | BM65: 0 | BN65: 0 | BO65: 0 | BP65: 0 | BQ65: 0 | BR65: 0
A67: Cash Flow after taxes [Mio €] with invest | D67: 1 | F67: =F64-SUM(F$51:F$54) -> -6.438460925 | G67: =G64-SUM(G$51:G$54) -> -91.77073882 | H67: =H64-SUM(H$51:H$54) -> -217.7208856 | I67: =I64-SUM(I$51:I$54) -> -130.1002903 | J67: =J64-SUM(J$51:J$54) -> -4.890556106 | K67: 50.23490748 | L67: 50.1206162 | M67: 41.73160686 | N67: 38.67399779 | O67: 40.92328562 | P67: =P64-SUM(P$51:P$54) -> 53.81376839 | Q67: 54.55810955 | R67: 52.02537947 | S67: 67.91418788 | T67: 79.8500444 | U67: 87.51295679 | V67: 79.81254829 | W67: 91.04495508 | X67: 94.83230681 | Y67: 105.0215314 | Z67: 108.2693079 | AA67: 108.343173 | AB67: 108.2956175 | AC67: 113.2492743 | AD67: 107.4489593 | AE67: 108.5939609 | AF67: 106.3503588 | AG67: 104.8422773 | AH67: 108.3669363 | AI67: 22.379167 | AJ67: -6.612760672 | AK67: 0 | AL67: 0 | AM67: =AM64-SUM(AM$51:AM$54) -> 0 | AN67: 0 | AO67: 0 | AP67: 0 | AQ67: 0 | AR67: 0 | AS67: 0 | AT67: 0 | AU67: 0 | AV67: 0 | AW67: 0 | AX67: 0 | AY67: 0 | AZ67: 0 | BA67: 0 | BB67: 0 | BC67: 0 | BD67: 0 | BE67: 0 | BF67: 0 | BG67: 0 | BH67: 0 | BI67: 0 | BJ67: 0 | BK67: 0 | BL67: 0 | BM67: 0 | BN67: 0 | BO67: 0 | BP67: 0 | BQ67: 0 | BR67: 0
A68: Discounted Cash Flow at start of operation | F68: =F67*F$3 -> -7.950305372 | G68: =G67*G$3 -> -106.0054683 | H68: -235.259098 | I68: -131.5064021 | J68: -4.62433375 | K68: 44.43434949 | L68: 41.47170746 | M68: 32.30151685 | N68: 28.00265259 | O68: 27.71870228 | P68: =P67*P$3 -> 34.09715149 | Q68: 32.3374896 | R68: 28.84592965 | S68: 35.22508826 | T68: 38.74262429 | U68: 39.71993465 | V68: 33.88672825 | W68: 36.16068454 | X68: 35.23379045 | Y68: 36.50091016 | Z68: 35.20083798 | AA68: 32.95121912 | AB68: 30.81080981 | AC68: 30.14046538 | AD68: 26.7509392 | AE68: 25.29092944 | AF68: 23.16969783 | AG68: 21.36683278 | AH68: 20.65964219 | AI68: 3.991096347 | AJ68: -1.103197819 | AK68: 0 | AL68: 0 | AM68: =AM67*AM$3 -> 0 | AN68: 0 | AO68: 0 | AP68: 0 | AQ68: 0 | AR68: 0 | AS68: 0 | AT68: 0 | AU68: 0 | AV68: 0 | AW68: 0 | AX68: 0 | AY68: 0 | AZ68: 0 | BA68: 0 | BB68: 0 | BC68: 0 | BD68: 0 | BE68: 0 | BF68: 0 | BG68: 0 | BH68: 0 | BI68: 0 | BJ68: 0 | BK68: 0 | BL68: 0 | BM68: 0 | BN68: 0 | BO68: 0 | BP68: 0 | BQ68: 0 | BR68: 0
D70: 2 | F70: -6.438460925 | G70: -91.77073882 | H70: -217.7208856 | I70: -104.1202903 | J70: 110.0300051 | K70: 33.48082508 | L70: 33.29908195 | M70: 29.29130121 | N70: 27.31162789 | O70: 29.38396872 | P70: 38.8149119 | Q70: 39.41084379 | R70: 37.80376876 | S70: 49.87198756 | T70: 58.53300002 | U70: 64.08301499 | V70: 58.32958844 | W70: 66.70595589 | X70: 69.43371744 | Y70: 77.04276562 | Z70: 79.74686917 | AA70: 79.86709017 | AB70: 80.05122181 | AC70: 83.71516609 | AD70: 79.54641582 | AE70: 80.2657494 | AF70: 78.70665643 | AG70: 77.69346392 | AH70: 80.19099072 | AI70: 17.78426297 | AJ70: -6.612760672 | AK70: 0 | AL70: 0 | AM70: 0 | AN70: 0 | AO70: 0 | AP70: 0 | AQ70: 0 | AR70: 0 | AS70: 0 | AT70: 0 | AU70: 0 | AV70: 0 | AW70: 0 | AX70: 0 | AY70: 0 | AZ70: 0 | BA70: 0 | BB70: 0 | BC70: 0 | BD70: 0 | BE70: 0 | BF70: 0 | BG70: 0 | BH70: 0 | BI70: 0 | BJ70: 0 | BK70: 0 | BL70: 0 | BM70: 0 | BN70: 0 | BO70: 0 | BP70: 0 | BQ70: 0 | BR70: 0
B71: n.St | F71: -7.950305372 | G71: -106.0054683 | H71: -235.259098 | I71: -105.2456127 | J71: 104.0404107 | K71: 29.61483871 | L71: 27.55292912 | M71: 22.67234671 | N71: 19.77550993 | O71: 19.9027392 | P71: 24.59366758 | Q71: 23.35945585 | R71: 20.96063239 | S71: 25.86713054 | T71: 28.39975914 | U71: 29.08567212 | V71: 24.76551563 | W71: 26.49386807 | X71: 25.79725341 | Y71: 26.77670977 | Z71: 25.92753825 | AA71: 24.29057517 | AB71: 22.77509495 | AC71: 22.28017867 | AD71: 19.80420609 | AE71: 18.69344655 | AF71: 17.14718659 | AG71: 15.83391065 | AH71: 15.28803186 | AI71: 3.171642043 | AJ71: -1.103197819 | AK71: 0 | AL71: 0 | AM71: 0 | AN71: 0 | AO71: 0 | AP71: 0 | AQ71: 0 | AR71: 0 | AS71: 0 | AT71: 0 | AU71: 0 | AV71: 0 | AW71: 0 | AX71: 0 | AY71: 0 | AZ71: 0 | BA71: 0 | BB71: 0 | BC71: 0 | BD71: 0 | BE71: 0 | BF71: 0 | BG71: 0 | BH71: 0 | BI71: 0 | BJ71: 0 | BK71: 0 | BL71: 0 | BM71: 0 | BN71: 0 | BO71: 0 | BP71: 0 | BQ71: 0 | BR71: 0
A72: Net Present Value at start of operation
A73: NPV from operation at start of operation | B73: =SUM(C65:BR65) -> 810.8871638
A74: NPV Invest at start of operation | B74: =SUMPRODUCT($C$51:$BR$51,$C$3:$BR$3)+SUMPRODUCT($C$52:$BR$52,$C$3:$BR$3)+SUMPRODUCT($C$54:$BR$54,$C$3:$BR$3) -> 522.3242391
A75: Net Present Value at start of operation | B75: =B73-B74 -> 288.5629247
B76: =SUM(C68:BR68) -> 288.5629247
A77: 2009-01-01
A78: NPV from operation at 1.1.2009 | B78: =B73*(1+$B$3)^(($A$77-$B$6)/365) -> 750.4100695
A79: NPV Invest at 1.1.2009 | B79: =B74*(1+$B$3)^(($A$77-$B$6)/365) -> 483.3685697
A80: Net Present Value at 01.01.2009 | B80: =B75*(1+$B$3)^(($A$77-$B$6)/365) -> 267.0414998
A82: IRR | B82: =IRR($D$67:$BR$67) -> 0.108652369
A83: VAN | B83: =SUM(D68:BR68) -> 288.5629247 | C83: =AVERAGE(M35:AH35) -> 2835.614409
A85: IBN=0 | C85: -5 | D85: -4 | E85: -3 | F85: -2 | G85: -1 | H85: 0 | I85: 1
A86: Variable Payment Schedule | B86: SK | C86: 0.1 | D86: 0.215 | E86: 0.26 | F86: 0.235 | G86: 0.14 | H86: 0.05 | I86: 0
B87: GuD | C87: 0 | D87: =F98/$C$98 -> 0.0135110249 | E87: =G98/$C$98 -> 0.1925796788 | F87: =H98/$C$98 -> 0.4472565601 | G87: =I98/$C$98 -> 0.2619906448 | H87: =J98/$C$98 -> 0.08466209137 | I87: 0
B88: BK | C88: 0.1 | D88: 0.215 | E88: 0.26 | F88: 0.235 | G88: 0.14 | H88: 0.05 | I88: 0
A89: NPV of invest at start of operation
A90: Order Value | F90: =G90 -> 476.5338658 | G90: =$B$15*$B$14/1000*G$4 -> 476.5338658 | H90: =$B$15*$B$14/1000*H$4 -> 486.7919333 | I90: 496.5837251 | J90: 505.9092411 | K90: 514.7684812 | L90: 523.1614456 | M90: 531.0881342 | N90: 539.0148227 | O90: 546.9415113 | P90: 555.8007515 | Q90: 565.5925432 | R90: 575.8506108 | S90: 586.5749542 | T90: 597.7655733 | U90: 609.4224683 | V90: 621.0793632 | W90: 633.202534 | X90: 645.7919805 | Y90: 658.8477029 | Z90: 672.369701 | AA90: 686.357975 | AB90: 700.8125247 | AC90: 716.1996261 | AD90: 731.1204516 | AE90: 746.507553 | AF90: 762.3609301 | AG90: 778.2143072 | AH90: 794.5339602 | AI90: 810.3873373 | AJ90: 826.5950841 | AK90: 843.1269857 | AL90: 859.9895255 | AM90: 877.189316 | AN90: 894.7331023 | AO90: 912.6277643 | AP90: 930.8803196 | AQ90: 949.497926 | AR90: 968.4878845 | AS90: 987.8576422 | AT90: 1007.614795 | AU90: 1027.767091 | AV90: 1048.322433 | AW90: 1069.288881 | AX90: 1090.674659 | AY90: 1112.488152 | AZ90: 1134.737915 | BA90: 1157.432674 | BB90: 1180.581327 | BC90: 1204.192954 | BD90: 1228.276813 | BE90: 1252.842349 | BF90: 1277.899196 | BG90: 1303.45718 | BH90: 1329.526323 | BI90: 1356.11685 | BJ90: 1383.239187 | BK90: 1410.903971 | BL90: 1439.12205 | BM90: 1467.904491 | BN90: 1497.262581 | BO90: 1527.207832 | BP90: 1557.751989 | BQ90: 1588.907029 | BR90: 1620.68517
A91: Payment schedule | F91: =D87 -> 0.0135110249 | G91: =G$106+IF(OR(YEAR(G$2)-YEAR($B$6)<=-6,YEAR(G$2)-YEAR($B$6)>=2),0, HLOOKUP(YEAR(G$2)-YEAR($B$6),$C$85:$I$88, IF($B16="Kohle",2, IF($B$20="Gas",3, 4)))) -> 0.1925796788 | H91: =H$106+IF(OR(YEAR(H$2)-YEAR($B$6)<=-6,YEAR(H$2)-YEAR($B$6)>=2),0, HLOOKUP(YEAR(H$2)-YEAR($B$6),$C$85:$I$88, IF($B16="Kohle",2, IF($B$20="Gas",3, 4)))) -> 0.4472565601 | I91: =I$106+IF(OR(YEAR(I$2)-YEAR($B$6)<=-6,YEAR(I$2)-YEAR($B$6)>=2),0, HLOOKUP(YEAR(I$2)-YEAR($B$6),$C$85:$I$88, IF($B16="Kohle",2, IF($B$20="Gas",3, 4)))) -> 0.2619906448 | J91: =IF(OR(YEAR(J$2)-YEAR($B$6)<=-6,YEAR(J$2)-YEAR($B$6)>=2),0, HLOOKUP(YEAR(J$2)-YEAR($B$6),$C$85:$I$88, IF($B16="Kohle",2, IF($B$20="Gas",3, 4)))) -> 0.08466209137 | K91: =IF(OR(YEAR(K$2)-YEAR($B$6)<=-6,YEAR(K$2)-YEAR($B$6)>=2),0, HLOOKUP(YEAR(K$2)-YEAR($B$6),$C$85:$I$88, IF($B16="Kohle",2, IF($B$20="Gas",3, 4)))) -> 0 | L91: 0 | M91: 0 | N91: 0 | O91: 0 | P91: 0 | Q91: 0 | R91: 0 | S91: 0 | T91: 0 | U91: 0 | V91: 0 | W91: 0 | X91: 0 | Y91: 0 | Z91: 0 | AA91: 0 | AB91: 0 | AC91: 0 | AD91: 0 | AE91: 0 | AF91: 0 | AG91: 0 | AH91: 0 | AI91: 0 | AJ91: 0 | AK91: 0 | AL91: 0 | AM91: 0 | AN91: 0 | AO91: 0 | AP91: 0 | AQ91: 0 | AR91: 0 | AS91: 0 | AT91: 0 | AU91: 0 | AV91: 0 | AW91: 0 | AX91: 0 | AY91: 0 | AZ91: 0 | BA91: 0 | BB91: 0 | BC91: 0 | BD91: 0 | BE91: 0 | BF91: 0 | BG91: 0 | BH91: 0 | BI91: 0 | BJ91: 0 | BK91: 0 | BL91: 0 | BM91: 0 | BN91: 0 | BO91: 0 | BP91: 0 | BQ91: 0 | BR91: 0
A92: Expenditure nominal | F92: =F91*F90 -> 6.438460925 | G92: =G91*G90 -> 91.77073882 | H92: =H91*H90 -> 217.7208856 | I92: 130.1002903 | J92: 42.8313344 | K92: 0 | L92: 0 | M92: 0 | N92: 0 | O92: 0 | P92: 0 | Q92: 0 | R92: 0 | S92: 0 | T92: 0 | U92: 0 | V92: 0 | W92: 0 | X92: 0 | Y92: 0 | Z92: 0 | AA92: 0 | AB92: 0 | AC92: 0 | AD92: 0 | AE92: 0 | AF92: 0 | AG92: 0 | AH92: 0 | AI92: 0 | AJ92: 0 | AK92: 0 | AL92: 0 | AM92: 0 | AN92: 0 | AO92: 0 | AP92: 0 | AQ92: 0 | AR92: 0 | AS92: 0 | AT92: 0 | AU92: 0 | AV92: 0 | AW92: 0 | AX92: 0 | AY92: 0 | AZ92: 0 | BA92: 0 | BB92: 0 | BC92: 0 | BD92: 0 | BE92: 0 | BF92: 0 | BG92: 0 | BH92: 0 | BI92: 0 | BJ92: 0 | BK92: 0 | BL92: 0 | BM92: 0 | BN92: =BN91*BN90 -> 0 | BO92: =BO91*BO90 -> 0 | BP92: =BP91*BP90 -> 0 | BQ92: =BQ91*BQ90 -> 0 | BR92: =BR91*BR90 -> 0
E93: Invest | F93: =SUM(C92:AX92) -> 488.8617101
E94: Abschreibung | F94: =F93/$B$17 -> 19.5544684
T95: Initial | U95: 471.8
A96: Ursprüngliches Invest nominal | F96: 6.603 | G96: =94.116 -> 94.116 | H96: 213.689 | I96: =157.287-J96+2.8 -> 120.702 | J96: =39.385 -> 39.385 | K96: 0 | L96: 0 | T96: LTSA spare piece | U96: 14.2
A97: LTSA contract - spare pieces | H97: =0.4*(14.217-J97) -> 4.890648 | I97: =0.6*(14.217-J97) -> 7.335972 | J97: 1.99038 | T97: Commiss | U97: 2.8
A98: Gesamt Invest | B98: Mio € | C98: =SUM(F98:P98) -> 488.712 | F98: =SUM(F96:F97) -> 6.603 | G98: 94.116 | H98: 218.579648 | I98: 128.037972 | J98: 41.37538 | K98: 0 | L98: =SUM(L96:L97) -> 0 | M98: =SUM(M96:M97) -> 0 | N98: =SUM(N96:N97) -> 0 | O98: =SUM(O96:O97) -> 0 | P98: =SUM(P96:P97) -> 0 | T98: Interet 2008 | U98: 5.35
A99: gesamt Invest GW 2007 | B99: Mio € | C99: =SUM(F99:P99) -> 476.5338658 | F99: =F98 -> 6.603 | G99: =G98/G4 -> 94.116 | H99: 213.9735635 | I99: 122.8683637 | J99: 38.97293858 | K99: 0 | L99: 0 | M99: 0 | N99: 0 | O99: 0 | P99: 0 | T99: Interet 2009 | U99: 13.16
D100: =C99/$B$14*1000 -> 576.0805921 | T100: Interet 2010 | U100: =1.05/1.025*1.045 -> 1.070487805
A101: Invest Fix | F101: =-F52 -> 0 | G101: =-G52 -> 0 | H101: =-H52/H$4 -> 0 | I101: =-I52/I$4 -> 0 | U101: =SUM(U95:U100) -> 508.3804878
A102: Zahlplan Fix | F102: =F101/SUM($F$99:$M$99) -> 0 | G102: =G101/SUM($F$99:$M$99) -> 0 | H102: =H101/SUM($F$99:$M$99) -> 0 | I102: =I101/SUM($F$99:$M$99) -> 0
A103: Zahlplan Variable | F103: =(F99-F101)/SUM($F$99:$P$99) -> 0.01385630796 | G103: =(G99-G101)/SUM($F$99:$P$99) -> 0.1975011783 | H103: =(H99-H101)/SUM($F$99:$P$99) -> 0.4490206863 | I103: =(I99-I101)/SUM($F$99:$P$99) -> 0.2578376325 | J103: 0.08178419495 | K103: 0 | L103: 0 | M103: 0 | N103: 0 | O103: 0 | P103: 0 | Q103: =SUM(F103:P103) -> 1
B106: Mio € | C106: =$B$15*413.6/1000*2 -> 476.5338658 | F106: =F101/$C$106 -> 0 | G106: =G101/$C$106 -> 0 | H106: =H101/$C$106 -> 0 | I106: =I101/$C$106 -> 0
F107: =F103/$Q$103*(100%-SUM($G$106:$I$106)) -> 0.01385630796 | G107: =G103/$Q$103*(100%-SUM($G$106:$I$106)) -> 0.1975011783 | H107: =H103/$Q$103*(100%-SUM($G$106:$I$106)) -> 0.4490206863 | I107: 0.2578376325 | J107: 0.08178419495 | K107: 0 | L107: 0 | M107: 0 | N107: 0 | O107: 0 | P107: 0 | Q107: =SUM(F107:P107) -> 1

Sheet Strompreise
A1: Strompreise
A2: [EUR/MWh] | C2: Base price Poyry | G2: 44.56828308 | H2: 51.79074478 | I2: 56.94295883 | J2: 58.5908432 | K2: 59.42261505 | L2: 58.99443436 | M2: 58.98564529 | N2: 59.38744736 | O2: 59.13591385 | P2: 58.36896515 | Q2: 58.69896317 | R2: 58.94857788 | S2: 60.49742889 | T2: 62.7430687 | U2: 64.47631836 | V2: 70.07758331 | W2: 73.89997864 | X2: 76.44523621 | Y2: 77.17676544 | Z2: 77.8287735 | AA2: 79.22148132 | AB2: 79.14295959
A4: Lastpunkt | B4: Dauer [h] | C4: LowCut | D4: Peak | E4: 2007 | F4: 2008 | G4: 2009 | H4: 2010 | I4: 2011 | J4: 2012 | K4: 2013 | L4: 2014 | M4: 2015 | N4: 2016 | O4: 2017 | P4: 2018 | Q4: 2019 | R4: 2020 | S4: 2021 | T4: 2022 | U4: 2023 | V4: 2024 | W4: 2025 | X4: 2026 | Y4: 2027 | Z4: 2028 | AA4: 2029 | AB4: 2030 | AC4: 2031 | AD4: 2032 | AE4: 2033 | AF4: 2034 | AG4: 2035
C6: Base price FW&Interpolated | H6: 55.3 | I6: 58.63 | J6: 61 | K6: =(M6-J6)/3+J6 -> 59.63333333 | L6: =(M6-J6)/3+K6 -> 58.26666667 | M6: 56.9
A7: Peakprices LTM | E7: 64.94551427 | F7: 78.18095822 | G7: 102.16 | H7: =SUMPRODUCT(H9:H110,$B9:$B110,$D9:$D110)/SUMPRODUCT($B9:$B110,$D9:$D110) -> 76.5 | I7: =SUMPRODUCT(I9:I110,$B9:$B110,$D9:$D110)/SUMPRODUCT($B9:$B110,$D9:$D110) -> 82.97088123 | J7: 88.5 | K7: 81.76860888 | L7: 75.03723755 | M7: 68.30587552 | N7: 65.16329225 | O7: 68.70998253 | P7: 70.72611501 | Q7: 77.99024761 | R7: 83.51705934 | S7: 85.29313409 | T7: 79.03461633 | U7: 88.98483473 | V7: 89.17448417 | W7: 92.28105102 | X7: 98.89555814 | Y7: 93.36007544 | Z7: 91.71920248 | AA7: 97.57334972 | AB7: 96.45235013 | AC7: =SUMPRODUCT(AC9:AC110,$B9:$B110,$D9:$D110)/SUMPRODUCT($B9:$B110,$D9:$D110) -> 96.57462507 | AD7: 97.50229719 | AE7: 95.51201628 | AF7: 93.58050639 | AG7: 93.65500165
A8: Baseprices LTM | E8: 41.52575144 | F8: 59.6569173 | G8: 73.35 | H8: =SUMPRODUCT(H9:H110,$B9:$B110)/SUM($B9:$B110) -> 55.3 | I8: =SUMPRODUCT(I9:I110,$B9:$B110)/SUM($B9:$B110) -> 58.63 | J8: 61.16712329 | K8: 59.74396495 | L8: =SUMPRODUCT(L9:L110,$B9:$B110)/SUM($B9:$B110) -> 58.32085799 | M8: =SUMPRODUCT(M9:M110,$B9:$B110)/SUM($B9:$B110) -> 56.89766336 | N8: 54.49530406 | O8: =SUMPRODUCT(O9:O110,$B9:$B110)/SUM($B9:$B110) -> 57.50580667 | P8: =SUMPRODUCT(P9:P110,$B9:$B110)/SUM($B9:$B110) -> 61.15230144 | Q8: 67.15106513 | R8: =SUMPRODUCT(R9:R110,$B9:$B110)/SUM($B9:$B110) -> 69.67409195 | S8: =SUMPRODUCT(S9:S110,$B9:$B110)/SUM($B9:$B110) -> 72.63029495 | T8: 70.69862439 | U8: =SUMPRODUCT(U9:U110,$B9:$B110)/SUM($B9:$B110) -> 74.15477374 | V8: =SUMPRODUCT(V9:V110,$B9:$B110)/SUM($B9:$B110) -> 75.62529772 | W8: 79.03101077 | X8: =SUMPRODUCT(X9:X110,$B9:$B110)/SUM($B9:$B110) -> 83.37391678 | Y8: =SUMPRODUCT(Y9:Y110,$B9:$B110)/SUM($B9:$B110) -> 85.07531207 | Z8: 86.16828273 | AA8: =SUMPRODUCT(AA9:AA110,$B9:$B110)/SUM($B9:$B110) -> 90.48550896 | AB8: =SUMPRODUCT(AB9:AB110,$B9:$B110)/SUM($B9:$B110) -> 91.28414092 | AC8: =SUMPRODUCT(AC9:AC110,$B9:$B110)/SUM($B9:$B110) -> 93.11118426 | AD8: =SUMPRODUCT(AD9:AD110,$B9:$B110)/SUM($B9:$B110) -> 93.55673577 | AE8: =SUMPRODUCT(AE9:AE110,$B9:$B110)/SUM($B9:$B110) -> 94.60023078 | AF8: =SUMPRODUCT(AF9:AF110,$B9:$B110)/SUM($B9:$B110) -> 95.24825765 | AG8: =SUMPRODUCT(AG9:AG110,$B9:$B110)/SUM($B9:$B110) -> 97.24192454
A9: 1 | B9: 164 | C9: 0.86 | D9: =[4]Strompreise!D4 -> 0 | E9: =[4]Strompreise!G4 -> 37.9821099 | F9: =[4]Strompreise!H4 -> 57.57007349 | G9: =[4]Strompreise!I4 -> 69.92131299 | H9: 48.48864579 | I9: 49.945247 | J9: 50.32113877 | K9: 51.121 | L9: 51.921 | M9: 52.72046334 | N9: 78.48063532 | O9: 47.05684141 | P9: 57.48284281 | Q9: 58.33545725 | R9: 62.48776718 | S9: 64.29025773 | T9: 64.99130988 | U9: 66.33663312 | V9: 68.67941609 | W9: 67.54431801 | X9: 68.63622263 | Y9: 73.89175474 | Z9: 139.4826986 | AA9: 163.7449172 | AB9: 161.979103 | AC9: 185.5990004 | AD9: 186.1552561 | AE9: 212.222503 | AF9: 212.6600869 | AG9: 220.455135
A10: 2 | B10: 82 | C10: 1 | D10: =[4]Strompreise!D5 -> 0 | E10: =[4]Strompreise!G5 -> 35.84159502 | F10: =[4]Strompreise!H5 -> 63.7312734 | G10: =[4]Strompreise!I5 -> 78.13394158 | H10: 43.34594528 | I10: 45.00041493 | J10: 45.36226555 | K10: 50.307 | L10: 55.252 | M10: 60.19686614 | N10: 80.50470356 | O10: 54.2028906 | P10: 66.22380344 | Q10: 66.90326096 | R10: 70.9443065 | S10: 73.74252281 | T10: 74.52995305 | U10: 76.15132736 | V10: 77.80072355 | W10: 80.0940548 | X10: 81.95007552 | Y10: 85.05022712 | Z10: 86.4292968 | AA10: 87.50622723 | AB10: 96.5171345 | AC10: 98.4224485 | AD10: 100.1328589 | AE10: 102.5099062 | AF10: 103.1356186 | AG10: 105.9067259
A11: 3 | B11: 82 | C11: 1 | D11: =[4]Strompreise!D6 -> 0 | E11: =[4]Strompreise!G6 -> 62.12455204 | F11: =[4]Strompreise!H6 -> 71.51952549 | G11: =[4]Strompreise!I6 -> 88.94793899 | H11: 70.85541972 | I11: 74.88564098 | J11: 75.3187378 | K11: 109.968 | L11: 144.618 | M11: 179.2675049 | N11: 206.0218643 | O11: 208.2676991 | P11: 224.7510286 | Q11: 288.075202 | R11: 328.0230627 | S11: 299.687128 | T11: 339.1222112 | U11: 277.1522867 | V11: 281.9405335 | W11: 300.1997274 | X11: 317.6473232 | Y11: 322.6140128 | Z11: 332.2702614 | AA11: 344.6162363 | AB11: 341.9977187 | AC11: 347.3744099 | AD11: 312.8028 | AE11: 317.5036069 | AF11: 347.2664808 | AG11: 362.1625366
A12: 4 | B12: 82 | C12: 1 | D12: =[4]Strompreise!D7 -> 1 | E12: =[4]Strompreise!G7 -> 312.3195968 | F12: =[4]Strompreise!H7 -> 111.894674 | G12: =[4]Strompreise!I7 -> 270.4987276 | H12: 96.79812073 | I12: 105.524185 | J12: 112.4394794 | K12: 144.937 | L12: 177.435 | M12: 209.9332534 | N12: 245.5024618 | O12: 271.4323329 | P12: 279.8168732 | Q12: 391.4390707 | R12: 411.1730794 | S12: 458.8579086 | T12: 293.735405 | U12: 524.8652604 | V12: 372.883826 | W12: 392.4003851 | X12: 409.7987254 | Y12: 361.0930306 | Z12: 368.4918739 | AA12: 380.5094992 | AB12: 381.287551 | AC12: 391.1267259 | AD12: 390.5332034 | AE12: 391.3994833 | AF12: 313.8020863 | AG12: 291.8853245
A13: 5 | B13: 82 | C13: 1 | D13: =[4]Strompreise!D8 -> 1 | E13: =[4]Strompreise!G8 -> 105.7963903 | F13: =[4]Strompreise!H8 -> 103.0908677 | G13: =[4]Strompreise!I8 -> 144.1137139 | H13: 97.47046447 | I13: 105.8369963 | J13: 112.7802509 | K13: 126.553 | L13: 140.326 | M13: 154.0990333 | N13: 136.5477801 | O13: 132.8617837 | P13: 69.95804468 | Q13: 112.2567847 | R13: 138.465764 | S13: 134.2612364 | T13: 107.6956537 | U13: 120.792681 | V13: 153.5939347 | W13: 168.5067856 | X13: 111.2236431 | Y13: 99.84097244 | Z13: 87.19937921 | AA13: 101.2526651 | AB13: 103.6922139 | AC13: 107.3145954 | AD13: 106.1743793 | AE13: 115.0630447 | AF13: 124.9260617 | AG13: 111.5534136
A14: 6 | B14: 82 | C14: 1 | D14: =[4]Strompreise!D9 -> 1 | E14: =[4]Strompreise!G9 -> 77.174621 | F14: =[4]Strompreise!H9 -> 82.35069752 | G14: =[4]Strompreise!I9 -> 117.7176337 | H14: 91.81464129 | I14: 99.42346698 | J14: 105.9796556 | K14: 103.437 | L14: 100.894 | M14: 98.35118622 | N14: 124.9880737 | O14: 67.80031696 | P14: 69.25419038 | Q14: 75.50591003 | R14: 92.70708493 | S14: 92.01303675 | T14: 79.63868054 | U14: 98.1070264 | V14: 104.5392199 | W14: 88.1810836 | X14: 103.2239125 | Y14: 126.0934595 | Z14: 87.89270723 | AA14: 94.0447574 | AB14: 97.46626422 | AC14: 99.43080984 | AD14: 100.8956619 | AE14: 104.1207594 | AF14: 102.3853241 | AG14: 104.9102295
A15: 7 | B15: 123 | C15: 1 | D15: =[4]Strompreise!D10 -> 1 | E15: =[4]Strompreise!G10 -> 70.52502845 | F15: =[4]Strompreise!H10 -> 75.5161264 | G15: =[4]Strompreise!I10 -> 103.3655843 | H15: 81.96583607 | I15: 88.84348801 | J15: 94.72858941 | K15: 85.689 | L15: 76.649 | M15: 67.60867411 | N15: 111.7503173 | O15: 63.15834368 | P15: 67.85771673 | Q15: 73.26429674 | R15: 122.694704 | S15: 102.1633256 | T15: 84.04894112 | U15: 91.2146738 | V15: 135.4503161 | W15: 102.7790876 | X15: 95.57938832 | Y15: 106.0431181 | Z15: 91.385487 | AA15: 128.7700808 | AB15: 120.5873291 | AC15: 113.6862589 | AD15: 102.619214 | AE15: 124.0682496 | AF15: 107.3949972 | AG15: 108.9086604
A16: 8 | B16: 123 | C16: 1 | D16: =[4]Strompreise!D11 -> 1 | E16: =[4]Strompreise!G11 -> 86.19902919 | F16: =[4]Strompreise!H11 -> 89.52137329 | G16: =[4]Strompreise!I11 -> 130.5824485 | H16: 100.1355712 | I16: 108.279402 | J16: 115.4920614 | K16: 118.549 | L16: 121.607 | M16: 124.6640225 | N16: 154.150475 | O16: 150.2719715 | P16: 163.1237586 | Q16: 200.8788368 | R16: 223.5320692 | S16: 235.6284566 | T16: 195.9289243 | U16: 212.4581036 | V16: 248.6895919 | W16: 237.8540869 | X16: 282.4495979 | Y16: 229.95802 | Z16: 242.4749307 | AA16: 252.1019054 | AB16: 244.9881167 | AC16: 186.8246241 | AD16: 188.2050279 | AE16: 187.6640199 | AF16: 186.7615974 | AG16: 189.3820049
A17: 9 | B17: 82 | C17: 1 | D17: =[4]Strompreise!D12 -> 0 | E17: =[4]Strompreise!G12 -> 65.13836749 | F17: =[4]Strompreise!H12 -> 80.31985766 | G17: =[4]Strompreise!I12 -> 90.56302039 | H17: 71.54493225 | I17: 74.55329353 | J17: 75.00378975 | K17: 105.385 | L17: 135.767 | M17: 166.1479189 | N17: 189.0226361 | O17: 189.1982566 | P17: 205.7618541 | Q17: 252.1507039 | R17: 287.2610622 | S17: 342.3016425 | T17: 467.072961 | U17: 361.1526556 | V17: 511.4696457 | W17: 567.9935658 | X17: 593.5962521 | Y17: 636.9881845 | Z17: 606.3109549 | AA17: 654.7586393 | AB17: 625.3113905 | AC17: 646.4030278 | AD17: 653.9657339 | AE17: 664.1798843 | AF17: 684.4459847 | AG17: 673.617206
A18: 10 | B18: 82 | C18: 1 | D18: =[4]Strompreise!D13 -> 0 | E18: =[4]Strompreise!G13 -> 48.20994971 | F18: =[4]Strompreise!H13 -> 56.67137212 | G18: =[4]Strompreise!I13 -> 72.80820248 | H18: 62.59468179 | I18: 65.05758429 | J18: 65.41029411 | K18: 90.513 | L18: 115.616 | M18: 140.7186732 | N18: 173.6978751 | O18: 171.8239167 | P18: 186.6599363 | Q18: 229.8583228 | R18: 254.8538633 | S18: 267.6407667 | T18: 253.6966889 | U18: 314.2066031 | V18: 319.7639914 | W18: 339.4531836 | X18: 356.5172238 | Y18: 422.5900752 | Z18: 425.1480714 | AA18: 436.4761623 | AB18: 440.0489692 | AC18: 453.7090057 | AD18: 446.4237472 | AE18: 463.4573868 | AF18: 461.9469316 | AG18: 481.5050802
A19: 11 | B19: 96 | C19: 0.83 | D19: =[4]Strompreise!D14 -> 0 | E19: =[4]Strompreise!G14 -> 18.40497874 | F19: =[4]Strompreise!H14 -> 32.22601799 | G19: =[4]Strompreise!I14 -> 35.82808705 | H19: 45.27973888 | I19: 47.44508082 | J19: 47.62410625 | K19: 47.798 | L19: 47.972 | M19: 48.14573415 | N19: 52.57542465 | O19: 43.8170832 | P19: 52.07681097 | Q19: 57.29192519 | R19: 54.91701142 | S19: 55.88214399 | T19: 57.1135025 | U19: 59.03238614 | V19: 60.8020252 | W19: 61.0718151 | X19: 63.86187301 | Y19: 64.28596437 | Z19: 67.06149174 | AA19: 67.57294812 | AB19: 69.89350723 | AC19: 71.74711992 | AD19: 73.24042123 | AE19: 74.8767026 | AF19: 75.48457681 | AG19: 77.15271857
A20: 12 | B20: 48 | C20: 0.35 | D20: =[4]Strompreise!D15 -> 0 | E20: =[4]Strompreise!G15 -> 23.54539478 | F20: =[4]Strompreise!H15 -> 48.70985878 | G20: =[4]Strompreise!I15 -> 59.29934277 | H20: 45.42931989 | I20: 45.63522136 | J20: 46.14085211 | K20: 37.196 | L20: 28.252 | M20: 19.30698623 | N20: 21.21324618 | O20: 18.03300557 | P20: 21.38992619 | Q20: 22.96536759 | R20: 22.43938931 | S20: 22.57132013 | T20: 22.70354021 | U20: 23.09504672 | V20: 23.83754743 | W20: 24.6513988 | X20: 25.13347776 | Y20: 26.09504516 | Z20: 26.61824767 | AA20: 27.83774018 | AB20: 28.54201674 | AC20: 28.05402469 | AD20: 28.9415264 | AE20: 30.38330553 | AF20: 29.79758572 | AG20: 29.97833384
A21: 13 | B21: 32 | C21: 1 | D21: =[4]Strompreise!D16 -> 0 | E21: =[4]Strompreise!G16 -> 25.40645452 | F21: =[4]Strompreise!H16 -> 61.27045513 | G21: =[4]Strompreise!I16 -> 66.2143167 | H21: 61.76815212 | I21: 62.36996982 | J21: 62.88706899 | K21: 61.455 | L21: 60.022 | M21: 58.58991788 | N21: 68.95901384 | O21: 52.4811 | P21: 58.2048752 | Q21: 68.25406766 | R21: 65.07437104 | S21: 65.80407152 | T21: 66.96329708 | U21: 67.83608565 | V21: 70.27841033 | W21: 71.47134065 | X21: 74.39682646 | Y21: 74.02572272 | Z21: 75.8627006 | AA21: 79.73443559 | AB21: 85.8159218 | AC21: 86.935706 | AD21: 87.7624913 | AE21: 89.81334848 | AF21: 90.02972672 | AG21: 92.52991535
A22: 14 | B22: 32 | C22: 1 | D22: =[4]Strompreise!D17 -> 0 | E22: =[4]Strompreise!G17 -> 37.65765087 | F22: =[4]Strompreise!H17 -> 61.38816495 | G22: =[4]Strompreise!I17 -> 66.88482805 | H22: 65.33223059 | I22: 66.92382674 | J22: 67.33328901 | K22: 64.446 | L22: 61.559 | M22: 58.672496 | N22: 67.25818464 | O22: 52.33797908 | P22: 58.1395562 | Q22: 65.8255733 | R22: 65.63731496 | S22: 65.41834317 | T22: 65.28401096 | U22: 67.65853511 | V22: 69.66399311 | W22: 69.7748087 | X22: 74.48607254 | Y22: 74.73242821 | Z22: 74.11734671 | AA22: 79.31191793 | AB22: 72.5078294 | AC22: 74.82533753 | AD22: 76.6074216 | AE22: 77.80898816 | AF22: 80.42429931 | AG22: 82.31091968
A23: 15 | B23: 64 | C23: 1 | D23: =[4]Strompreise!D18 -> 0 | E23: =[4]Strompreise!G18 -> 24.95336964 | F23: =[4]Strompreise!H18 -> 49.08375401 | G23: =[4]Strompreise!I18 -> 62.41953115 | H23: 51.03880704 | I23: 52.45261414 | J23: 52.96097263 | K23: 54.379 | L23: 55.796 | M23: 57.21423257 | N23: 61.87136532 | O23: 51.97801028 | P23: 60.77779572 | Q23: 66.60507704 | R23: 63.22424155 | S23: 64.33595387 | T23: 65.12256192 | U23: 65.45988044 | V23: 66.42265784 | W23: 68.28622931 | X23: 71.15045998 | Y23: 73.09345601 | Z23: 71.98049918 | AA23: 76.00647527 | AB23: 75.89507695 | AC23: 78.004775 | AD23: 78.43023116 | AE23: 80.7667232 | AF23: 82.63268213 | AG23: 85.03425363
A24: 16 | B24: 48 | C24: 1 | D24: =[4]Strompreise!D19 -> 0 | E24: =[4]Strompreise!G19 -> 26.0798369 | F24: =[4]Strompreise!H19 -> 54.80914579 | G24: =[4]Strompreise!I19 -> 63.37946464 | H24: 67.31867941 | I24: 69.61801837 | J24: 69.95766007 | K24: 66.805 | L24: 63.653 | M24: 60.5000538 | N24: 63.8490656 | O24: 53.91121962 | P24: 62.97031997 | Q24: 69.37374056 | R24: 71.3509823 | S24: 72.57818624 | T24: 72.62229908 | U24: 74.75810888 | V24: 75.85531859 | W24: 74.69405 | X24: 75.93190607 | Y24: 80.5374321 | Z24: 78.5317037 | AA24: 82.62890638 | AB24: 88.76216125 | AC24: 88.94289435 | AD24: 87.50911784 | AE24: 91.151705 | AF24: 92.75415272 | AG24: 95.309957
A25: 17 | B25: 64 | C25: 1 | D25: =[4]Strompreise!D20 -> 0 | E25: =[4]Strompreise!G20 -> 31.50115021 | F25: =[4]Strompreise!H20 -> 49.03183199 | G25: =[4]Strompreise!I20 -> 53.33534136 | H25: 62.03489168 | I25: 64.88971839 | J25: 65.22889761 | K25: 64.133 | L25: 63.036 | M25: 61.93985426 | N25: 101.667776 | O25: 55.57821482 | P25: 67.34851243 | Q25: 69.91071424 | R25: 73.7236478 | S25: 71.857025 | T25: 73.02749933 | U25: 75.71356278 | V25: 77.19269188 | W25: 81.87438968 | X25: 80.98032284 | Y25: 81.87550675 | Z25: 82.84255514 | AA25: 86.68583222 | AB25: 94.15564556 | AC25: 97.92312146 | AD25: 99.42864032 | AE25: 101.9324707 | AF25: 101.5357964 | AG25: 103.8334317
A26: 18 | B26: 180 | C26: 0.773 | D26: =[4]Strompreise!D21 -> 0 | E26: =[4]Strompreise!G21 -> 34.89452925 | F26: =[4]Strompreise!H21 -> 52.68356492 | G26: =[4]Strompreise!I21 -> 61.62744467 | H26: 36.68142867 | I26: 38.40160138 | J26: 39.61254237 | K26: 40.904 | L26: 42.195 | M26: 43.48606676 | N26: 42.80887861 | O26: 42.63671439 | P26: 45.98494914 | Q26: 49.89355149 | R26: 51.60044694 | S26: 52.44669076 | T26: 53.82808644 | U26: 53.30570726 | V26: 53.41324206 | W26: 50.8206027 | X26: 58.03656404 | Y26: 60.48084941 | Z26: 61.35350661 | AA26: 65.70845883 | AB26: 67.86251061 | AC26: 70.25521635 | AD26: 70.5534089 | AE26: 71.86935167 | AF26: 72.39314313 | AG26: 74.40289864
A27: 19 | B27: 90 | C27: 0.846 | D27: =[4]Strompreise!D22 -> 0 | E27: =[4]Strompreise!G22 -> 29.64838014 | F27: =[4]Strompreise!H22 -> 60.7060868 | G27: =[4]Strompreise!I22 -> 70.4422212 | H27: 33.10385547 | I27: 34.64697238 | J27: 35.74018362 | K27: 39.644 | L27: 43.548 | M27: 47.45238114 | N27: 46.48965208 | O27: 46.88511994 | P27: 52.82109402 | Q27: 53.98919631 | R27: 56.83546183 | S27: 58.17019291 | T27: 59.689521 | U27: 59.02786316 | V27: 59.28329691 | W27: 60.09118149 | X27: 63.99118091 | Y27: 67.69493906 | Z27: 68.9151945 | AA27: 73.62083436 | AB27: 77.04666934 | AC27: 79.48666557 | AD27: 80.24011937 | AE27: 79.63103986 | AF27: 80.41931121 | AG27: 83.03454316
A28: 20 | B28: 90 | C28: 1 | D28: =[4]Strompreise!D23 -> 0 | E28: =[4]Strompreise!G23 -> 52.29922057 | F28: =[4]Strompreise!H23 -> 68.56284034 | G28: =[4]Strompreise!I23 -> 81.61495803 | H28: 52.18704024 | I28: 54.43719957 | J28: 56.44241461 | K28: 57.302 | L28: 58.161 | M28: 59.01984416 | N28: 57.45673769 | O28: 57.95323921 | P28: 64.01995856 | Q28: 62.25908954 | R28: 68.25416672 | S28: 69.87390344 | T28: 68.46213644 | U28: 71.60870075 | V28: 72.09440193 | W28: 71.80947958 | X28: 77.45255484 | Y28: 76.68450638 | Z28: 78.78636385 | AA28: 83.36221486 | AB28: 84.8513552 | AC28: 87.33082465 | AD28: 89.17880143 | AE28: 91.59897708 | AF28: 91.49353556 | AG28: 93.53875082
A29: 21 | B29: 90 | C29: 1 | D29: =[4]Strompreise!D24 -> 1 | E29: =[4]Strompreise!G24 -> 59.75990554 | F29: =[4]Strompreise!H24 -> 73.09778214 | G29: =[4]Strompreise!I24 -> 100.4040144 | H29: 81.32063366 | I29: 88.40872144 | J29: 94.04957528 | K29: 82.982 | L29: 71.914 | M29: 60.8455305 | N29: 57.99731648 | O29: 56.75097302 | P29: 61.48784829 | Q29: 67.34784872 | R29: 69.76806344 | S29: 70.34982238 | T29: 71.52336342 | U29: 73.12408008 | V29: 72.64996708 | W29: 74.26474016 | X29: 77.91850568 | Y29: 79.29309536 | Z29: 80.29026928 | AA29: 84.0595472 | AB29: 91.6011644 | AC29: 93.27897996 | AD29: 94.0627076 | AE29: 95.19621626 | AF29: 95.77048314 | AG29: 97.59085832
A30: 22 | B30: 90 | C30: 1 | D30: =[4]Strompreise!D25 -> 1 | E30: =[4]Strompreise!G25 -> 58.63042557 | F30: =[4]Strompreise!H25 -> 70.92619823 | G30: =[4]Strompreise!I25 -> 96.3630281 | H30: 81.76830275 | I30: 88.83578195 | J30: 94.69291429 | K30: 82.348 | L30: 70.003 | M30: 57.65868056 | N30: 54.50131592 | O30: 54.4253507 | P30: 58.55866232 | Q30: 61.55850754 | R30: 65.37146168 | S30: 65.06153035 | T30: 65.8023713 | U30: 67.35667309 | V30: 68.5551258 | W30: 70.0634519 | X30: 74.1162461 | Y30: 73.46932882 | Z30: 74.37902474 | AA30: 71.87892071 | AB30: 74.51707515 | AC30: 76.49139392 | AD30: 79.4550938 | AE30: 80.20038655 | AF30: 81.00475104 | AG30: 83.2067072
A31: 23 | B31: 90 | C31: 1 | D31: =[4]Strompreise!D26 -> 1 | E31: =[4]Strompreise!G26 -> 61.03838883 | F31: =[4]Strompreise!H26 -> 70.43731659 | G31: =[4]Strompreise!I26 -> 95.61615324 | H31: 75.5414163 | I31: 82.14528754 | J31: 87.38789102 | K31: 77.253 | L31: 67.118 | M31: 56.9832094 | N31: 55.9330728 | O31: 55.7396825 | P31: 61.886744 | Q31: 63.5385309 | R31: 62.95760879 | S31: 65.2685809 | T31: 66.26663075 | U31: 65.24287808 | V31: 63.76460815 | W31: 63.4118379 | X31: 66.464095 | Y31: 65.98349919 | Z31: 68.7707334 | AA31: 68.9555519 | AB31: 64.33729208 | AC31: 65.47954554 | AD31: 66.86407447 | AE31: 66.80080636 | AF31: 57.57564986 | AG31: 48.8615575
A32: 24 | B32: 135 | C32: 1 | D32: =[4]Strompreise!D27 -> 1 | E32: =[4]Strompreise!G27 -> 50.76188217 | F32: =[4]Strompreise!H27 -> 69.60516037 | G32: =[4]Strompreise!I27 -> 90.52736418 | H32: 66.34409401 | I32: 72.17517256 | J32: 76.66376253 | K32: 70.007 | L32: 63.349 | M32: 56.6920416 | N32: 53.5555361 | O32: 53.44990326 | P32: 60.41617166 | Q32: 65.09276536 | R32: 62.20974896 | S32: 61.61965659 | T32: 62.5147785 | U32: 64.49874107 | V32: 65.13324788 | W32: 66.75574714 | X32: 69.32954145 | Y32: 70.13573603 | Z32: 72.6080124 | AA32: 77.69552228 | AB32: 72.15795528 | AC32: 74.3466722 | AD32: 70.11325151 | AE32: 70.57953 | AF32: 70.5371456 | AG32: 70.44047768
A33: 25 | B33: 135 | C33: 1 | D33: =[4]Strompreise!D28 -> 1 | E33: =[4]Strompreise!G28 -> 42.69850737 | F33: =[4]Strompreise!H28 -> 69.00059814 | G33: =[4]Strompreise!I28 -> 90.13708548 | H33: 67.08412229 | I33: 73.14356562 | J33: 77.47318487 | K33: 71.542 | L33: 65.611 | M33: 59.67957836 | N33: 56.36132891 | O33: 56.29187694 | P33: 63.2129426 | Q33: 62.53485596 | R33: 67.58995664 | S33: 68.38164715 | T33: 67.9672428 | U33: 72.22078331 | V33: 70.6255621 | W33: 72.379411 | X33: 76.3173298 | Y33: 75.85032985 | Z33: 77.83458176 | AA33: 81.84756738 | AB33: 83.49603808 | AC33: 85.6983808 | AD33: 86.94110702 | AE33: 89.1756368 | AF33: 88.81579712 | AG33: 90.95190284
A34: 26 | B34: 90 | C34: 1 | D34: =[4]Strompreise!D29 -> 0 | E34: =[4]Strompreise!G29 -> 55.6640484 | F34: =[4]Strompreise!H29 -> 70.04198259 | G34: =[4]Strompreise!I29 -> 83.80255039 | H34: 56.32948069 | I34: 58.81556282 | J34: 60.93360447 | K34: 60.622 | L34: 60.311 | M34: 60.0002793 | N34: 59.2398 | O34: 60.30938832 | P34: 65.84559967 | Q34: 66.31803004 | R34: 70.16779424 | S34: 72.99602104 | T34: 73.87476266 | U34: 81.764456 | V34: 78.58188477 | W34: 82.9585588 | X34: 88.51689312 | Y34: 114.1197651 | Z34: 102.5458735 | AA34: 105.8313481 | AB34: 105.7291334 | AC34: 101.1997499 | AD34: 109.3029667 | AE34: 101.1761394 | AF34: 104.6301188 | AG34: 106.574842
A35: 27 | B35: 90 | C35: 1 | D35: =[4]Strompreise!D30 -> 0 | E35: =[4]Strompreise!G30 -> 35.11287986 | F35: =[4]Strompreise!H30 -> 53.40077652 | G35: =[4]Strompreise!I30 -> 64.76345939 | H35: 49.39543793 | I35: 51.58325093 | J35: 53.47769075 | K35: 55.108 | L35: 56.739 | M35: 58.36914335 | N35: 56.93905975 | O35: 57.63169586 | P35: 64.39144208 | Q35: 63.0768116 | R35: 69.1157102 | S35: 70.90097324 | T35: 71.0747183 | U35: 74.27007092 | V35: 75.39022037 | W35: 72.95499878 | X35: 78.94995762 | Y35: 81.4356542 | Z35: 84.27680331 | AA35: 88.93052704 | AB35: 95.92137216 | AC35: 95.93591092 | AD35: 97.1363105 | AE35: 98.59811168 | AF35: 99.4265024 | AG35: 102.1041917
A36: 28 | B36: 108 | C36: 0.804 | D36: =[4]Strompreise!D31 -> 0 | E36: =[4]Strompreise!G31 -> 13.53458005 | F36: =[4]Strompreise!H31 -> 28.86239293 | G36: =[4]Strompreise!I31 -> 31.65445132 | H36: 34.05451316 | I36: 35.28638675 | J36: 36.84023197 | K36: 39.134 | L36: 41.427 | M36: 43.72033894 | N36: 41.83528355 | O36: 42.64786084 | P36: 45.87174674 | Q36: 47.64323139 | R36: 47.795183 | S36: 50.04324467 | T36: 49.37837125 | U36: 50.28184972 | V36: 51.77007038 | W36: 53.37146455 | X36: 56.59117489 | Y36: 57.84971725 | Z36: 57.40172099 | AA36: 61.72905372 | AB36: 63.74883877 | AC36: 63.67147284 | AD36: 64.92010357 | AE36: 66.76954075 | AF36: 70.60726385 | AG36: 70.64303472
A37: 29 | B37: 54 | C37: 0.349 | D37: =[4]Strompreise!D32 -> 0 | E37: =[4]Strompreise!G32 -> 20.35702899 | F37: =[4]Strompreise!H32 -> 47.18669644 | G37: =[4]Strompreise!I32 -> 56.53182114 | H37: 32.82536232 | I37: 34.44195792 | J37: 35.5921877 | K37: 29.774 | L37: 23.955 | M37: 18.13694819 | N37: 15.55741319 | O37: 14.6528469 | P37: 16.24731696 | Q37: 16.58100396 | R37: 18.44591098 | S37: 18.92195272 | T37: 17.00295948 | U37: 17.83058712 | V37: 16.96209237 | W37: 17.87143509 | X37: 18.0374785 | Y37: 19.80651311 | Z37: 19.3092765 | AA37: 19.53831862 | AB37: 20.13069779 | AC37: 20.46598323 | AD37: 20.3822293 | AE37: 20.63199382 | AF37: 21.49016751 | AG37: 21.99766946
A38: 30 | B38: 36 | C38: 1 | D38: =[4]Strompreise!D33 -> 0 | E38: =[4]Strompreise!G33 -> 25.01758159 | F38: =[4]Strompreise!H33 -> 48.30490286 | G38: =[4]Strompreise!I33 -> 57.21644001 | H38: 45.22870968 | I38: 47.25530408 | J38: 48.89735579 | K38: 48.657 | L38: 48.417 | M38: 48.17633525 | N38: 44.064985 | O38: 42.83863076 | P38: 50.92311672 | Q38: 46.64954235 | R38: 44.91567924 | S38: 46.49734016 | T38: 43.82774792 | U38: 44.67237808 | V38: 44.83055288 | W38: 45.61392896 | X38: 46.93078424 | Y38: 49.91886569 | Z38: 50.47831043 | AA38: 51.19427318 | AB38: 47.96448933 | AC38: 39.29472843 | AD38: 43.49542691 | AE38: 46.05193833 | AF38: 37.29211488 | AG38: 34.51404842
A39: 31 | B39: 36 | C39: 1 | D39: =[4]Strompreise!D34 -> 0 | E39: =[4]Strompreise!G34 -> 25.05176469 | F39: =[4]Strompreise!H34 -> 48.44560364 | G39: =[4]Strompreise!I34 -> 54.23245795 | H39: 48.31520537 | I39: 50.42981066 | J39: 52.10089677 | K39: 50.652 | L39: 49.203 | M39: 47.75448135 | N39: 44.40176658 | O39: 40.6365884 | P39: 44.450345 | Q39: 43.40499456 | R39: 41.04881861 | S39: 41.84064925 | T39: 41.12588721 | U39: 39.4377641 | V39: 34.33382592 | W39: 29.51379136 | X39: 26.14365114 | Y39: 26.33706044 | Z39: 29.5265529 | AA39: 26.91087662 | AB39: 27.24816148 | AC39: 27.4106589 | AD39: 27.54826963 | AE39: 40.8771434 | AF39: 41.75423225 | AG39: 59.01256192
A40: 32 | B40: 72 | C40: 1 | D40: =[4]Strompreise!D35 -> 0 | E40: =[4]Strompreise!G35 -> 24.42850907 | F40: =[4]Strompreise!H35 -> 47.69471192 | G40: =[4]Strompreise!I35 -> 47.17386692 | H40: 38.7529808 | I40: 40.48001141 | J40: 41.85127468 | K40: 43.663 | L40: 45.475 | M40: 47.28668076 | N40: 44.1812528 | O40: 40.5236717 | P40: 44.15605076 | Q40: 43.2711776 | R40: 42.97573886 | S40: 43.11987461 | T40: 43.5265697 | U40: 44.34268493 | V40: 44.6747871 | W40: 45.08293625 | X40: 46.57225124 | Y40: 49.27275203 | Z40: 50.28548501 | AA40: 51.08064645 | AB40: 52.96708554 | AC40: 52.88621447 | AD40: 45.69206345 | AE40: 42.92041134 | AF40: 56.97788195 | AG40: 42.4287405
A41: 33 | B41: 54 | C41: 1 | D41: =[4]Strompreise!D36 -> 0 | E41: =[4]Strompreise!G36 -> 20.65987168 | F41: =[4]Strompreise!H36 -> 47.92081965 | G41: =[4]Strompreise!I36 -> 57.17088151 | H41: 42.35591015 | I41: 43.75964272 | J41: 45.8601222 | K41: 48.781 | L41: 51.701 | M41: 54.621792 | N41: 45.6229092 | O41: 47.73892618 | P41: 55.91350352 | Q41: 57.87441704 | R41: 53.18339583 | S41: 57.80239826 | T41: 50.76018103 | U41: 53.77372876 | V41: 54.37079001 | W41: 56.37214657 | X41: 52.79887718 | Y41: 59.95225492 | Z41: 56.91648521 | AA41: 56.72540915 | AB41: 59.07198896 | AC41: 59.67509216 | AD41: 61.945538 | AE41: 64.07036922 | AF41: 65.97431496 | AG41: 65.0540778
A42: 34 | B42: 72 | C42: 1 | D42: =[4]Strompreise!D37 -> 0 | E42: =[4]Strompreise!G37 -> 28.6718851 | F42: =[4]Strompreise!H37 -> 45.21397997 | G42: =[4]Strompreise!I37 -> 49.06555336 | H42: 46.14640999 | I42: 47.54005422 | J42: 49.79004335 | K42: 51.834 | L42: 53.878 | M42: 55.9216865 | N42: 54.076475 | O42: 53.7834082 | P42: 61.6220625 | Q42: 65.33950626 | R42: 67.95149321 | S42: 69.13544035 | T42: 70.208625 | U42: 69.51034951 | V42: 69.86021928 | W42: 68.04049309 | X42: 71.51215534 | Y42: 77.0514545 | Z42: 73.90130441 | AA42: 79.026556 | AB42: 86.6840945 | AC42: 88.58013528 | AD42: 90.22907621 | AE42: 82.01329389 | AF42: 93.02549029 | AG42: 95.68287838
A43: 35 | B43: 180 | C43: 0.767 | D43: =[4]Strompreise!D38 -> 0 | E43: =[4]Strompreise!G38 -> 20.62643523 | F43: =[4]Strompreise!H38 -> 42.85111725 | G43: =[4]Strompreise!I38 -> 48.02386525 | H43: 27.21963195 | I43: 27.49054016 | J43: 27.887484 | K43: 29.622 | L43: 31.356 | M43: 33.08980527 | N43: 28.00859223 | O43: 32.79431666 | P43: 33.26327723 | Q43: 33.64203923 | R43: 32.6042213 | S43: 33.28384182 | T43: 33.8341815 | U43: 34.50906196 | V43: 35.38441578 | W43: 35.24715058 | X43: 37.68568366 | Y43: 37.55783152 | Z43: 38.905399 | AA43: 41.57126153 | AB43: 43.25527254 | AC43: 43.99828192 | AD43: 43.94150191 | AE43: 44.48160876 | AF43: 45.9390008 | AG43: 47.23723603
A44: 36 | B44: 90 | C44: 0.825 | D44: =[4]Strompreise!D39 -> 0 | E44: =[4]Strompreise!G39 -> 22.84967307 | F44: =[4]Strompreise!H39 -> 47.14440538 | G44: =[4]Strompreise!I39 -> 57.46849237 | H44: 21.3422968 | I44: 21.43596156 | J44: 21.69807181 | K44: 26.246 | L44: 30.793 | M44: 35.34063425 | N44: 29.93724629 | O44: 34.30403962 | P44: 35.38303118 | Q44: 35.89432461 | R44: 34.90236143 | S44: 35.6453792 | T44: 34.99737243 | U44: 35.49620004 | V44: 35.90823944 | W44: 36.2514699 | X44: 38.21860824 | Y44: 39.13970872 | Z44: 40.47319907 | AA44: 43.96630475 | AB44: 45.97093043 | AC44: 46.58144349 | AD44: 46.87327491 | AE44: 47.46252967 | AF44: 50.31686534 | AG44: 50.61025759
A45: 37 | B45: 90 | C45: 1 | D45: =[4]Strompreise!D40 -> 0 | E45: =[4]Strompreise!G40 -> 30.72491725 | F45: =[4]Strompreise!H40 -> 53.92246628 | G45: =[4]Strompreise!I40 -> 66.29816687 | H45: 44.3733477 | I45: 44.58633106 | J45: 44.23301869 | K45: 44.788 | L45: 45.342 | M45: 45.89715184 | N45: 38.77626242 | O45: 45.0829652 | P45: 45.76408099 | Q45: 49.7871097 | R45: 46.15960486 | S45: 48.53663952 | T45: 44.61986336 | U45: 45.90521982 | V45: 45.8537162 | W45: 47.30375508 | X45: 55.373177 | Y45: 52.7187835 | Z45: 53.5983622 | AA45: 55.13614155 | AB45: 56.7595264 | AC45: 57.63428886 | AD45: 57.9351808 | AE45: 58.71182638 | AF45: 60.70644185 | AG45: 62.4144008
A46: 38 | B46: 90 | C46: 1 | D46: =[4]Strompreise!D41 -> 1 | E46: =[4]Strompreise!G41 -> 38.940857 | F46: =[4]Strompreise!H41 -> 64.68926611 | G46: =[4]Strompreise!I41 -> 81.25915716 | H46: 61.38860171 | I46: 66.44375609 | J46: 70.75901721 | K46: 63.607 | L46: 56.454 | M46: 49.302134 | N46: 42.72963332 | O46: 46.99475863 | P46: 50.38402852 | Q46: 52.19164523 | R46: 48.79927184 | S46: 52.14903715 | T46: 45.28435297 | U46: 46.1957613 | V46: 46.71159992 | W46: 48.03753022 | X46: 50.28965492 | Y46: 50.93565508 | Z46: 51.89676627 | AA46: 55.65014615 | AB46: 57.10033408 | AC46: 58.02217676 | AD46: 58.2067991 | AE46: 58.96295192 | AF46: 61.31448386 | AG46: 62.77304723
A47: 39 | B47: 90 | C47: 1 | D47: =[4]Strompreise!D42 -> 1 | E47: =[4]Strompreise!G42 -> 39.46351043 | F47: =[4]Strompreise!H42 -> 65.02859821 | G47: =[4]Strompreise!I42 -> 81.22343277 | H47: 76.05189733 | I47: 82.18905041 | J47: 87.18136894 | K47: 73.673 | L47: 60.164 | M47: 46.65596315 | N47: 40.90974778 | O47: 43.6074315 | P47: 43.6552136 | Q47: 44.83262808 | R47: 42.77575332 | S47: 44.48601444 | T47: 42.89080789 | U47: 43.528058 | V47: 43.66365336 | W47: 44.94107555 | X47: 48.13182833 | Y47: 48.46997669 | Z47: 50.11701621 | AA47: 53.7219846 | AB47: 55.16189177 | AC47: 56.8153856 | AD47: 55.7082546 | AE47: 56.49443915 | AF47: 58.84245175 | AG47: 60.32048468
A48: 40 | B48: 90 | C48: 1 | D48: =[4]Strompreise!D43 -> 1 | E48: =[4]Strompreise!G43 -> 39.9752178 | F48: =[4]Strompreise!H43 -> 65.79389819 | G48: =[4]Strompreise!I43 -> 82.35656166 | H48: 71.32490592 | I48: 77.26067588 | J48: 82.01539567 | K48: 70.138 | L48: 58.26 | M48: 46.38171896 | N48: 40.17169103 | O48: 43.363271 | P48: 43.57424048 | Q48: 42.407402 | R48: 41.25834922 | S48: 42.25934112 | T48: 42.64948251 | U48: 43.13150552 | V48: 43.56267095 | W48: 43.67846795 | X48: 46.8629146 | Y48: 47.13547157 | Z48: 49.54262394 | AA48: 52.47729588 | AB48: 36.23132682 | AC48: 34.50609562 | AD48: 38.93034571 | AE48: 33.04836128 | AF48: 33.3391232 | AG48: 29.62091108
A49: 41 | B49: 135 | C49: 1 | D49: =[4]Strompreise!D44 -> 1 | E49: =[4]Strompreise!G44 -> 38.30842612 | F49: =[4]Strompreise!H44 -> 60.01809627 | G49: =[4]Strompreise!I44 -> 81.42054431 | H49: 60.73744935 | I49: 65.69694591 | J49: 69.65781622 | K49: 61.804 | L49: 53.95 | M49: 46.09668488 | N49: 37.1891412 | O49: 43.25967872 | P49: 42.3296254 | Q49: 42.39385904 | R49: 41.72189682 | S49: 42.2064 | T49: 42.51439488 | U49: 43.06401904 | V49: 43.37663948 | W49: 44.411507 | X49: 47.72898587 | Y49: 48.1785596 | Z49: 49.8656576 | AA49: 53.07376232 | AB49: 44.264384 | AC49: 43.45022153 | AD49: 40.22235095 | AE49: 40.16584541 | AF49: 40.97938915 | AG49: 39.40413579
A50: 42 | B50: 135 | C50: 1 | D50: =[4]Strompreise!D45 -> 1 | E50: =[4]Strompreise!G45 -> 27.78824858 | F50: =[4]Strompreise!H45 -> 59.35686664 | G50: =[4]Strompreise!I45 -> 79.90907544 | H50: 49.86137617 | I50: 54.09538774 | J50: 57.61138092 | K50: 53.814 | L50: 50.017 | M50: 46.22052818 | N50: 39.57581601 | O50: 45.55205435 | P50: 49.18087504 | Q50: 44.29003384 | R50: 43.35169241 | S50: 44.19411355 | T50: 44.91299138 | U50: 45.48264383 | V50: 45.37425946 | W50: 46.98150044 | X50: 49.7476864 | Y50: 50.23815152 | Z50: 51.3139196 | AA50: 54.57407092 | AB50: 54.58982306 | AC50: 55.70206445 | AD50: 55.5674005 | AE50: 56.32327076 | AF50: 58.56122648 | AG50: 60.13726552
A51: 43 | B51: 90 | C51: 1 | D51: =[4]Strompreise!D46 -> 0 | E51: =[4]Strompreise!G46 -> 32.09352308 | F51: =[4]Strompreise!H46 -> 56.42856831 | G51: =[4]Strompreise!I46 -> 67.29667472 | H51: 48.93431074 | I51: 49.42209667 | J51: 49.53274125 | K51: 50.064 | L51: 50.596 | M51: 51.12716654 | N51: 39.2576471 | O51: 47.4300812 | P51: 50.57547898 | Q51: 52.60645678 | R51: 51.68854184 | S51: 53.88093629 | T51: 47.06222688 | U51: 47.00917185 | V51: 50.8656456 | W51: 54.08653649 | X51: 59.92452114 | Y51: 54.80511404 | Z51: 59.59272125 | AA51: 57.90441465 | AB51: 60.0306582 | AC51: 61.02689525 | AD51: 60.0362855 | AE51: 60.24638036 | AF51: 63.19095008 | AG51: 64.06436454
A52: 44 | B52: 90 | C52: 1 | D52: =[4]Strompreise!D47 -> 0 | E52: =[4]Strompreise!G47 -> 20.79212958 | F52: =[4]Strompreise!H47 -> 44.67375179 | G52: =[4]Strompreise!I47 -> 52.03838745 | H52: 46.86789795 | I52: 47.41873772 | J52: 47.608319 | K52: 50.09 | L52: 52.573 | M52: 55.05478198 | N52: 43.4111011 | O52: 53.98461398 | P52: 57.88640624 | Q52: 60.13762823 | R52: 59.94894852 | S52: 63.19330926 | T52: 60.73859564 | U52: 65.03268143 | V52: 65.86323518 | W52: 67.73922432 | X52: 73.1744852 | Y52: 73.83951584 | Z52: 75.55957357 | AA52: 81.06032132 | AB52: 85.41937331 | AC52: 87.82748856 | AD52: 88.75348344 | AE52: 90.71506525 | AF52: 91.9475507 | AG52: 94.51791714
A53: 45 | B53: 108 | C53: 0.7 | D53: =[4]Strompreise!D48 -> 0 | E53: =[4]Strompreise!G48 -> 6.931630744 | F53: =[4]Strompreise!H48 -> 16.61203398 | G53: =[4]Strompreise!I48 -> 14.45203508 | H53: 23.88595732 | I53: 25.01637125 | J53: 26.21016941 | K53: 27.256 | L53: 28.301 | M53: 29.34709946 | N53: 25.14344 | O53: 29.01370835 | P53: 29.00916102 | Q53: 28.81094318 | R53: 28.61198354 | S53: 29.13692814 | T53: 29.3647662 | U53: 29.86347324 | V53: 29.69230105 | W53: 30.23235648 | X53: 32.05015402 | Y53: 32.48683379 | Z53: 33.1432951 | AA53: 36.12445082 | AB53: 37.64126334 | AC53: 38.19665898 | AD53: 38.20894656 | AE53: 39.05711203 | AF53: 40.57148774 | AG53: 41.73924073
A54: 46 | B54: 54 | C54: 0.252 | D54: =[4]Strompreise!D49 -> 0 | E54: =[4]Strompreise!G49 -> 18.97692944 | F54: =[4]Strompreise!H49 -> 44.68839833 | G54: =[4]Strompreise!I49 -> 44.93911891 | H54: 21.59045196 | I54: 23.20968318 | J54: 24.3562591 | K54: 19.348 | L54: 14.339 | M54: 9.33039226 | N54: 8.730696759 | O54: 9.810363651 | P54: 10.29260559 | Q54: 10.20876884 | R54: 10.00804688 | S54: 10.18743889 | T54: 10.23748157 | U54: 10.4090564 | V54: 10.45956909 | W54: 9.682245418 | X54: 9.662703259 | Y54: 8.827786578 | Z54: 9.041899144 | AA54: 10.28948259 | AB54: 9.821913943 | AC54: 11.30952403 | AD54: 10.09633545 | AE54: 10.40555559 | AF54: 13.78748478 | AG54: 14.05346494
A55: 47 | B55: 36 | C55: 1 | D55: =[4]Strompreise!D50 -> 0 | E55: =[4]Strompreise!G50 -> 21.18632624 | F55: =[4]Strompreise!H50 -> 46.34304102 | G55: =[4]Strompreise!I50 -> 48.28960505 | H55: 39.13142895 | I55: 41.05563454 | J55: 43.15362872 | K55: 42.589 | L55: 42.025 | M55: 41.46085324 | N55: 35.57258414 | O55: 40.2357741 | P55: 41.1461443 | Q55: 40.96485476 | R55: 39.87250125 | S55: 40.22455911 | T55: 39.25539193 | U55: 37.01930159 | V55: 37.63846388 | W55: 31.4273672 | X55: 29.57218436 | Y55: 29.42085764 | Z55: 29.65398056 | AA55: 29.62085472 | AB55: 27.26492624 | AC55: 27.42388376 | AD55: 27.56445619 | AE55: 27.88662164 | AF55: 28.0907808 | AG55: 28.45521368
A56: 48 | B56: 36 | C56: 1 | D56: =[4]Strompreise!D51 -> 0 | E56: =[4]Strompreise!G51 -> 21.4966466 | F56: =[4]Strompreise!H51 -> 46.94271748 | G56: =[4]Strompreise!I51 -> 54.96910173 | H56: 45.55460321 | I56: 47.37365244 | J56: 49.86024152 | K56: 47.072 | L56: 44.285 | M56: 41.49694694 | N56: 35.57684198 | O56: 37.78385 | P56: 27.97382048 | Q56: 26.2047208 | R56: 27.672937 | S56: 27.40044465 | T56: 24.87771728 | U56: 25.49129972 | V56: 25.8053504 | W56: 29.07505816 | X56: 25.98158656 | Y56: 26.2506247 | Z56: 26.73135158 | AA56: 26.84708446 | AB56: 30.36997268 | AC56: 29.7942782 | AD56: 29.70503622 | AE56: 40.8607076 | AF56: 41.6971349 | AG56: 42.5911245
A57: 49 | B57: 72 | C57: 1 | D57: =[4]Strompreise!D52 -> 0 | E57: =[4]Strompreise!G52 -> 19.71112011 | F57: =[4]Strompreise!H52 -> 45.11208881 | G57: =[4]Strompreise!I52 -> 54.12258156 | H57: 35.68820109 | I57: 37.40449312 | J57: 39.11121307 | K57: 39.737 | L57: 40.363 | M57: 40.98867424 | N57: 35.3251725 | O57: 39.6485139 | P57: 38.8243865 | Q57: 37.78219376 | R57: 32.53809416 | S57: 30.72125256 | T57: 28.70214854 | U57: 28.37712128 | V57: 29.94605432 | W57: 25.94452736 | X57: 26.22059104 | Y57: 29.7252596 | Z57: 25.810603 | AA57: 25.95487406 | AB57: 25.90375812 | AC57: 26.22454064 | AD57: 26.27442166 | AE57: 26.5678487 | AF57: 26.69174057 | AG57: 27.9056594
A58: 50 | B58: 54 | C58: 1 | D58: =[4]Strompreise!D53 -> 0 | E58: =[4]Strompreise!G53 -> 19.39033302 | F58: =[4]Strompreise!H53 -> 44.90648174 | G58: =[4]Strompreise!I53 -> 53.83675752 | H58: 35.96647481 | I58: 37.01515198 | J58: 38.96279134 | K58: 39.822 | L58: 40.682 | M58: 41.54172 | N58: 35.9188 | O58: 40.99158016 | P58: 41.85823234 | Q58: 41.3298488 | R58: 40.79586656 | S58: 41.14433889 | T58: 41.43942635 | U58: 41.97467432 | V58: 42.04797725 | W58: 43.05497003 | X58: 45.48731456 | Y58: 46.02424576 | Z58: 47.7488405 | AA58: 42.596426 | AB58: 50.87464763 | AC58: 50.88400664 | AD58: 47.0216107 | AE58: 55.86210725 | AF58: 48.1317777 | AG58: 57.7884615
A59: 51 | B59: 72 | C59: 1 | D59: =[4]Strompreise!D54 -> 0 | E59: =[4]Strompreise!G54 -> 17.97073334 | F59: =[4]Strompreise!H54 -> 34.57381989 | G59: =[4]Strompreise!I54 -> 41.38619279 | H59: 40.31630285 | I59: 40.97677509 | J59: 42.67378793 | K59: 42.572 | L59: 42.471 | M59: 42.36916268 | N59: 36.27180072 | O59: 41.64073991 | P59: 42.2938 | Q59: 42.30069575 | R59: 41.16159524 | S59: 42.18178142 | T59: 42.3643625 | U59: 42.99687624 | V59: 43.12294454 | W59: 44.24115555 | X59: 47.51482651 | Y59: 46.97625244 | Z59: 47.83124894 | AA59: 51.9210536 | AB59: 54.0196 | AC59: 54.7395611 | AD59: 54.9564434 | AE59: 55.8149312 | AF59: 58.01259118 | AG59: 59.65913576
A60: 52 | B60: 180 | C60: 0.6 | D60: =[4]Strompreise!D55 -> 0 | E60: =[4]Strompreise!G55 -> 18.40116187 | F60: =[4]Strompreise!H55 -> 38.92073057 | G60: =[4]Strompreise!I55 -> 48.09606771 | H60: 25.33477022 | I60: 26.31868406 | J60: 26.53544756 | K60: 26.164 | L60: 25.793 | M60: 25.42125763 | N60: 21.74218197 | O60: 24.87962176 | P60: 25.37368239 | Q60: 25.49912436 | R60: 24.8626858 | S60: 25.27506629 | T60: 25.45524 | U60: 25.82130188 | V60: 26.09362915 | W60: 26.72823257 | X60: 28.76686976 | Y60: 28.58634255 | Z60: 29.33062159 | AA60: 31.77556992 | AB60: 33.20823965 | AC60: 33.58764 | AD60: 33.75445055 | AE60: 34.26950981 | AF60: 35.67396361 | AG60: 36.4479546
A61: 53 | B61: 90 | C61: 0.827 | D61: =[4]Strompreise!D56 -> 0 | E61: =[4]Strompreise!G56 -> 21.63960078 | F61: =[4]Strompreise!H56 -> 46.6804778 | G61: =[4]Strompreise!I56 -> 48.17471696 | H61: 20.36442089 | I61: 20.89781731 | J61: 21.31388594 | K61: 25.887 | L61: 30.461 | M61: 35.03438769 | N61: 29.71169852 | O61: 34.27861631 | P61: 34.92566693 | Q61: 35.0832706 | R61: 34.23558278 | S61: 34.73280559 | T61: 34.93103166 | U61: 35.47292833 | V61: 35.92063269 | W61: 36.78839847 | X61: 39.24173919 | Y61: 38.51313007 | Z61: 39.4463162 | AA61: 42.79472651 | AB61: 44.43381899 | AC61: 45.30043869 | AD61: 45.39556425 | AE61: 45.82211587 | AF61: 48.04409864 | AG61: 49.37531469
A62: 54 | B62: 90 | C62: 1 | D62: =[4]Strompreise!D57 -> 0 | E62: =[4]Strompreise!G57 -> 24.08210601 | F62: =[4]Strompreise!H57 -> 46.81956186 | G62: =[4]Strompreise!I57 -> 50.42911857 | H62: 37.55103994 | I62: 38.28189615 | J62: 39.40661841 | K62: 40.512 | L62: 41.616 | M62: 42.72140648 | N62: 36.61948972 | O62: 41.68766104 | P62: 42.69124199 | Q62: 41.78275031 | R62: 41.36006531 | S62: 42.1690322 | T62: 42.44124372 | U62: 43.58427521 | V62: 43.511234 | W62: 43.27389722 | X62: 45.69866912 | Y62: 46.26067184 | Z62: 47.8647945 | AA62: 51.47267402 | AB62: 53.30372134 | AC62: 54.51367473 | AD62: 54.93481479 | AE62: 55.63272601 | AF62: 57.89993948 | AG62: 59.5541391
A63: 55 | B63: 90 | C63: 1 | D63: =[4]Strompreise!D58 -> 1 | E63: =[4]Strompreise!G58 -> 27.10652525 | F63: =[4]Strompreise!H58 -> 55.1324279 | G63: =[4]Strompreise!I58 -> 76.71703775 | H63: 62.33577703 | I63: 67.60166059 | J63: 72.3298826 | K63: 62.842 | L63: 53.354 | M63: 43.86538763 | N63: 37.39360524 | O63: 44.33538239 | P63: 43.87930716 | Q63: 44.97293357 | R63: 43.67140315 | S63: 43.79218154 | T63: 42.7294907 | U63: 43.68404552 | V63: 43.77150767 | W63: 45.65832572 | X63: 47.0302762 | Y63: 46.67363232 | Z63: 47.92806948 | AA63: 51.76483156 | AB63: 53.8881142 | AC63: 54.81306506 | AD63: 55.36574516 | AE63: 56.1819 | AF63: 58.3814112 | AG63: 60.0128045
A64: 56 | B64: 90 | C64: 1 | D64: =[4]Strompreise!D59 -> 1 | E64: =[4]Strompreise!G59 -> 28.81349065 | F64: =[4]Strompreise!H59 -> 56.57151742 | G64: =[4]Strompreise!I59 -> 78.41918894 | H64: 74.94856 | I64: 81.08632285 | J64: 86.60293664 | K64: 72.992 | L64: 59.382 | M64: 45.77105338 | N64: 37.45283969 | O64: 42.9562871 | P64: 44.85416482 | Q64: 43.01107439 | R64: 41.82226286 | S64: 42.736808 | T64: 43.4709875 | U64: 43.93975936 | V64: 44.18665914 | W64: 43.3945478 | X64: 46.07875157 | Y64: 46.87374332 | Z64: 47.90208161 | AA64: 51.8115572 | AB64: 53.962217 | AC64: 54.86427031 | AD64: 55.31834112 | AE64: 56.13727736 | AF64: 47.77445112 | AG64: 42.53627972
A65: 57 | B65: 90 | C65: 1 | D65: =[4]Strompreise!D60 -> 1 | E65: =[4]Strompreise!G60 -> 27.54169936 | F65: =[4]Strompreise!H60 -> 56.71148391 | G65: =[4]Strompreise!I60 -> 79.57858377 | H65: 72.22151887 | I65: 78.27486133 | J65: 83.40913633 | K65: 70.684 | L65: 57.96 | M65: 45.23485044 | N65: 37.78961744 | O65: 41.8955193 | P65: 42.39093408 | Q65: 42.74656003 | R65: 41.48903831 | S65: 42.3696371 | T65: 43.3032984 | U65: 43.26147473 | V65: 43.87600191 | W65: 44.0132632 | X65: 46.23080222 | Y65: 46.4929603 | Z65: 30.2942072 | AA65: 29.93375344 | AB65: 28.38524032 | AC65: 29.11134054 | AD65: 28.79570784 | AE65: 28.08468032 | AF65: 28.10321495 | AG65: 28.47030828
A66: 58 | B66: 135 | C66: 1 | D66: =[4]Strompreise!D61 -> 1 | E66: =[4]Strompreise!G61 -> 26.51737 | F66: =[4]Strompreise!H61 -> 56.19644079 | G66: =[4]Strompreise!I61 -> 76.92507845 | H66: 65.2985967 | I66: 70.50950655 | J66: 75.31116078 | K66: 65.048 | L66: 54.784 | M66: 44.52096782 | N66: 36.93111752 | O66: 41.9369984 | P66: 42.51654236 | Q66: 42.8725105 | R66: 41.92049614 | S66: 42.58316864 | T66: 43.00025275 | U66: 43.4119062 | V66: 44.02469925 | W66: 45.41602421 | X66: 47.24066 | Y66: 48.65489835 | Z66: 48.04630088 | AA66: 33.88676876 | AB66: 31.58077334 | AC66: 31.5585065 | AD66: 31.91197334 | AE66: 30.5684155 | AF66: 29.81934188 | AG66: 32.00675912
A67: 59 | B67: 135 | C67: 1 | D67: =[4]Strompreise!D62 -> 1 | E67: =[4]Strompreise!G62 -> 25.54376802 | F67: =[4]Strompreise!H62 -> 55.83456839 | G67: =[4]Strompreise!I62 -> 70.84722992 | H67: 57.15219651 | I67: 61.96509308 | J67: 65.91602335 | K67: 58.628 | L67: 51.34 | M67: 44.05216944 | N67: 36.71398285 | O67: 44.58622547 | P67: 45.13515112 | Q67: 45.23770864 | R67: 43.8846863 | S67: 45.3550156 | T67: 42.78793158 | U67: 44.12244634 | V67: 44.5846656 | W67: 44.69135628 | X67: 48.44132462 | Y67: 49.66209685 | Z67: 48.35497766 | AA67: 52.19105978 | AB67: 54.2051804 | AC67: 55.25382838 | AD67: 55.22251018 | AE67: 55.92577796 | AF67: 58.30052537 | AG67: 59.9190201
A68: 60 | B68: 90 | C68: 1 | D68: =[4]Strompreise!D63 -> 0 | E68: =[4]Strompreise!G63 -> 26.31551134 | F68: =[4]Strompreise!H63 -> 47.29580078 | G68: =[4]Strompreise!I63 -> 62.55601983 | H68: 48.14557676 | I68: 49.61422139 | J68: 50.28645412 | K68: 48.165 | L68: 46.044 | M68: 43.92305514 | N68: 37.73067235 | O68: 44.91319822 | P68: 45.230978 | Q68: 45.81431045 | R68: 44.40467528 | S68: 44.6791846 | T68: 45.85356379 | U68: 48.43520786 | V68: 47.47475632 | W68: 49.45158704 | X68: 50.80908329 | Y68: 51.50255882 | Z68: 52.60878812 | AA68: 59.88068286 | AB68: 58.3057968 | AC68: 59.10915548 | AD68: 58.69648328 | AE68: 59.3427998 | AF68: 62.12194625 | AG68: 63.28693525
A69: 61 | B69: 90 | C69: 1 | D69: =[4]Strompreise!D64 -> 0 | E69: =[4]Strompreise!G64 -> 20.15467538 | F69: =[4]Strompreise!H64 -> 43.08567152 | G69: =[4]Strompreise!I64 -> 48.51592248 | H69: 45.37524799 | I69: 46.99938928 | J69: 47.60397791 | K69: 49.223 | L69: 50.843 | M69: 52.4621342 | N69: 43.18926218 | O69: 50.9076522 | P69: 55.11365488 | Q69: 56.93053853 | R69: 57.37931999 | S69: 58.871324 | T69: 56.48024516 | U69: 59.12651428 | V69: 61.1628029 | W69: 64.99254994 | X69: 69.8922478 | Y69: 71.36960668 | Z69: 73.42119985 | AA69: 78.48780588 | AB69: 80.94458306 | AC69: 82.70355179 | AD69: 85.01119696 | AE69: 87.230646 | AF69: 90.3947086 | AG69: 94.04672643
A70: 62 | B70: 108 | C70: 0.549 | D70: =[4]Strompreise!D65 -> 0 | E70: =[4]Strompreise!G65 -> 4.532223973 | F70: =[4]Strompreise!H65 -> 10.16672591 | G70: =[4]Strompreise!I65 -> 9.30107376 | H70: 24.3879322 | I70: 25.38877181 | J70: 24.42039671 | K70: 24.013 | L70: 23.606 | M70: 23.19841628 | N70: 19.71684543 | O70: 22.74110881 | P70: 22.69212405 | Q70: 23.07712122 | R70: 22.24375744 | S70: 22.37160875 | T70: 22.40391744 | U70: 22.92780061 | V70: 23.55061705 | W70: 23.19710178 | X70: 22.36102494 | Y70: 23.45501845 | Z70: 22.29538799 | AA70: 27.20034576 | AB70: 23.23979217 | AC70: 29.68726833 | AD70: 28.41184108 | AE70: 27.41052891 | AF70: 24.27651086 | AG70: 28.09911839
A71: 63 | B71: 54 | C71: 0.226 | D71: =[4]Strompreise!D66 -> 0 | E71: =[4]Strompreise!G66 -> 18.66733567 | F71: =[4]Strompreise!H66 -> 44.16425876 | G71: =[4]Strompreise!I66 -> 37.72332554 | H71: 22.20131004 | I71: 22.70652152 | J71: 21.3506868 | K71: 17.359 | L71: 13.368 | M71: 9.37650562 | N71: 8.114287224 | O71: 9.233825194 | P71: 9.382472074 | Q71: 9.366349029 | R71: 8.865884212 | S71: 9.029297092 | T71: 8.639147005 | U71: 9.269225201 | V71: 9.132345487 | W71: 9.080780457 | X71: 7.755118399 | Y71: 7.092255829 | Z71: 7.440311938 | AA71: 8.545677147 | AB71: 6.74691586 | AC71: 8.705069609 | AD71: 7.438444012 | AE71: 7.742402296 | AF71: 7.633033983 | AG71: 7.761979135
A72: 64 | B72: 36 | C72: 1 | D72: =[4]Strompreise!D67 -> 0 | E72: =[4]Strompreise!G67 -> 20.84547186 | F72: =[4]Strompreise!H67 -> 44.74029833 | G72: =[4]Strompreise!I67 -> 47.50963006 | H72: 41.45741964 | I72: 42.55237596 | J72: 42.1888276 | K72: 42.182 | L72: 42.176 | M72: 42.16901961 | N72: 35.9146082 | O72: 41.7665478 | P72: 41.25826652 | Q72: 41.29805366 | R72: 40.3722104 | S72: 40.48820437 | T72: 41.0667471 | U72: 35.74695107 | V72: 29.31662057 | W72: 29.468 | X72: 29.4585136 | Y72: 27.24577847 | Z72: 29.65286236 | AA72: 28.78319292 | AB72: 27.2608 | AC72: 27.4173 | AD72: 27.5602 | AE72: 27.86182067 | AF72: 28.06348624 | AG72: 28.42460355
A73: 65 | B73: 36 | C73: 1 | D73: =[4]Strompreise!D68 -> 0 | E73: =[4]Strompreise!G68 -> 21.38255737 | F73: =[4]Strompreise!H68 -> 46.59423937 | G73: =[4]Strompreise!I68 -> 53.77678268 | H73: 47.59644219 | I73: 49.12972066 | J73: 49.05919291 | K73: 46.692 | L73: 44.325 | M73: 41.95728359 | N73: 35.9194 | O73: 33.1183367 | P73: 36.84320833 | Q73: 30.01585508 | R73: 24.48149605 | S73: 24.58728836 | T73: 25.39645 | U73: 24.96948644 | V73: 25.12323234 | W73: 24.95595808 | X73: 24.76935108 | Y73: 25.01379864 | Z73: 26.6743 | AA73: 31.06748162 | AB73: 37.74525312 | AC73: 38.20848025 | AD73: 39.4401845 | AE73: 40.8691392 | AF73: 41.70572696 | AG73: 42.62843763
A74: 66 | B74: 72 | C74: 1 | D74: =[4]Strompreise!D69 -> 0 | E74: =[4]Strompreise!G69 -> 20.25445689 | F74: =[4]Strompreise!H69 -> 44.77902094 | G74: =[4]Strompreise!I69 -> 53.75221463 | H74: 39.09402372 | I74: 40.66190191 | J74: 40.50734868 | K74: 41.046 | L74: 41.585 | M74: 42.12417356 | N74: 35.91031658 | O74: 41.33999446 | P74: 40.127978 | Q74: 39.70467216 | R74: 37.94631033 | S74: 37.37140288 | T74: 33.7943276 | U74: 30.32527232 | V74: 26.85852775 | W74: 26.31457368 | X74: 28.84510426 | Y74: 26.38292244 | Z74: 26.70174206 | AA74: 26.87471388 | AB74: 27.20772052 | AC74: 27.36413616 | AD74: 27.50715046 | AE74: 27.83718346 | AF74: 27.99713792 | AG74: 28.41632252
A75: 67 | B75: 54 | C75: 1 | D75: =[4]Strompreise!D70 -> 0 | E75: =[4]Strompreise!G70 -> 20.14738811 | F75: =[4]Strompreise!H70 -> 44.74215249 | G75: =[4]Strompreise!I70 -> 53.55796443 | H75: 39.5176099 | I75: 41.18713575 | J75: 41.30291785 | K75: 41.65 | L75: 41.998 | M75: 42.34557812 | N75: 35.91490817 | O75: 41.44695491 | P75: 42.16551686 | Q75: 42.26369568 | R75: 40.3264502 | S75: 41.2764537 | T75: 41.14151678 | U75: 42.260194 | V75: 41.8247624 | W75: 43.02191772 | X75: 45.04606912 | Y75: 40.42692704 | Z75: 41.98774195 | AA75: 44.69796891 | AB75: 38.53095796 | AC75: 40.0127257 | AD75: 41.79762815 | AE75: 46.79561999 | AF75: 41.71177775 | AG75: 41.66037026
A76: 68 | B76: 72 | C76: 1 | D76: =[4]Strompreise!D71 -> 0 | E76: =[4]Strompreise!G71 -> 17.78641085 | F76: =[4]Strompreise!H71 -> 35.41477977 | G76: =[4]Strompreise!I71 -> 41.15926093 | H76: 44.05193191 | I76: 45.67556417 | J76: 46.01828 | K76: 44.803 | L76: 43.588 | M76: 42.3733 | N76: 36.27137252 | O76: 41.8318928 | P76: 42.10113536 | Q76: 42.61688414 | R76: 41.5743348 | S76: 42.67835724 | T76: 42.59675552 | U76: 43.47233797 | V76: 44.428788 | W76: 44.52879254 | X76: 45.989465 | Y76: 46.61003855 | Z76: 47.5498037 | AA76: 51.71559568 | AB76: 53.6711936 | AC76: 54.39697652 | AD76: 54.81434064 | AE76: 54.70375348 | AF76: 57.80761151 | AG76: 59.33271152
A77: 69 | B77: 160 | C77: 0.761 | D77: =[4]Strompreise!D72 -> 0 | E77: =[4]Strompreise!G72 -> 23.9772458 | F77: =[4]Strompreise!H72 -> 48.36262223 | G77: =[4]Strompreise!I72 -> 54.23961766 | H77: 31.69029779 | I77: 32.60804055 | J77: 33.68307889 | K77: 35.9 | L77: 38.118 | M77: 40.33525261 | N77: 32.27030568 | O77: 37.77756044 | P77: 40.30717133 | Q77: 41.71941558 | R77: 42.27432957 | S77: 42.90518396 | T77: 41.54228988 | U77: 42.7688731 | V77: 43.42834242 | W77: 45.04036429 | X77: 47.25223467 | Y77: 49.08881731 | Z77: 50.04959054 | AA77: 56.9619425 | AB77: 59.11429736 | AC77: 61.77724553 | AD77: 62.24595826 | AE77: 64.65405013 | AF77: 65.7467983 | AG77: 68.00097184
A78: 70 | B78: 80 | C78: 0.849 | D78: =[4]Strompreise!D73 -> 0 | E78: =[4]Strompreise!G73 -> 25.07696417 | F78: =[4]Strompreise!H73 -> 54.95184879 | G78: =[4]Strompreise!I73 -> 62.2026098 | H78: 29.64489059 | I78: 30.53258352 | J78: 31.54913248 | K78: 34.299 | L78: 37.049 | M78: 39.79878077 | N78: 35.33722376 | O78: 40.73662793 | P78: 43.63710079 | Q78: 45.12237684 | R78: 45.84558887 | S78: 46.50894623 | T78: 45.35089574 | U78: 46.73906217 | V78: 47.25615173 | W78: 48.60864498 | X78: 53.64799587 | Y78: 52.38175652 | Z78: 53.87872948 | AA78: 60.04361956 | AB78: 68.06097659 | AC78: 71.66610469 | AD78: 70.73671141 | AE78: 71.327405 | AF78: 70.56039753 | AG78: 72.56350873
A79: 71 | B79: 80 | C79: 1 | D79: =[4]Strompreise!D74 -> 0 | E79: =[4]Strompreise!G74 -> 41.79814194 | F79: =[4]Strompreise!H74 -> 60.38957589 | G79: =[4]Strompreise!I74 -> 74.092699 | H79: 57.27385709 | I79: 59.25161141 | J79: 61.36445516 | K79: 59.487 | L79: 57.609 | M79: 55.7307335 | N79: 45.19695095 | O79: 55.808053 | P79: 58.76153056 | Q79: 61.739273 | R79: 62.53067804 | S79: 64.12723706 | T79: 64.02168808 | U79: 66.21340726 | V79: 66.15583476 | W79: 68.554865 | X79: 73.70896693 | Y79: 75.00140246 | Z79: 76.94497997 | AA79: 82.93864896 | AB79: 86.18710328 | AC79: 88.21584452 | AD79: 89.73031592 | AE79: 92.123813 | AF79: 92.38370951 | AG79: 94.97697152
A80: 72 | B80: 80 | C80: 1 | D80: =[4]Strompreise!D75 -> 1 | E80: =[4]Strompreise!G75 -> 49.08863676 | F80: =[4]Strompreise!H75 -> 67.79083202 | G80: =[4]Strompreise!I75 -> 92.47682399 | H80: 76.06142969 | I80: 82.4358787 | J80: 88.50644828 | K80: 77.073 | L80: 65.64 | M80: 54.20660098 | N80: 49.02793108 | O80: 59.15575278 | P80: 59.84494493 | Q80: 62.04862304 | R80: 61.81551416 | S80: 61.08989231 | T80: 63.52739702 | U80: 64.1206756 | V80: 65.56799736 | W80: 67.42957185 | X80: 73.41918168 | Y80: 74.22955376 | Z80: 76.646396 | AA80: 82.25373319 | AB80: 82.88347676 | AC80: 84.96760231 | AD80: 85.65731754 | AE80: 88.46389472 | AF80: 89.63882108 | AG80: 92.10385125
A81: 73 | B81: 80 | C81: 1 | D81: =[4]Strompreise!D76 -> 1 | E81: =[4]Strompreise!G76 -> 47.81589839 | F81: =[4]Strompreise!H76 -> 67.53815477 | G81: =[4]Strompreise!I76 -> 91.21682085 | H81: 81.84313993 | I81: 88.65350214 | J81: 94.97175249 | K81: 81.579 | L81: 68.187 | M81: 54.794612 | N81: 46.0088262 | O81: 57.19523198 | P81: 59.15310618 | Q81: 58.88030336 | R81: 61.2051843 | S81: 62.72519 | T81: 59.98393595 | U81: 63.461025 | V81: 64.76598947 | W81: 62.72206751 | X81: 65.37587997 | Y81: 68.8255964 | Z81: 68.52417254 | AA81: 70.0476494 | AB81: 70.0714957 | AC81: 70.84801154 | AD81: 75.2540486 | AE81: 75.49385239 | AF81: 79.8272236 | AG81: 79.75522244
A82: 74 | B82: 80 | C82: 1 | D82: =[4]Strompreise!D77 -> 1 | E82: =[4]Strompreise!G77 -> 53.26767508 | F82: =[4]Strompreise!H77 -> 66.00815005 | G82: =[4]Strompreise!I77 -> 90.02898847 | H82: 74.00492532 | I82: 80.18053693 | J82: 85.82019246 | K82: 75.087 | L82: 64.355 | M82: 53.6218085 | N82: 47.97694556 | O82: 56.5211233 | P82: 58.99206094 | Q82: 60.4982297 | R82: 58.398758 | S82: 62.90034272 | T82: 63.18330176 | U82: 58.29995729 | V82: 60.0292278 | W82: 61.1098352 | X82: 63.77841592 | Y82: 62.60184416 | Z82: 63.9993828 | AA82: 63.52308955 | AB82: 61.80282585 | AC82: 62.8982948 | AD82: 64.09280576 | AE82: 61.84031092 | AF82: 50.54144156 | AG82: 43.05436772
A83: 75 | B83: 120 | C83: 1 | D83: =[4]Strompreise!D78 -> 1 | E83: =[4]Strompreise!G78 -> 54.38911366 | F83: =[4]Strompreise!H78 -> 67.2621956 | G83: =[4]Strompreise!I78 -> 89.14196653 | H83: 68.6498137 | I83: 74.4184576 | J83: 79.90564854 | K83: 71.247 | L83: 62.588 | M83: 53.92910239 | N83: 44.80082975 | O83: 58.5232161 | P83: 57.4509152 | Q83: 60.94194882 | R83: 60.49087312 | S83: 60.55275888 | T83: 58.60633958 | U83: 61.6746886 | V83: 62.64432571 | W83: 64.26329536 | X83: 67.84905578 | Y83: 66.73998026 | Z83: 67.5691751 | AA83: 71.3558176 | AB83: 73.29000125 | AC83: 75.47217472 | AD83: 77.0296768 | AE83: 78.48664075 | AF83: 74.7045371 | AG83: 76.91051012
A84: 76 | B84: 120 | C84: 1 | D84: =[4]Strompreise!D79 -> 1 | E84: =[4]Strompreise!G79 -> 46.3418077 | F84: =[4]Strompreise!H79 -> 66.64501028 | G84: =[4]Strompreise!I79 -> 88.43123168 | H84: 72.71479918 | I84: 79.03724558 | J84: 85.81191646 | K84: 75.659 | L84: 65.506 | M84: 55.3536065 | N84: 47.26984976 | O84: 55.95759321 | P84: 60.0837636 | Q84: 59.6765473 | R84: 63.55330795 | S84: 63.62869886 | T84: 64.2455414 | U84: 66.57437632 | V84: 67.6567552 | W84: 69.36242024 | X84: 72.52142818 | Y84: 72.6671424 | Z84: 75.0438461 | AA84: 80.14093661 | AB84: 82.1704904 | AC84: 83.63229524 | AD84: 84.16573286 | AE84: 86.123706 | AF84: 84.20467827 | AG84: 86.24923976
A85: 77 | B85: 80 | C85: 1 | D85: =[4]Strompreise!D80 -> 0 | E85: =[4]Strompreise!G80 -> 42.18416927 | F85: =[4]Strompreise!H80 -> 66.235461 | G85: =[4]Strompreise!I80 -> 75.53387452 | H85: 63.07397977 | I85: 65.30039819 | J85: 67.6558609 | K85: 63.952 | L85: 60.248 | M85: 56.54393268 | N85: 51.67164852 | O85: 59.61481118 | P85: 60.94321173 | Q85: 63.2992128 | R85: 61.51842677 | S85: 66.2348728 | T85: 69.1474799 | U85: 68.37793968 | V85: 66.69300416 | W85: 69.6662266 | X85: 72.85414182 | Y85: 76.2991136 | Z85: 76.31920176 | AA85: 80.67021401 | AB85: 92.64624807 | AC85: 95.15480999 | AD85: 86.17418624 | AE85: 87.7963315 | AF85: 98.4201579 | AG85: 101.5006467
A86: 78 | B86: 80 | C86: 1 | D86: =[4]Strompreise!D81 -> 0 | E86: =[4]Strompreise!G81 -> 31.85554456 | F86: =[4]Strompreise!H81 -> 47.05256896 | G86: =[4]Strompreise!I81 -> 52.332872 | H86: 48.85155044 | I86: 50.5106454 | J86: 52.26036244 | K86: 53.362 | L86: 54.464 | M86: 55.56565928 | N86: 48.58631432 | O86: 57.38949795 | P86: 56.62534849 | Q86: 61.2699422 | R86: 62.73171269 | S86: 63.93491519 | T86: 64.59841035 | U86: 65.6832383 | V86: 66.9451803 | W86: 68.7824192 | X86: 74.64620722 | Y86: 75.34515128 | Z86: 77.29445571 | AA86: 86.3011776 | AB86: 87.098294 | AC86: 89.58877454 | AD86: 90.59299185 | AE86: 93.68223328 | AF86: 94.16692385 | AG86: 97.040891
A87: 79 | B87: 96 | C87: 0.541 | D87: =[4]Strompreise!D82 -> 0 | E87: =[4]Strompreise!G82 -> 8.737541704 | F87: =[4]Strompreise!H82 -> 20.50283671 | G87: =[4]Strompreise!I82 -> 23.22731564 | H87: 32.9430482 | I87: 34.17922067 | J87: 33.5306716 | K87: 30.625 | L87: 27.719 | M87: 24.81332822 | N87: 20.61583212 | O87: 22.78301368 | P87: 24.58013326 | Q87: 23.58031431 | R87: 22.75695083 | S87: 23.24246685 | T87: 23.65350057 | U87: 24.10337448 | V87: 24.33089951 | W87: 25.12300543 | X87: 26.36133254 | Y87: 25.92600709 | Z87: 26.6133048 | AA87: 28.53138462 | AB87: 29.73823112 | AC87: 30.37449808 | AD87: 30.60562523 | AE87: 31.06490734 | AF87: 32.0390943 | AG87: 33.07736851
A88: 80 | B88: 48 | C88: 0.35 | D88: =[4]Strompreise!D83 -> 0 | E88: =[4]Strompreise!G83 -> 20.07273852 | F88: =[4]Strompreise!H83 -> 44.73465765 | G88: =[4]Strompreise!I83 -> 46.88118153 | H88: 36.37639433 | I88: 37.74895235 | J88: 36.52460678 | K88: 29.237 | L88: 21.949 | M88: 14.66096506 | N88: 12.4557842 | O88: 14.35390677 | P88: 14.53848682 | Q88: 14.47072539 | R88: 14.02731939 | S88: 14.35583666 | T88: 14.46999523 | U88: 14.84054351 | V88: 14.79932541 | W88: 14.98823808 | X88: 16.05950999 | Y88: 16.2932374 | Z88: 16.41893099 | AA88: 17.97707062 | AB88: 18.760682 | AC88: 19.06611213 | AD88: 18.94887822 | AE88: 19.5056727 | AF88: 20.16135331 | AG88: 20.73307374
A89: 81 | B89: 32 | C89: 1 | D89: =[4]Strompreise!D84 -> 0 | E89: =[4]Strompreise!G84 -> 23.19374356 | F89: =[4]Strompreise!H84 -> 46.61113866 | G89: =[4]Strompreise!I84 -> 56.64349963 | H89: 46.78163677 | I89: 48.54126167 | J89: 47.33989231 | K89: 45.633 | L89: 43.927 | M89: 42.22008056 | N89: 35.87204576 | O89: 41.30407844 | P89: 42.05041664 | Q89: 41.57773162 | R89: 40.92933275 | S89: 41.50076232 | T89: 41.765033 | U89: 42.41882656 | V89: 42.67221889 | W89: 42.98006675 | X89: 43.52305168 | Y89: 38.12483246 | Z89: 41.65962812 | AA89: 38.4506584 | AB89: 37.89896324 | AC89: 39.28191384 | AD89: 35.60978504 | AE89: 38.50219584 | AF89: 34.4599464 | AG89: 34.42
A90: 82 | B90: 32 | C90: 1 | D90: =[4]Strompreise!D85 -> 0 | E90: =[4]Strompreise!G85 -> 24.86919587 | F90: =[4]Strompreise!H85 -> 49.47848701 | G90: =[4]Strompreise!I85 -> 58.37059822 | H90: 49.66543907 | I90: 51.52684818 | J90: 50.70141242 | K90: 47.932 | L90: 45.163 | M90: 42.39373897 | N90: 35.87784344 | O90: 41.34309353 | P90: 41.65119202 | Q90: 41.3944964 | R90: 40.97945108 | S90: 41.1810172 | T90: 40.30346901 | U90: 40.05464 | V90: 37.96461643 | W90: 34.1524478 | X90: 30.7522926 | Y90: 29.24808896 | Z90: 27.31888464 | AA90: 26.89893756 | AB90: 27.21682143 | AC90: 27.37577414 | AD90: 27.51605135 | AE90: 27.8433 | AF90: 28.0475 | AG90: 59.2103072
A91: 83 | B91: 64 | C91: 1 | D91: =[4]Strompreise!D86 -> 0 | E91: =[4]Strompreise!G86 -> 22.53242817 | F91: =[4]Strompreise!H86 -> 46.91121505 | G91: =[4]Strompreise!I86 -> 58.87960234 | H91: 40.03483692 | I91: 41.52760647 | J91: 41.38010955 | K91: 41.713 | L91: 42.046 | M91: 42.37873747 | N91: 35.86673693 | O91: 41.23050066 | P91: 41.77053628 | Q91: 42.18685244 | R91: 40.18999345 | S91: 41.738075 | T91: 41.60276432 | U91: 41.538688 | V91: 42.21027632 | W91: 42.8729555 | X91: 45.3301308 | Y91: 45.43841616 | Z91: 45.20919035 | AA91: 42.83386368 | AB91: 52.36669064 | AC91: 46.7354646 | AD91: 45.88088607 | AE91: 46.8119241 | AF91: 41.8098459 | AG91: 45.771836
A92: 84 | B92: 48 | C92: 1 | D92: =[4]Strompreise!D87 -> 0 | E92: =[4]Strompreise!G87 -> 23.90452917 | F92: =[4]Strompreise!H87 -> 46.93072932 | G92: =[4]Strompreise!I87 -> 63.19057378 | H92: 46.95744961 | I92: 48.72665584 | J92: 47.32098617 | K92: 46.112 | L92: 44.902 | M92: 43.69305105 | N92: 36.27286885 | O92: 42.38248897 | P92: 42.79615004 | Q92: 42.23852183 | R92: 41.00909149 | S92: 41.90580731 | T92: 41.8523841 | U92: 42.45762136 | V92: 42.96278396 | W92: 44.36053325 | X92: 45.99230024 | Y92: 46.61679872 | Z92: 47.86945274 | AA92: 51.55280861 | AB92: 54.0052938 | AC92: 54.69225728 | AD92: 54.93731792 | AE92: 55.77448293 | AF92: 57.95071076 | AG92: 59.61784364
A93: 85 | B93: 64 | C93: 1 | D93: =[4]Strompreise!D88 -> 0 | E93: =[4]Strompreise!G88 -> 19.56628087 | F93: =[4]Strompreise!H88 -> 44.19945284 | G93: =[4]Strompreise!I88 -> 47.51026566 | H93: 48.68462558 | I93: 50.50653529 | J93: 49.881783 | K93: 51.177 | L93: 52.471 | M93: 53.766326 | N93: 43.66159578 | O93: 54.9047196 | P93: 56.2329407 | Q93: 58.319523 | R93: 58.9610324 | S93: 59.82556304 | T93: 57.46135464 | U93: 60.0009524 | V93: 58.96261475 | W93: 62.24142738 | X93: 64.66594224 | Y93: 67.52989816 | Z93: 69.31457915 | AA93: 70.16509342 | AB93: 73.9364393 | AC93: 75.8609708 | AD93: 77.90054935 | AE93: 81.28801272 | AF93: 83.60130424 | AG93: 86.9580989
A94: 86 | B94: 180 | C94: 0.638 | D94: =[4]Strompreise!D89 -> 0 | E94: =[4]Strompreise!G89 -> 31.80115142 | F94: =[4]Strompreise!H89 -> 56.86007502 | G94: =[4]Strompreise!I89 -> 69.43180274 | H94: 38.09781428 | I94: 39.39853423 | J94: 40.48524001 | K94: 40.588 | L94: 40.691 | M94: 40.79313426 | N94: 33.81866281 | O94: 39.25544394 | P94: 41.39947369 | Q94: 44.98433645 | R94: 41.20301534 | S94: 42.64265235 | T94: 42.94427337 | U94: 44.95918308 | V94: 47.49562759 | W94: 49.00630328 | X94: 53.36155738 | Y94: 53.37946043 | Z94: 54.4046864 | AA94: 58.51972009 | AB94: 57.54161913 | AC94: 58.7343165 | AD94: 61.11370133 | AE94: 61.81332179 | AF94: 63.99089393 | AG94: 65.65620718
A95: 87 | B95: 90 | C95: 0.868 | D95: =[4]Strompreise!D90 -> 0 | E95: =[4]Strompreise!G90 -> 34.39099969 | F95: =[4]Strompreise!H90 -> 64.42627668 | G95: =[4]Strompreise!I90 -> 74.08993305 | H95: 31.95976119 | I95: 33.1630319 | J95: 33.89745146 | K95: 40.773 | L95: 47.648 | M95: 54.52348118 | N95: 45.47262693 | O95: 55.37705585 | P95: 55.25696819 | Q95: 60.42886074 | R95: 55.44495845 | S95: 56.25866411 | T95: 57.86249267 | U95: 59.14700851 | V95: 61.72626383 | W95: 65.88821275 | X95: 68.00133625 | Y95: 71.63706454 | Z95: 72.50247633 | AA95: 77.73098494 | AB95: 77.44658883 | AC95: 78.19528259 | AD95: 80.32542845 | AE95: 84.96155739 | AF95: 84.71363909 | AG95: 86.87100705
A96: 88 | B96: 90 | C96: 1 | D96: =[4]Strompreise!D91 -> 0 | E96: =[4]Strompreise!G91 -> 63.07817965 | F96: =[4]Strompreise!H91 -> 72.2109255 | G96: =[4]Strompreise!I91 -> 88.41964412 | H96: 66.03719781 | I96: 68.75956804 | J96: 70.05408678 | K96: 68.845 | L96: 67.637 | M96: 66.42795817 | N96: 61.26203656 | O96: 95.70003755 | P96: 111.1130395 | Q96: 142.7053184 | R96: 71.82052818 | S96: 170.7875971 | T96: 77.93474032 | U96: 79.47691808 | V96: 83.79258115 | W96: 84.54526777 | X96: 85.36210586 | Y96: 179.478056 | Z96: 187.1175139 | AA96: 97.24259786 | AB96: 133.7000795 | AC96: 148.4269693 | AD96: 135.5003542 | AE96: 168.8638614 | AF96: 133.8597978 | AG96: 131.8467899
A97: 89 | B97: 90 | C97: 1 | D97: =[4]Strompreise!D92 -> 1 | E97: =[4]Strompreise!G92 -> 117.0360894 | F97: =[4]Strompreise!H92 -> 129.6895812 | G97: =[4]Strompreise!I92 -> 123.2615912 | H97: 86.60647597 | I97: 93.96049895 | J97: 100.2761066 | K97: 92.986 | L97: 85.696 | M97: 78.40611772 | N97: 67.99848094 | O97: 70.29367945 | P97: 78.65506508 | Q97: 99.2503825 | R97: 103.8252313 | S97: 119.5374328 | T97: 96.76890126 | U97: 85.642902 | V97: 115.1616626 | W97: 153.8812067 | X97: 121.8383961 | Y97: 89.62483584 | Z97: 108.3114422 | AA97: 164.9925375 | AB97: 166.3881963 | AC97: 166.9606963 | AD97: 168.6418494 | AE97: 149.6412086 | AF97: 163.5269102 | AG97: 164.1572905
A98: 90 | B98: 90 | C98: 1 | D98: =[4]Strompreise!D93 -> 1 | E98: =[4]Strompreise!G93 -> 95.96025717 | F98: =[4]Strompreise!H93 -> 95.67064534 | G98: =[4]Strompreise!I93 -> 118.1644206 | H98: 88.60581665 | I98: 95.96081965 | J98: 102.7233228 | K98: 96.33 | L98: 89.936 | M98: 83.54189671 | N98: 62.6343287 | O98: 66.20561808 | P98: 71.66442688 | Q98: 89.74977734 | R98: 76.5905711 | S98: 77.84617196 | T98: 90.39124496 | U98: 107.576597 | V98: 88.70312252 | W98: 114.7629491 | X98: 137.3316605 | Y98: 163.1311182 | Z98: 138.4022306 | AA98: 144.9146659 | AB98: 149.4246352 | AC98: 133.5302863 | AD98: 150.4716054 | AE98: 136.0968162 | AF98: 146.6336546 | AG98: 145.9004644
A99: 91 | B99: 90 | C99: 1 | D99: =[4]Strompreise!D94 -> 1 | E99: =[4]Strompreise!G94 -> 66.89383371 | F99: =[4]Strompreise!H94 -> 84.67214026 | G99: =[4]Strompreise!I94 -> 101.3949483 | H99: 82.29384352 | I99: 89.03960673 | J99: 95.21865585 | K99: 86.632 | L99: 78.046 | M99: 69.45916268 | N99: 59.91379568 | O99: 64.36640746 | P99: 68.59257806 | Q99: 71.74963688 | R99: 74.78864608 | S99: 76.22262748 | T99: 76.95961085 | U99: 78.49931468 | V99: 81.53601848 | W99: 94.6520058 | X99: 154.5372418 | Y99: 95.28682103 | Z99: 97.3747891 | AA99: 94.89761768 | AB99: 110.4744913 | AC99: 123.5966605 | AD99: 125.131016 | AE99: 111.4657326 | AF99: 109.025334 | AG99: 114.2538308
A100: 92 | B100: 135 | C100: 1 | D100: =[4]Strompreise!D95 -> 1 | E100: =[4]Strompreise!G95 -> 68.14422419 | F100: =[4]Strompreise!H95 -> 78.09240302 | G100: =[4]Strompreise!I95 -> 110.5409907 | H100: 77.56596188 | I100: 84.1954504 | J100: 89.77254039 | K100: 84.187 | L100: 78.602 | M100: 73.01670554 | N100: 64.98615974 | O100: 84.73662888 | P100: 89.34645888 | Q100: 81.5397086 | R100: 83.62462972 | S100: 83.39271114 | T100: 126.2527023 | U100: 139.9318059 | V100: 95.61748394 | W100: 134.6367129 | X100: 175.6517489 | Y100: 144.3571798 | Z100: 120.402217 | AA100: 114.342755 | AB100: 99.9818389 | AC100: 104.828951 | AD100: 115.2040998 | AE100: 107.3670343 | AF100: 115.9273608 | AG100: 122.6911974
A101: 93 | B101: 135 | C101: 1 | D101: =[4]Strompreise!D96 -> 1 | E101: =[4]Strompreise!G96 -> 164.0342868 | F101: =[4]Strompreise!H96 -> 204.1022694 | G101: =[4]Strompreise!I96 -> 170.0898223 | H101: 118.3820676 | I101: 128.6591126 | J101: 136.7672626 | K101: 127.445 | L101: 118.123 | M101: 108.8008458 | N101: 72.69154114 | O101: 118.2194836 | P101: 127.3972275 | Q101: 126.8592236 | R101: 154.4948403 | S101: 151.3986372 | T101: 151.1606462 | U101: 164.9945324 | V101: 194.1068695 | W101: 188.4076258 | X101: 200.2838924 | Y101: 201.4759198 | Z101: 210.9064407 | AA101: 220.0587475 | AB101: 217.4576768 | AC101: 250.0608759 | AD101: 250.987125 | AE101: 211.877305 | AF101: 212.2859005 | AG101: 219.1710468
A102: 94 | B102: 90 | C102: 1 | D102: =[4]Strompreise!D97 -> 0 | E102: =[4]Strompreise!G97 -> 64.27647819 | F102: =[4]Strompreise!H97 -> 73.90821689 | G102: =[4]Strompreise!I97 -> 89.22173045 | H102: 75.6738737 | I102: 79.18579652 | J102: 80.34570986 | K102: 83.865 | L102: 87.385 | M102: 90.90454586 | N102: 66.307489 | O102: 105.4918611 | P102: 144.41045 | Q102: 173.803856 | R102: 194.4765012 | S102: 207.6309981 | T102: 227.5971873 | U102: 242.7767066 | V102: 171.5384865 | W102: 212.5912129 | X102: 248.2616108 | Y102: 290.4717082 | Z102: 297.0445933 | AA102: 312.0435934 | AB102: 305.0599774 | AC102: 314.4164922 | AD102: 346.5471059 | AE102: 346.3933959 | AF102: 396.437052 | AG102: 413.3156697
A103: 95 | B103: 90 | C103: 1 | D103: =[4]Strompreise!D98 -> 0 | E103: =[4]Strompreise!G98 -> 50.77348097 | F103: =[4]Strompreise!H98 -> 60.82312563 | G103: =[4]Strompreise!I98 -> 76.47755485 | H103: 62.32531562 | I103: 65.06559275 | J103: 66.28811838 | K103: 66.039 | L103: 65.79 | M103: 65.5405463 | N103: 58.6472672 | O103: 74.9173272 | P103: 100.8660007 | Q103: 157.2895784 | R103: 175.7466805 | S103: 187.3246758 | T103: 172.0736221 | U103: 187.3467331 | V103: 220.4700421 | W103: 266.0647803 | X103: 225.7825751 | Y103: 261.3053113 | Z103: 269.816497 | AA103: 281.6329256 | AB103: 276.8199004 | AC103: 283.3275897 | AD103: 283.8187171 | AE103: 286.8195134 | AF103: 282.6057682 | AG103: 325.5610695
A104: 96 | B104: 108 | C104: 0.842 | D104: =[4]Strompreise!D99 -> 0 | E104: =[4]Strompreise!G99 -> 15.40392546 | F104: =[4]Strompreise!H99 -> 32.22850839 | G104: =[4]Strompreise!I99 -> 34.46464428 | H104: 39.85060828 | I104: 41.52462002 | J104: 42.72470581 | K104: 45.961 | L104: 49.197 | M104: 52.43325392 | N104: 43.14135668 | O104: 52.4939967 | P104: 55.1366915 | Q104: 57.78712547 | R104: 57.85442355 | S104: 60.13184628 | T104: 60.75792924 | U104: 61.98728762 | V104: 60.29333014 | W104: 63.17809409 | X104: 60.70393317 | Y104: 68.18661969 | Z104: 69.30785908 | AA104: 74.16155468 | AB104: 79.92613814 | AC104: 81.65680517 | AD104: 82.66861208 | AE104: 84.01478783 | AF104: 81.44733558 | AG104: 83.45215067
A105: 97 | B105: 54 | C105: 0.528 | D105: =[4]Strompreise!D100 -> 0 | E105: =[4]Strompreise!G100 -> 23.02933617 | F105: =[4]Strompreise!H100 -> 54.62955251 | G105: =[4]Strompreise!I100 -> 60.15982182 | H105: 40.11120354 | I105: 42.71048621 | J105: 44.710351 | K105: 39.901 | L105: 35.091 | M105: 30.28146576 | N105: 26.28666693 | O105: 31.64791501 | P105: 30.80864684 | Q105: 33.8122923 | R105: 34.7470687 | S105: 34.62732439 | T105: 33.6813111 | U105: 35.35991936 | V105: 35.49834582 | W105: 37.30478623 | X105: 36.26081765 | Y105: 36.62842073 | Z105: 41.35264665 | AA105: 45.2332543 | AB105: 46.71560569 | AC105: 47.11366547 | AD105: 48.57858296 | AE105: 41.78486393 | AF105: 43.18614543 | AG105: 44.10056922
A106: 98 | B106: 36 | C106: 1 | D106: =[4]Strompreise!D101 -> 0 | E106: =[4]Strompreise!G101 -> 25.68715683 | F106: =[4]Strompreise!H101 -> 59.56765352 | G106: =[4]Strompreise!I101 -> 63.27156639 | H106: 57.27274386 | I106: 60.36536429 | J106: 63.2912271 | K106: 61.366 | L106: 59.441 | M106: 57.5153693 | N106: 50.1174398 | O106: 60.89211776 | P106: 63.4069415 | Q106: 61.90792658 | R106: 66.47801118 | S106: 65.97635499 | T106: 62.99406876 | U106: 63.1114022 | V106: 61.81101752 | W106: 69.03920828 | X106: 67.05988956 | Y106: 68.21787267 | Z106: 70.1095548 | AA106: 70.3161255 | AB106: 73.66785728 | AC106: 82.15688652 | AD106: 77.17765465 | AE106: 78.79505225 | AF106: 80.6372576 | AG106: 82.87708916
A107: 99 | B107: 36 | C107: 1 | D107: =[4]Strompreise!D102 -> 0 | E107: =[4]Strompreise!G102 -> 26.16847082 | F107: =[4]Strompreise!H102 -> 59.1084304 | G107: =[4]Strompreise!I102 -> 64.13935805 | H107: 60.65972203 | I107: 63.64024027 | J107: 66.35092341 | K107: 63.827 | L107: 61.303 | M107: 58.77840699 | N107: 50.6997344 | O107: 60.67459234 | P107: 59.75195597 | Q107: 60.7187531 | R107: 61.3799294 | S107: 62.56049285 | T107: 61.9718355 | U107: 60.85810671 | V107: 60.68273367 | W107: 61.81149512 | X107: 64.33246514 | Y107: 65.83468442 | Z107: 67.98645821 | AA107: 67.26351301 | AB107: 67.05287714 | AC107: 68.12629964 | AD107: 76.4913344 | AE107: 72.90045256 | AF107: 77.66151047 | AG107: 74.715468
A108: 100 | B108: 72 | C108: 1 | D108: =[4]Strompreise!D103 -> 0 | E108: =[4]Strompreise!G103 -> 25.230566 | F108: =[4]Strompreise!H103 -> 58.67974221 | G108: =[4]Strompreise!I103 -> 64.51502193 | H108: 49.47631006 | I108: 52.19087079 | J108: 54.80357988 | K108: 56.292 | L108: 57.78 | M108: 59.26814325 | N108: 50.495888 | O108: 57.02485995 | P108: 61.27052045 | Q108: 62.8084975 | R108: 60.96724728 | S108: 69.50240438 | T108: 65.4532661 | U108: 63.8839732 | V108: 63.3005836 | W108: 67.13709299 | X108: 70.87420694 | Y108: 70.7855731 | Z108: 70.73070624 | AA108: 73.31449946 | AB108: 74.8463925 | AC108: 77.62941045 | AD108: 77.2656404 | AE108: 79.65507935 | AF108: 82.40457194 | AG108: 84.16275873
A109: 101 | B109: 54 | C109: 1 | D109: =[4]Strompreise!D104 -> 0 | E109: =[4]Strompreise!G104 -> 33.2586602 | F109: =[4]Strompreise!H104 -> 62.88390409 | G109: =[4]Strompreise!I104 -> 66.52738464 | H109: 71.61371359 | I109: 74.58777929 | J109: 78.46935627 | K109: 73.406 | L109: 68.342 | M109: 63.27798764 | N109: 52.68483903 | O109: 65.50106893 | P109: 62.13280259 | Q109: 71.22601747 | R109: 69.37784189 | S109: 70.6325585 | T109: 70.73915328 | U109: 72.71781135 | V109: 73.73615518 | W109: 75.50098864 | X109: 81.31779828 | Y109: 78.80725984 | Z109: 79.93441593 | AA109: 85.91317277 | AB109: 92.0911512 | AC109: 94.4658552 | AD109: 93.40554209 | AE109: 94.63388906 | AF109: 94.5717689 | AG109: 96.67926632
A110: 102 | B110: 72 | C110: 0.566 | D110: =[4]Strompreise!D105 -> 0 | E110: =[4]Strompreise!G105 -> 21.43391349 | F110: =[4]Strompreise!H105 -> 36.25532357 | G110: =[4]Strompreise!I105 -> 38.50675247 | H110: 59.70107027 | I110: 61.7262736 | J110: 64.47791401 | K110: 55.21 | L110: 45.942 | M110: 36.67436157 | N110: 30.56290662 | O110: 36.82781198 | P110: 41.93854757 | Q110: 37.34333875 | R110: 39.93893039 | S110: 40.86396521 | T110: 41.53604418 | U110: 42.59996109 | V110: 43.33997875 | W110: 45.85345445 | X110: 46.80651283 | Y110: 47.88186777 | Z110: 49.19951007 | AA110: 50.14039022 | AB110: 52.84743147 | AC110: 52.51406728 | AD110: 52.68180686 | AE110: 54.29605294 | AF110: 55.98204342 | AG110: 57.02665623
C112: Base price forward & Interpolated | H112: 55.3 | I112: 58.63 | J112: 61 | K112: =(M112-J112)/3+J112 -> 59.63333333 | L112: =(M112-J112)/3+K112 -> 58.26666667 | M112: 56.9

Sheet Gaspreise
A1: Gaspreise | C1: 1
A2: [EUR/GJ]
A4: Lastpunkt | E4: 2007 | F4: 2008 | G4: 2009 | H4: 2010 | I4: 2011 | J4: 2012 | K4: 2013 | L4: 2014 | M4: 2015 | N4: 2016 | O4: 2017 | P4: 2018 | Q4: 2019 | R4: 2020 | S4: 2021 | T4: 2022 | U4: 2023 | V4: 2024 | W4: 2025 | X4: 2026 | Y4: 2027 | Z4: 2028 | AA4: 2029 | AB4: 2030 | AC4: 2031 | AD4: 2032 | AE4: 2033 | AF4: 2034 | AG4: 2035
C5: Base price FW&Interpolated | H5: 20.55568761 | I5: 23.55335552 | J5: 24.72571683 | K5: =(M5-J5)/3+J5 -> 23.39029664 | L5: =(M5-J5)/3+K5 -> 22.05487644 | M5: 20.71945625
H6: =H8*3.6*0.9 -> 19.98996164 | I6: =I8*3.6*0.9 -> 22.66885479 | J6: 23.85140548 | K6: 22.80802192 | L6: 21.7523589 | M6: 20.69669589 | N6: 16.71810411 | O6: 19.47819452 | P6: 22.0887863 | Q6: 23.29407123 | R6: 23.53556712 | S6: 23.70062466 | T6: 23.61587671 | U6: 23.73356712 | V6: 23.48341644 | W6: 23.79212877 | X6: 26.31109315 | Y6: 26.90467397 | Z6: 27.52500822 | AA6: 30.30901644 | AB6: 32.76199726 | AC6: 33.57495616 | AD6: 34.39099726 | AE6: 35.20395616 | AF6: 33.88162192 | AG6: 34.76571781
A8: Baseprices | H8: =SUMPRODUCT(H9:H110,$B9:$B110)/SUM($B9:$B110) -> 6.169741248 | I8: =SUMPRODUCT(I9:I110,$B9:$B110)/SUM($B9:$B110) -> 6.996560122 | J8: 7.361544901 | K8: 7.039512938 | L8: 6.71369102 | M8: 6.387869102 | N8: 5.159908676 | O8: 6.011788432 | P8: 6.817526636 | Q8: 7.189528158 | R8: 7.264063927 | S8: 7.31500761 | T8: 7.288850837 | U8: 7.325175038 | V8: 7.247968037 | W8: 7.343249619 | X8: 8.120707763 | Y8: 8.30391172 | Z8: 8.495372907 | AA8: 9.354634703 | AB8: 10.11172755 | AC8: 10.36264079 | AD8: 10.61450533 | AE8: 10.86541857 | AF8: 10.45729072 | AG8: 10.73015982
A9: 1 | B9: 164 | E9: =([4]Gaspreise!G4*'DCF (2012)'!$C$20)/0.9 -> 7.634876543 | F9: =([4]Gaspreise!H4*'DCF (2012)'!$C$20)/0.9 -> 7.360624683 | G9: =([4]Gaspreise!I4*'DCF (2012)'!$C$20)/$C$1 -> 11.2222158 | H9: 6.55 | I9: 8.038888889 | J9: 8.452777778 | K9: 7.888888889 | L9: 7.322222222 | M9: 6.755555556 | N9: 7.444444444 | O9: 5.402777778 | P9: 7.15 | Q9: 7.752777778 | R9: 8.105555556 | S9: 8.052777778 | T9: 8.052777778 | U9: 8.108333333 | V9: 8.063888889 | W9: 7.861111111 | X9: 8.288888889 | Y9: 9.027777778 | Z9: 9.008333333 | AA9: 9.291666667 | AB9: 10.25833333 | AC9: 10.51111111 | AD9: 10.76111111 | AE9: 11.01388889 | AF9: 10.54444444 | AG9: 10.81944444
A10: 2 | B10: 82 | E10: =([4]Gaspreise!G5*'DCF (2012)'!$C$20)/0.9 -> 7.634876543 | F10: =([4]Gaspreise!H5*'DCF (2012)'!$C$20)/0.9 -> 7.360624683 | G10: =([4]Gaspreise!I5*'DCF (2012)'!$C$20)/$C$1 -> 11.2222158 | H10: 6.55 | I10: 8.038888889 | J10: 8.452777778 | K10: 7.888888889 | L10: 7.322222222 | M10: 6.755555556 | N10: 7.444444444 | O10: 5.402777778 | P10: 7.15 | Q10: 7.752777778 | R10: 8.105555556 | S10: 8.052777778 | T10: 8.052777778 | U10: 8.108333333 | V10: 8.063888889 | W10: 7.861111111 | X10: 8.288888889 | Y10: 9.027777778 | Z10: 9.008333333 | AA10: 9.291666667 | AB10: 10.25833333 | AC10: 10.51111111 | AD10: 10.76111111 | AE10: 11.01388889 | AF10: 10.54444444 | AG10: 10.81944444
A11: 3 | B11: 82 | E11: =([4]Gaspreise!G6*'DCF (2012)'!$C$20)/0.9 -> 7.634876543 | F11: =([4]Gaspreise!H6*'DCF (2012)'!$C$20)/0.9 -> 7.360624683 | G11: =([4]Gaspreise!I6*'DCF (2012)'!$C$20)/$C$1 -> 11.2222158 | H11: 6.55 | I11: 8.038888889 | J11: 8.452777778 | K11: 7.888888889 | L11: 7.322222222 | M11: 6.755555556 | N11: 7.444444444 | O11: 5.402777778 | P11: 7.15 | Q11: 7.752777778 | R11: 8.105555556 | S11: 8.052777778 | T11: 8.052777778 | U11: 8.108333333 | V11: 8.063888889 | W11: 7.861111111 | X11: 8.288888889 | Y11: 9.027777778 | Z11: 9.008333333 | AA11: 9.291666667 | AB11: 10.25833333 | AC11: 10.51111111 | AD11: 10.76111111 | AE11: 11.01388889 | AF11: 10.54444444 | AG11: 10.81944444
A12: 4 | B12: 82 | E12: =([4]Gaspreise!G7*'DCF (2012)'!$C$20)/0.9 -> 7.634876543 | F12: =([4]Gaspreise!H7*'DCF (2012)'!$C$20)/0.9 -> 7.360624683 | G12: =([4]Gaspreise!I7*'DCF (2012)'!$C$20)/$C$1 -> 11.2222158 | H12: 6.55 | I12: 8.038888889 | J12: 8.452777778 | K12: 7.888888889 | L12: 7.322222222 | M12: 6.755555556 | N12: 7.444444444 | O12: 5.402777778 | P12: 7.15 | Q12: 7.752777778 | R12: 8.105555556 | S12: 8.052777778 | T12: 8.052777778 | U12: 8.108333333 | V12: 8.063888889 | W12: 7.861111111 | X12: 8.288888889 | Y12: 9.027777778 | Z12: 9.008333333 | AA12: 9.291666667 | AB12: 10.25833333 | AC12: 10.51111111 | AD12: 10.76111111 | AE12: 11.01388889 | AF12: 10.54444444 | AG12: 10.81944444
A13: 5 | B13: 82 | E13: =([4]Gaspreise!G8*'DCF (2012)'!$C$20)/0.9 -> 7.634876543 | F13: =([4]Gaspreise!H8*'DCF (2012)'!$C$20)/0.9 -> 7.360624683 | G13: =([4]Gaspreise!I8*'DCF (2012)'!$C$20)/$C$1 -> 11.2222158 | H13: 6.55 | I13: 8.038888889 | J13: 8.452777778 | K13: 7.888888889 | L13: 7.322222222 | M13: 6.755555556 | N13: 7.444444444 | O13: 5.402777778 | P13: 7.15 | Q13: 7.752777778 | R13: 8.105555556 | S13: 8.052777778 | T13: 8.052777778 | U13: 8.108333333 | V13: 8.063888889 | W13: 7.861111111 | X13: 8.288888889 | Y13: 9.027777778 | Z13: 9.008333333 | AA13: 9.291666667 | AB13: 10.25833333 | AC13: 10.51111111 | AD13: 10.76111111 | AE13: 11.01388889 | AF13: 10.54444444 | AG13: 10.81944444
A14: 6 | B14: 82 | E14: =([4]Gaspreise!G9*'DCF (2012)'!$C$20)/0.9 -> 7.634876543 | F14: =([4]Gaspreise!H9*'DCF (2012)'!$C$20)/0.9 -> 7.360624683 | G14: =([4]Gaspreise!I9*'DCF (2012)'!$C$20)/$C$1 -> 11.2222158 | H14: 6.55 | I14: 8.038888889 | J14: 8.452777778 | K14: 7.888888889 | L14: 7.322222222 | M14: 6.755555556 | N14: 7.444444444 | O14: 5.402777778 | P14: 7.15 | Q14: 7.752777778 | R14: 8.105555556 | S14: 8.052777778 | T14: 8.052777778 | U14: 8.108333333 | V14: 8.063888889 | W14: 7.861111111 | X14: 8.288888889 | Y14: 9.027777778 | Z14: 9.008333333 | AA14: 9.291666667 | AB14: 10.25833333 | AC14: 10.51111111 | AD14: 10.76111111 | AE14: 11.01388889 | AF14: 10.54444444 | AG14: 10.81944444
A15: 7 | B15: 123 | E15: =([4]Gaspreise!G10*'DCF (2012)'!$C$20)/0.9 -> 7.634876543 | F15: =([4]Gaspreise!H10*'DCF (2012)'!$C$20)/0.9 -> 7.360624683 | G15: =([4]Gaspreise!I10*'DCF (2012)'!$C$20)/$C$1 -> 11.2222158 | H15: 6.55 | I15: 8.038888889 | J15: 8.452777778 | K15: 7.888888889 | L15: 7.322222222 | M15: 6.755555556 | N15: 7.444444444 | O15: 5.402777778 | P15: 7.15 | Q15: 7.752777778 | R15: 8.105555556 | S15: 8.052777778 | T15: 8.052777778 | U15: 8.108333333 | V15: 8.063888889 | W15: 7.861111111 | X15: 8.288888889 | Y15: 9.027777778 | Z15: 9.008333333 | AA15: 9.291666667 | AB15: 10.25833333 | AC15: 10.51111111 | AD15: 10.76111111 | AE15: 11.01388889 | AF15: 10.54444444 | AG15: 10.81944444
A16: 8 | B16: 123 | E16: =([4]Gaspreise!G11*'DCF (2012)'!$C$20)/0.9 -> 7.634876543 | F16: =([4]Gaspreise!H11*'DCF (2012)'!$C$20)/0.9 -> 7.360624683 | G16: =([4]Gaspreise!I11*'DCF (2012)'!$C$20)/$C$1 -> 11.2222158 | H16: 6.55 | I16: 8.038888889 | J16: 8.452777778 | K16: 7.888888889 | L16: 7.322222222 | M16: 6.755555556 | N16: 7.444444444 | O16: 5.402777778 | P16: 7.15 | Q16: 7.752777778 | R16: 8.105555556 | S16: 8.052777778 | T16: 8.052777778 | U16: 8.108333333 | V16: 8.063888889 | W16: 7.861111111 | X16: 8.288888889 | Y16: 9.027777778 | Z16: 9.008333333 | AA16: 9.291666667 | AB16: 10.25833333 | AC16: 10.51111111 | AD16: 10.76111111 | AE16: 11.01388889 | AF16: 10.54444444 | AG16: 10.81944444
A17: 9 | B17: 82 | E17: =([4]Gaspreise!G12*'DCF (2012)'!$C$20)/0.9 -> 7.634876543 | F17: =([4]Gaspreise!H12*'DCF (2012)'!$C$20)/0.9 -> 7.360624683 | G17: =([4]Gaspreise!I12*'DCF (2012)'!$C$20)/$C$1 -> 11.2222158 | H17: 6.55 | I17: 8.038888889 | J17: 8.452777778 | K17: 7.888888889 | L17: 7.322222222 | M17: 6.755555556 | N17: 7.444444444 | O17: 5.402777778 | P17: 7.15 | Q17: 7.752777778 | R17: 8.105555556 | S17: 8.052777778 | T17: 8.052777778 | U17: 8.108333333 | V17: 8.063888889 | W17: 7.861111111 | X17: 8.288888889 | Y17: 9.027777778 | Z17: 9.008333333 | AA17: 9.291666667 | AB17: 10.25833333 | AC17: 10.51111111 | AD17: 10.76111111 | AE17: 11.01388889 | AF17: 10.54444444 | AG17: 10.81944444
A18: 10 | B18: 82 | E18: =([4]Gaspreise!G13*'DCF (2012)'!$C$20)/0.9 -> 7.634876543 | F18: =([4]Gaspreise!H13*'DCF (2012)'!$C$20)/0.9 -> 7.360624683 | G18: =([4]Gaspreise!I13*'DCF (2012)'!$C$20)/$C$1 -> 11.2222158 | H18: 6.55 | I18: 8.038888889 | J18: 8.452777778 | K18: 7.888888889 | L18: 7.322222222 | M18: 6.755555556 | N18: 7.444444444 | O18: 5.402777778 | P18: 7.15 | Q18: 7.752777778 | R18: 8.105555556 | S18: 8.052777778 | T18: 8.052777778 | U18: 8.108333333 | V18: 8.063888889 | W18: 7.861111111 | X18: 8.288888889 | Y18: 9.027777778 | Z18: 9.008333333 | AA18: 9.291666667 | AB18: 10.25833333 | AC18: 10.51111111 | AD18: 10.76111111 | AE18: 11.01388889 | AF18: 10.54444444 | AG18: 10.81944444
A19: 11 | B19: 96 | E19: =([4]Gaspreise!G14*'DCF (2012)'!$C$20)/0.9 -> 7.634876543 | F19: =([4]Gaspreise!H14*'DCF (2012)'!$C$20)/0.9 -> 7.360624683 | G19: =([4]Gaspreise!I14*'DCF (2012)'!$C$20)/$C$1 -> 11.2222158 | H19: 6.55 | I19: 8.038888889 | J19: 8.452777778 | K19: 7.888888889 | L19: 7.322222222 | M19: 6.755555556 | N19: 7.444444444 | O19: 5.402777778 | P19: 7.15 | Q19: 7.752777778 | R19: 8.105555556 | S19: 8.052777778 | T19: 8.052777778 | U19: 8.108333333 | V19: 8.063888889 | W19: 7.861111111 | X19: 8.288888889 | Y19: 9.027777778 | Z19: 9.008333333 | AA19: 9.291666667 | AB19: 10.25833333 | AC19: 10.51111111 | AD19: 10.76111111 | AE19: 11.01388889 | AF19: 10.54444444 | AG19: 10.81944444
A20: 12 | B20: 48 | E20: =([4]Gaspreise!G15*'DCF (2012)'!$C$20)/0.9 -> 7.634876543 | F20: =([4]Gaspreise!H15*'DCF (2012)'!$C$20)/0.9 -> 7.360624683 | G20: =([4]Gaspreise!I15*'DCF (2012)'!$C$20)/$C$1 -> 11.2222158 | H20: 6.55 | I20: 8.038888889 | J20: 8.452777778 | K20: 7.888888889 | L20: 7.322222222 | M20: 6.755555556 | N20: 7.444444444 | O20: 5.402777778 | P20: 7.15 | Q20: 7.752777778 | R20: 8.105555556 | S20: 8.052777778 | T20: 8.052777778 | U20: 8.108333333 | V20: 8.063888889 | W20: 7.861111111 | X20: 8.288888889 | Y20: 9.027777778 | Z20: 9.008333333 | AA20: 9.291666667 | AB20: 10.25833333 | AC20: 10.51111111 | AD20: 10.76111111 | AE20: 11.01388889 | AF20: 10.54444444 | AG20: 10.81944444
A21: 13 | B21: 32 | E21: =([4]Gaspreise!G16*'DCF (2012)'!$C$20)/0.9 -> 7.634876543 | F21: =([4]Gaspreise!H16*'DCF (2012)'!$C$20)/0.9 -> 7.360624683 | G21: =([4]Gaspreise!I16*'DCF (2012)'!$C$20)/$C$1 -> 11.2222158 | H21: 6.55 | I21: 8.038888889 | J21: 8.452777778 | K21: 7.888888889 | L21: 7.322222222 | M21: 6.755555556 | N21: 7.444444444 | O21: 5.402777778 | P21: 7.15 | Q21: 7.752777778 | R21: 8.105555556 | S21: 8.052777778 | T21: 8.052777778 | U21: 8.108333333 | V21: 8.063888889 | W21: 7.861111111 | X21: 8.288888889 | Y21: 9.027777778 | Z21: 9.008333333 | AA21: 9.291666667 | AB21: 10.25833333 | AC21: 10.51111111 | AD21: 10.76111111 | AE21: 11.01388889 | AF21: 10.54444444 | AG21: 10.81944444
A22: 14 | B22: 32 | E22: =([4]Gaspreise!G17*'DCF (2012)'!$C$20)/0.9 -> 7.634876543 | F22: =([4]Gaspreise!H17*'DCF (2012)'!$C$20)/0.9 -> 7.360624683 | G22: =([4]Gaspreise!I17*'DCF (2012)'!$C$20)/$C$1 -> 11.2222158 | H22: 6.55 | I22: 8.038888889 | J22: 8.452777778 | K22: 7.888888889 | L22: 7.322222222 | M22: 6.755555556 | N22: 7.444444444 | O22: 5.402777778 | P22: 7.15 | Q22: 7.752777778 | R22: 8.105555556 | S22: 8.052777778 | T22: 8.052777778 | U22: 8.108333333 | V22: 8.063888889 | W22: 7.861111111 | X22: 8.288888889 | Y22: 9.027777778 | Z22: 9.008333333 | AA22: 9.291666667 | AB22: 10.25833333 | AC22: 10.51111111 | AD22: 10.76111111 | AE22: 11.01388889 | AF22: 10.54444444 | AG22: 10.81944444
A23: 15 | B23: 64 | E23: =([4]Gaspreise!G18*'DCF (2012)'!$C$20)/0.9 -> 7.634876543 | F23: =([4]Gaspreise!H18*'DCF (2012)'!$C$20)/0.9 -> 7.360624683 | G23: =([4]Gaspreise!I18*'DCF (2012)'!$C$20)/$C$1 -> 11.2222158 | H23: 6.55 | I23: 8.038888889 | J23: 8.452777778 | K23: 7.888888889 | L23: 7.322222222 | M23: 6.755555556 | N23: 7.444444444 | O23: 5.402777778 | P23: 7.15 | Q23: 7.752777778 | R23: 8.105555556 | S23: 8.052777778 | T23: 8.052777778 | U23: 8.108333333 | V23: 8.063888889 | W23: 7.861111111 | X23: 8.288888889 | Y23: 9.027777778 | Z23: 9.008333333 | AA23: 9.291666667 | AB23: 10.25833333 | AC23: 10.51111111 | AD23: 10.76111111 | AE23: 11.01388889 | AF23: 10.54444444 | AG23: 10.81944444
A24: 16 | B24: 48 | E24: =([4]Gaspreise!G19*'DCF (2012)'!$C$20)/0.9 -> 7.634876543 | F24: =([4]Gaspreise!H19*'DCF (2012)'!$C$20)/0.9 -> 7.360624683 | G24: =([4]Gaspreise!I19*'DCF (2012)'!$C$20)/$C$1 -> 11.2222158 | H24: 6.55 | I24: 8.038888889 | J24: 8.452777778 | K24: 7.888888889 | L24: 7.322222222 | M24: 6.755555556 | N24: 7.444444444 | O24: 5.402777778 | P24: 7.15 | Q24: 7.752777778 | R24: 8.105555556 | S24: 8.052777778 | T24: 8.052777778 | U24: 8.108333333 | V24: 8.063888889 | W24: 7.861111111 | X24: 8.288888889 | Y24: 9.027777778 | Z24: 9.008333333 | AA24: 9.291666667 | AB24: 10.25833333 | AC24: 10.51111111 | AD24: 10.76111111 | AE24: 11.01388889 | AF24: 10.54444444 | AG24: 10.81944444
A25: 17 | B25: 64 | E25: =([4]Gaspreise!G20*'DCF (2012)'!$C$20)/0.9 -> 7.634876543 | F25: =([4]Gaspreise!H20*'DCF (2012)'!$C$20)/0.9 -> 7.360624683 | G25: =([4]Gaspreise!I20*'DCF (2012)'!$C$20)/$C$1 -> 11.2222158 | H25: 6.55 | I25: 8.038888889 | J25: 8.452777778 | K25: 7.888888889 | L25: 7.322222222 | M25: 6.755555556 | N25: 7.444444444 | O25: 5.402777778 | P25: 7.15 | Q25: 7.752777778 | R25: 8.105555556 | S25: 8.052777778 | T25: 8.052777778 | U25: 8.108333333 | V25: 8.063888889 | W25: 7.861111111 | X25: 8.288888889 | Y25: 9.027777778 | Z25: 9.008333333 | AA25: 9.291666667 | AB25: 10.25833333 | AC25: 10.51111111 | AD25: 10.76111111 | AE25: 11.01388889 | AF25: 10.54444444 | AG25: 10.81944444
A26: 18 | B26: 180 | E26: =([4]Gaspreise!G21*'DCF (2012)'!$C$20)/0.9 -> 7.320987654 | F26: =([4]Gaspreise!H21*'DCF (2012)'!$C$20)/0.9 -> 6.97928913 | G26: =([4]Gaspreise!I21*'DCF (2012)'!$C$20)/$C$1 -> 10.6375992 | H26: 5.986111111 | I26: 7.166666667 | J26: 7.536111111 | K26: 7.152777778 | L26: 6.763888889 | M26: 6.375 | N26: 5.841666667 | O26: 5.694444444 | P26: 6.869444444 | Q26: 7.319444444 | R26: 7.477777778 | S26: 7.488888889 | T26: 7.422222222 | U26: 7.475 | V26: 7.430555556 | W26: 7.455555556 | X26: 8.169444444 | Y26: 8.525 | Z26: 8.638888889 | AA26: 9.3 | AB26: 10.025 | AC26: 10.27777778 | AD26: 10.52777778 | AE26: 10.78055556 | AF26: 10.43333333 | AG26: 10.70555556
A27: 19 | B27: 90 | E27: =([4]Gaspreise!G22*'DCF (2012)'!$C$20)/0.9 -> 7.320987654 | F27: =([4]Gaspreise!H22*'DCF (2012)'!$C$20)/0.9 -> 6.97928913 | G27: =([4]Gaspreise!I22*'DCF (2012)'!$C$20)/$C$1 -> 10.6375992 | H27: 5.986111111 | I27: 7.166666667 | J27: 7.536111111 | K27: 7.152777778 | L27: 6.763888889 | M27: 6.375 | N27: 5.841666667 | O27: 5.694444444 | P27: 6.869444444 | Q27: 7.319444444 | R27: 7.477777778 | S27: 7.488888889 | T27: 7.422222222 | U27: 7.475 | V27: 7.430555556 | W27: 7.455555556 | X27: 8.169444444 | Y27: 8.525 | Z27: 8.638888889 | AA27: 9.3 | AB27: 10.025 | AC27: 10.27777778 | AD27: 10.52777778 | AE27: 10.78055556 | AF27: 10.43333333 | AG27: 10.70555556
A28: 20 | B28: 90 | E28: =([4]Gaspreise!G23*'DCF (2012)'!$C$20)/0.9 -> 7.320987654 | F28: =([4]Gaspreise!H23*'DCF (2012)'!$C$20)/0.9 -> 6.97928913 | G28: =([4]Gaspreise!I23*'DCF (2012)'!$C$20)/$C$1 -> 10.6375992 | H28: 5.986111111 | I28: 7.166666667 | J28: 7.536111111 | K28: 7.152777778 | L28: 6.763888889 | M28: 6.375 | N28: 5.841666667 | O28: 5.694444444 | P28: 6.869444444 | Q28: 7.319444444 | R28: 7.477777778 | S28: 7.488888889 | T28: 7.422222222 | U28: 7.475 | V28: 7.430555556 | W28: 7.455555556 | X28: 8.169444444 | Y28: 8.525 | Z28: 8.638888889 | AA28: 9.3 | AB28: 10.025 | AC28: 10.27777778 | AD28: 10.52777778 | AE28: 10.78055556 | AF28: 10.43333333 | AG28: 10.70555556
A29: 21 | B29: 90 | E29: =([4]Gaspreise!G24*'DCF (2012)'!$C$20)/0.9 -> 7.320987654 | F29: =([4]Gaspreise!H24*'DCF (2012)'!$C$20)/0.9 -> 6.97928913 | G29: =([4]Gaspreise!I24*'DCF (2012)'!$C$20)/$C$1 -> 10.6375992 | H29: 5.986111111 | I29: 7.166666667 | J29: 7.536111111 | K29: 7.152777778 | L29: 6.763888889 | M29: 6.375 | N29: 5.841666667 | O29: 5.694444444 | P29: 6.869444444 | Q29: 7.319444444 | R29: 7.477777778 | S29: 7.488888889 | T29: 7.422222222 | U29: 7.475 | V29: 7.430555556 | W29: 7.455555556 | X29: 8.169444444 | Y29: 8.525 | Z29: 8.638888889 | AA29: 9.3 | AB29: 10.025 | AC29: 10.27777778 | AD29: 10.52777778 | AE29: 10.78055556 | AF29: 10.43333333 | AG29: 10.70555556
A30: 22 | B30: 90 | E30: =([4]Gaspreise!G25*'DCF (2012)'!$C$20)/0.9 -> 7.320987654 | F30: =([4]Gaspreise!H25*'DCF (2012)'!$C$20)/0.9 -> 6.97928913 | G30: =([4]Gaspreise!I25*'DCF (2012)'!$C$20)/$C$1 -> 10.6375992 | H30: 5.986111111 | I30: 7.166666667 | J30: 7.536111111 | K30: 7.152777778 | L30: 6.763888889 | M30: 6.375 | N30: 5.841666667 | O30: 5.694444444 | P30: 6.869444444 | Q30: 7.319444444 | R30: 7.477777778 | S30: 7.488888889 | T30: 7.422222222 | U30: 7.475 | V30: 7.430555556 | W30: 7.455555556 | X30: 8.169444444 | Y30: 8.525 | Z30: 8.638888889 | AA30: 9.3 | AB30: 10.025 | AC30: 10.27777778 | AD30: 10.52777778 | AE30: 10.78055556 | AF30: 10.43333333 | AG30: 10.70555556
A31: 23 | B31: 90 | E31: =([4]Gaspreise!G26*'DCF (2012)'!$C$20)/0.9 -> 7.320987654 | F31: =([4]Gaspreise!H26*'DCF (2012)'!$C$20)/0.9 -> 6.97928913 | G31: =([4]Gaspreise!I26*'DCF (2012)'!$C$20)/$C$1 -> 10.6375992 | H31: 5.986111111 | I31: 7.166666667 | J31: 7.536111111 | K31: 7.152777778 | L31: 6.763888889 | M31: 6.375 | N31: 5.841666667 | O31: 5.694444444 | P31: 6.869444444 | Q31: 7.319444444 | R31: 7.477777778 | S31: 7.488888889 | T31: 7.422222222 | U31: 7.475 | V31: 7.430555556 | W31: 7.455555556 | X31: 8.169444444 | Y31: 8.525 | Z31: 8.638888889 | AA31: 9.3 | AB31: 10.025 | AC31: 10.27777778 | AD31: 10.52777778 | AE31: 10.78055556 | AF31: 10.43333333 | AG31: 10.70555556
A32: 24 | B32: 135 | E32: =([4]Gaspreise!G27*'DCF (2012)'!$C$20)/0.9 -> 7.320987654 | F32: =([4]Gaspreise!H27*'DCF (2012)'!$C$20)/0.9 -> 6.97928913 | G32: =([4]Gaspreise!I27*'DCF (2012)'!$C$20)/$C$1 -> 10.6375992 | H32: 5.986111111 | I32: 7.166666667 | J32: 7.536111111 | K32: 7.152777778 | L32: 6.763888889 | M32: 6.375 | N32: 5.841666667 | O32: 5.694444444 | P32: 6.869444444 | Q32: 7.319444444 | R32: 7.477777778 | S32: 7.488888889 | T32: 7.422222222 | U32: 7.475 | V32: 7.430555556 | W32: 7.455555556 | X32: 8.169444444 | Y32: 8.525 | Z32: 8.638888889 | AA32: 9.3 | AB32: 10.025 | AC32: 10.27777778 | AD32: 10.52777778 | AE32: 10.78055556 | AF32: 10.43333333 | AG32: 10.70555556
A33: 25 | B33: 135 | E33: =([4]Gaspreise!G28*'DCF (2012)'!$C$20)/0.9 -> 7.320987654 | F33: =([4]Gaspreise!H28*'DCF (2012)'!$C$20)/0.9 -> 6.97928913 | G33: =([4]Gaspreise!I28*'DCF (2012)'!$C$20)/$C$1 -> 10.6375992 | H33: 5.986111111 | I33: 7.166666667 | J33: 7.536111111 | K33: 7.152777778 | L33: 6.763888889 | M33: 6.375 | N33: 5.841666667 | O33: 5.694444444 | P33: 6.869444444 | Q33: 7.319444444 | R33: 7.477777778 | S33: 7.488888889 | T33: 7.422222222 | U33: 7.475 | V33: 7.430555556 | W33: 7.455555556 | X33: 8.169444444 | Y33: 8.525 | Z33: 8.638888889 | AA33: 9.3 | AB33: 10.025 | AC33: 10.27777778 | AD33: 10.52777778 | AE33: 10.78055556 | AF33: 10.43333333 | AG33: 10.70555556
A34: 26 | B34: 90 | E34: =([4]Gaspreise!G29*'DCF (2012)'!$C$20)/0.9 -> 7.320987654 | F34: =([4]Gaspreise!H29*'DCF (2012)'!$C$20)/0.9 -> 6.97928913 | G34: =([4]Gaspreise!I29*'DCF (2012)'!$C$20)/$C$1 -> 10.6375992 | H34: 5.986111111 | I34: 7.166666667 | J34: 7.536111111 | K34: 7.152777778 | L34: 6.763888889 | M34: 6.375 | N34: 5.841666667 | O34: 5.694444444 | P34: 6.869444444 | Q34: 7.319444444 | R34: 7.477777778 | S34: 7.488888889 | T34: 7.422222222 | U34: 7.475 | V34: 7.430555556 | W34: 7.455555556 | X34: 8.169444444 | Y34: 8.525 | Z34: 8.638888889 | AA34: 9.3 | AB34: 10.025 | AC34: 10.27777778 | AD34: 10.52777778 | AE34: 10.78055556 | AF34: 10.43333333 | AG34: 10.70555556
A35: 27 | B35: 90 | E35: =([4]Gaspreise!G30*'DCF (2012)'!$C$20)/0.9 -> 7.320987654 | F35: =([4]Gaspreise!H30*'DCF (2012)'!$C$20)/0.9 -> 6.97928913 | G35: =([4]Gaspreise!I30*'DCF (2012)'!$C$20)/$C$1 -> 10.6375992 | H35: 5.986111111 | I35: 7.166666667 | J35: 7.536111111 | K35: 7.152777778 | L35: 6.763888889 | M35: 6.375 | N35: 5.841666667 | O35: 5.694444444 | P35: 6.869444444 | Q35: 7.319444444 | R35: 7.477777778 | S35: 7.488888889 | T35: 7.422222222 | U35: 7.475 | V35: 7.430555556 | W35: 7.455555556 | X35: 8.169444444 | Y35: 8.525 | Z35: 8.638888889 | AA35: 9.3 | AB35: 10.025 | AC35: 10.27777778 | AD35: 10.52777778 | AE35: 10.78055556 | AF35: 10.43333333 | AG35: 10.70555556
A36: 28 | B36: 108 | E36: =([4]Gaspreise!G31*'DCF (2012)'!$C$20)/0.9 -> 7.320987654 | F36: =([4]Gaspreise!H31*'DCF (2012)'!$C$20)/0.9 -> 6.97928913 | G36: =([4]Gaspreise!I31*'DCF (2012)'!$C$20)/$C$1 -> 10.6375992 | H36: 5.986111111 | I36: 7.166666667 | J36: 7.536111111 | K36: 7.152777778 | L36: 6.763888889 | M36: 6.375 | N36: 5.841666667 | O36: 5.694444444 | P36: 6.869444444 | Q36: 7.319444444 | R36: 7.477777778 | S36: 7.488888889 | T36: 7.422222222 | U36: 7.475 | V36: 7.430555556 | W36: 7.455555556 | X36: 8.169444444 | Y36: 8.525 | Z36: 8.638888889 | AA36: 9.3 | AB36: 10.025 | AC36: 10.27777778 | AD36: 10.52777778 | AE36: 10.78055556 | AF36: 10.43333333 | AG36: 10.70555556
A37: 29 | B37: 54 | E37: =([4]Gaspreise!G32*'DCF (2012)'!$C$20)/0.9 -> 7.320987654 | F37: =([4]Gaspreise!H32*'DCF (2012)'!$C$20)/0.9 -> 6.97928913 | G37: =([4]Gaspreise!I32*'DCF (2012)'!$C$20)/$C$1 -> 10.6375992 | H37: 5.986111111 | I37: 7.166666667 | J37: 7.536111111 | K37: 7.152777778 | L37: 6.763888889 | M37: 6.375 | N37: 5.841666667 | O37: 5.694444444 | P37: 6.869444444 | Q37: 7.319444444 | R37: 7.477777778 | S37: 7.488888889 | T37: 7.422222222 | U37: 7.475 | V37: 7.430555556 | W37: 7.455555556 | X37: 8.169444444 | Y37: 8.525 | Z37: 8.638888889 | AA37: 9.3 | AB37: 10.025 | AC37: 10.27777778 | AD37: 10.52777778 | AE37: 10.78055556 | AF37: 10.43333333 | AG37: 10.70555556
A38: 30 | B38: 36 | E38: =([4]Gaspreise!G33*'DCF (2012)'!$C$20)/0.9 -> 7.320987654 | F38: =([4]Gaspreise!H33*'DCF (2012)'!$C$20)/0.9 -> 6.97928913 | G38: =([4]Gaspreise!I33*'DCF (2012)'!$C$20)/$C$1 -> 10.6375992 | H38: 5.986111111 | I38: 7.166666667 | J38: 7.536111111 | K38: 7.152777778 | L38: 6.763888889 | M38: 6.375 | N38: 5.841666667 | O38: 5.694444444 | P38: 6.869444444 | Q38: 7.319444444 | R38: 7.477777778 | S38: 7.488888889 | T38: 7.422222222 | U38: 7.475 | V38: 7.430555556 | W38: 7.455555556 | X38: 8.169444444 | Y38: 8.525 | Z38: 8.638888889 | AA38: 9.3 | AB38: 10.025 | AC38: 10.27777778 | AD38: 10.52777778 | AE38: 10.78055556 | AF38: 10.43333333 | AG38: 10.70555556
A39: 31 | B39: 36 | E39: =([4]Gaspreise!G34*'DCF (2012)'!$C$20)/0.9 -> 7.320987654 | F39: =([4]Gaspreise!H34*'DCF (2012)'!$C$20)/0.9 -> 6.97928913 | G39: =([4]Gaspreise!I34*'DCF (2012)'!$C$20)/$C$1 -> 10.6375992 | H39: 5.986111111 | I39: 7.166666667 | J39: 7.536111111 | K39: 7.152777778 | L39: 6.763888889 | M39: 6.375 | N39: 5.841666667 | O39: 5.694444444 | P39: 6.869444444 | Q39: 7.319444444 | R39: 7.477777778 | S39: 7.488888889 | T39: 7.422222222 | U39: 7.475 | V39: 7.430555556 | W39: 7.455555556 | X39: 8.169444444 | Y39: 8.525 | Z39: 8.638888889 | AA39: 9.3 | AB39: 10.025 | AC39: 10.27777778 | AD39: 10.52777778 | AE39: 10.78055556 | AF39: 10.43333333 | AG39: 10.70555556
A40: 32 | B40: 72 | E40: =([4]Gaspreise!G35*'DCF (2012)'!$C$20)/0.9 -> 7.320987654 | F40: =([4]Gaspreise!H35*'DCF (2012)'!$C$20)/0.9 -> 6.97928913 | G40: =([4]Gaspreise!I35*'DCF (2012)'!$C$20)/$C$1 -> 10.6375992 | H40: 5.986111111 | I40: 7.166666667 | J40: 7.536111111 | K40: 7.152777778 | L40: 6.763888889 | M40: 6.375 | N40: 5.841666667 | O40: 5.694444444 | P40: 6.869444444 | Q40: 7.319444444 | R40: 7.477777778 | S40: 7.488888889 | T40: 7.422222222 | U40: 7.475 | V40: 7.430555556 | W40: 7.455555556 | X40: 8.169444444 | Y40: 8.525 | Z40: 8.638888889 | AA40: 9.3 | AB40: 10.025 | AC40: 10.27777778 | AD40: 10.52777778 | AE40: 10.78055556 | AF40: 10.43333333 | AG40: 10.70555556
A41: 33 | B41: 54 | E41: =([4]Gaspreise!G36*'DCF (2012)'!$C$20)/0.9 -> 7.320987654 | F41: =([4]Gaspreise!H36*'DCF (2012)'!$C$20)/0.9 -> 6.97928913 | G41: =([4]Gaspreise!I36*'DCF (2012)'!$C$20)/$C$1 -> 10.6375992 | H41: 5.986111111 | I41: 7.166666667 | J41: 7.536111111 | K41: 7.152777778 | L41: 6.763888889 | M41: 6.375 | N41: 5.841666667 | O41: 5.694444444 | P41: 6.869444444 | Q41: 7.319444444 | R41: 7.477777778 | S41: 7.488888889 | T41: 7.422222222 | U41: 7.475 | V41: 7.430555556 | W41: 7.455555556 | X41: 8.169444444 | Y41: 8.525 | Z41: 8.638888889 | AA41: 9.3 | AB41: 10.025 | AC41: 10.27777778 | AD41: 10.52777778 | AE41: 10.78055556 | AF41: 10.43333333 | AG41: 10.70555556
A42: 34 | B42: 72 | E42: =([4]Gaspreise!G37*'DCF (2012)'!$C$20)/0.9 -> 7.320987654 | F42: =([4]Gaspreise!H37*'DCF (2012)'!$C$20)/0.9 -> 6.97928913 | G42: =([4]Gaspreise!I37*'DCF (2012)'!$C$20)/$C$1 -> 10.6375992 | H42: 5.986111111 | I42: 7.166666667 | J42: 7.536111111 | K42: 7.152777778 | L42: 6.763888889 | M42: 6.375 | N42: 5.841666667 | O42: 5.694444444 | P42: 6.869444444 | Q42: 7.319444444 | R42: 7.477777778 | S42: 7.488888889 | T42: 7.422222222 | U42: 7.475 | V42: 7.430555556 | W42: 7.455555556 | X42: 8.169444444 | Y42: 8.525 | Z42: 8.638888889 | AA42: 9.3 | AB42: 10.025 | AC42: 10.27777778 | AD42: 10.52777778 | AE42: 10.78055556 | AF42: 10.43333333 | AG42: 10.70555556
A43: 35 | B43: 180 | E43: =([4]Gaspreise!G38*'DCF (2012)'!$C$20)/0.9 -> 7.009259259 | F43: =([4]Gaspreise!H38*'DCF (2012)'!$C$20)/0.9 -> 6.541719763 | G43: =([4]Gaspreise!I38*'DCF (2012)'!$C$20)/$C$1 -> 10.0529826 | H43: 5.541666667 | I43: 6.369444444 | J43: 6.711111111 | K43: 6.461111111 | L43: 6.205555556 | M43: 5.952777778 | N43: 4.158333333 | O43: 5.966666667 | P43: 6.436111111 | Q43: 6.713888889 | R43: 6.730555556 | S43: 6.822222222 | T43: 6.794444444 | U43: 6.838888889 | V43: 6.797222222 | W43: 6.941666667 | X43: 7.811111111 | Y43: 7.8 | Z43: 8.058333333 | AA43: 9.130555556 | AB43: 9.608333333 | AC43: 9.858333333 | AD43: 10.11111111 | AE43: 10.36111111 | AF43: 10.13333333 | AG43: 10.4
A44: 36 | B44: 90 | E44: =([4]Gaspreise!G39*'DCF (2012)'!$C$20)/0.9 -> 7.009259259 | F44: =([4]Gaspreise!H39*'DCF (2012)'!$C$20)/0.9 -> 6.541719763 | G44: =([4]Gaspreise!I39*'DCF (2012)'!$C$20)/$C$1 -> 10.0529826 | H44: 5.541666667 | I44: 6.369444444 | J44: 6.711111111 | K44: 6.461111111 | L44: 6.205555556 | M44: 5.952777778 | N44: 4.158333333 | O44: 5.966666667 | P44: 6.436111111 | Q44: 6.713888889 | R44: 6.730555556 | S44: 6.822222222 | T44: 6.794444444 | U44: 6.838888889 | V44: 6.797222222 | W44: 6.941666667 | X44: 7.811111111 | Y44: 7.8 | Z44: 8.058333333 | AA44: 9.130555556 | AB44: 9.608333333 | AC44: 9.858333333 | AD44: 10.11111111 | AE44: 10.36111111 | AF44: 10.13333333 | AG44: 10.4
A45: 37 | B45: 90 | E45: =([4]Gaspreise!G40*'DCF (2012)'!$C$20)/0.9 -> 7.009259259 | F45: =([4]Gaspreise!H40*'DCF (2012)'!$C$20)/0.9 -> 6.541719763 | G45: =([4]Gaspreise!I40*'DCF (2012)'!$C$20)/$C$1 -> 10.0529826 | H45: 5.541666667 | I45: 6.369444444 | J45: 6.711111111 | K45: 6.461111111 | L45: 6.205555556 | M45: 5.952777778 | N45: 4.158333333 | O45: 5.966666667 | P45: 6.436111111 | Q45: 6.713888889 | R45: 6.730555556 | S45: 6.822222222 | T45: 6.794444444 | U45: 6.838888889 | V45: 6.797222222 | W45: 6.941666667 | X45: 7.811111111 | Y45: 7.8 | Z45: 8.058333333 | AA45: 9.130555556 | AB45: 9.608333333 | AC45: 9.858333333 | AD45: 10.11111111 | AE45: 10.36111111 | AF45: 10.13333333 | AG45: 10.4
A46: 38 | B46: 90 | E46: =([4]Gaspreise!G41*'DCF (2012)'!$C$20)/0.9 -> 7.009259259 | F46: =([4]Gaspreise!H41*'DCF (2012)'!$C$20)/0.9 -> 6.541719763 | G46: =([4]Gaspreise!I41*'DCF (2012)'!$C$20)/$C$1 -> 10.0529826 | H46: 5.541666667 | I46: 6.369444444 | J46: 6.711111111 | K46: 6.461111111 | L46: 6.205555556 | M46: 5.952777778 | N46: 4.158333333 | O46: 5.966666667 | P46: 6.436111111 | Q46: 6.713888889 | R46: 6.730555556 | S46: 6.822222222 | T46: 6.794444444 | U46: 6.838888889 | V46: 6.797222222 | W46: 6.941666667 | X46: 7.811111111 | Y46: 7.8 | Z46: 8.058333333 | AA46: 9.130555556 | AB46: 9.608333333 | AC46: 9.858333333 | AD46: 10.11111111 | AE46: 10.36111111 | AF46: 10.13333333 | AG46: 10.4
A47: 39 | B47: 90 | E47: =([4]Gaspreise!G42*'DCF (2012)'!$C$20)/0.9 -> 7.009259259 | F47: =([4]Gaspreise!H42*'DCF (2012)'!$C$20)/0.9 -> 6.541719763 | G47: =([4]Gaspreise!I42*'DCF (2012)'!$C$20)/$C$1 -> 10.0529826 | H47: 5.541666667 | I47: 6.369444444 | J47: 6.711111111 | K47: 6.461111111 | L47: 6.205555556 | M47: 5.952777778 | N47: 4.158333333 | O47: 5.966666667 | P47: 6.436111111 | Q47: 6.713888889 | R47: 6.730555556 | S47: 6.822222222 | T47: 6.794444444 | U47: 6.838888889 | V47: 6.797222222 | W47: 6.941666667 | X47: 7.811111111 | Y47: 7.8 | Z47: 8.058333333 | AA47: 9.130555556 | AB47: 9.608333333 | AC47: 9.858333333 | AD47: 10.11111111 | AE47: 10.36111111 | AF47: 10.13333333 | AG47: 10.4
A48: 40 | B48: 90 | E48: =([4]Gaspreise!G43*'DCF (2012)'!$C$20)/0.9 -> 7.009259259 | F48: =([4]Gaspreise!H43*'DCF (2012)'!$C$20)/0.9 -> 6.541719763 | G48: =([4]Gaspreise!I43*'DCF (2012)'!$C$20)/$C$1 -> 10.0529826 | H48: 5.541666667 | I48: 6.369444444 | J48: 6.711111111 | K48: 6.461111111 | L48: 6.205555556 | M48: 5.952777778 | N48: 4.158333333 | O48: 5.966666667 | P48: 6.436111111 | Q48: 6.713888889 | R48: 6.730555556 | S48: 6.822222222 | T48: 6.794444444 | U48: 6.838888889 | V48: 6.797222222 | W48: 6.941666667 | X48: 7.811111111 | Y48: 7.8 | Z48: 8.058333333 | AA48: 9.130555556 | AB48: 9.608333333 | AC48: 9.858333333 | AD48: 10.11111111 | AE48: 10.36111111 | AF48: 10.13333333 | AG48: 10.4
A49: 41 | B49: 135 | E49: =([4]Gaspreise!G44*'DCF (2012)'!$C$20)/0.9 -> 7.009259259 | F49: =([4]Gaspreise!H44*'DCF (2012)'!$C$20)/0.9 -> 6.541719763 | G49: =([4]Gaspreise!I44*'DCF (2012)'!$C$20)/$C$1 -> 10.0529826 | H49: 5.541666667 | I49: 6.369444444 | J49: 6.711111111 | K49: 6.461111111 | L49: 6.205555556 | M49: 5.952777778 | N49: 4.158333333 | O49: 5.966666667 | P49: 6.436111111 | Q49: 6.713888889 | R49: 6.730555556 | S49: 6.822222222 | T49: 6.794444444 | U49: 6.838888889 | V49: 6.797222222 | W49: 6.941666667 | X49: 7.811111111 | Y49: 7.8 | Z49: 8.058333333 | AA49: 9.130555556 | AB49: 9.608333333 | AC49: 9.858333333 | AD49: 10.11111111 | AE49: 10.36111111 | AF49: 10.13333333 | AG49: 10.4
A50: 42 | B50: 135 | E50: =([4]Gaspreise!G45*'DCF (2012)'!$C$20)/0.9 -> 7.009259259 | F50: =([4]Gaspreise!H45*'DCF (2012)'!$C$20)/0.9 -> 6.541719763 | G50: =([4]Gaspreise!I45*'DCF (2012)'!$C$20)/$C$1 -> 10.0529826 | H50: 5.541666667 | I50: 6.369444444 | J50: 6.711111111 | K50: 6.461111111 | L50: 6.205555556 | M50: 5.952777778 | N50: 4.158333333 | O50: 5.966666667 | P50: 6.436111111 | Q50: 6.713888889 | R50: 6.730555556 | S50: 6.822222222 | T50: 6.794444444 | U50: 6.838888889 | V50: 6.797222222 | W50: 6.941666667 | X50: 7.811111111 | Y50: 7.8 | Z50: 8.058333333 | AA50: 9.130555556 | AB50: 9.608333333 | AC50: 9.858333333 | AD50: 10.11111111 | AE50: 10.36111111 | AF50: 10.13333333 | AG50: 10.4
A51: 43 | B51: 90 | E51: =([4]Gaspreise!G46*'DCF (2012)'!$C$20)/0.9 -> 7.009259259 | F51: =([4]Gaspreise!H46*'DCF (2012)'!$C$20)/0.9 -> 6.541719763 | G51: =([4]Gaspreise!I46*'DCF (2012)'!$C$20)/$C$1 -> 10.0529826 | H51: 5.541666667 | I51: 6.369444444 | J51: 6.711111111 | K51: 6.461111111 | L51: 6.205555556 | M51: 5.952777778 | N51: 4.158333333 | O51: 5.966666667 | P51: 6.436111111 | Q51: 6.713888889 | R51: 6.730555556 | S51: 6.822222222 | T51: 6.794444444 | U51: 6.838888889 | V51: 6.797222222 | W51: 6.941666667 | X51: 7.811111111 | Y51: 7.8 | Z51: 8.058333333 | AA51: 9.130555556 | AB51: 9.608333333 | AC51: 9.858333333 | AD51: 10.11111111 | AE51: 10.36111111 | AF51: 10.13333333 | AG51: 10.4
A52: 44 | B52: 90 | E52: =([4]Gaspreise!G47*'DCF (2012)'!$C$20)/0.9 -> 7.009259259 | F52: =([4]Gaspreise!H47*'DCF (2012)'!$C$20)/0.9 -> 6.541719763 | G52: =([4]Gaspreise!I47*'DCF (2012)'!$C$20)/$C$1 -> 10.0529826 | H52: 5.541666667 | I52: 6.369444444 | J52: 6.711111111 | K52: 6.461111111 | L52: 6.205555556 | M52: 5.952777778 | N52: 4.158333333 | O52: 5.966666667 | P52: 6.436111111 | Q52: 6.713888889 | R52: 6.730555556 | S52: 6.822222222 | T52: 6.794444444 | U52: 6.838888889 | V52: 6.797222222 | W52: 6.941666667 | X52: 7.811111111 | Y52: 7.8 | Z52: 8.058333333 | AA52: 9.130555556 | AB52: 9.608333333 | AC52: 9.858333333 | AD52: 10.11111111 | AE52: 10.36111111 | AF52: 10.13333333 | AG52: 10.4
A53: 45 | B53: 108 | E53: =([4]Gaspreise!G48*'DCF (2012)'!$C$20)/0.9 -> 7.009259259 | F53: =([4]Gaspreise!H48*'DCF (2012)'!$C$20)/0.9 -> 6.541719763 | G53: =([4]Gaspreise!I48*'DCF (2012)'!$C$20)/$C$1 -> 10.0529826 | H53: 5.541666667 | I53: 6.369444444 | J53: 6.711111111 | K53: 6.461111111 | L53: 6.205555556 | M53: 5.952777778 | N53: 4.158333333 | O53: 5.966666667 | P53: 6.436111111 | Q53: 6.713888889 | R53: 6.730555556 | S53: 6.822222222 | T53: 6.794444444 | U53: 6.838888889 | V53: 6.797222222 | W53: 6.941666667 | X53: 7.811111111 | Y53: 7.8 | Z53: 8.058333333 | AA53: 9.130555556 | AB53: 9.608333333 | AC53: 9.858333333 | AD53: 10.11111111 | AE53: 10.36111111 | AF53: 10.13333333 | AG53: 10.4
A54: 46 | B54: 54 | E54: =([4]Gaspreise!G49*'DCF (2012)'!$C$20)/0.9 -> 7.009259259 | F54: =([4]Gaspreise!H49*'DCF (2012)'!$C$20)/0.9 -> 6.541719763 | G54: =([4]Gaspreise!I49*'DCF (2012)'!$C$20)/$C$1 -> 10.0529826 | H54: 5.541666667 | I54: 6.369444444 | J54: 6.711111111 | K54: 6.461111111 | L54: 6.205555556 | M54: 5.952777778 | N54: 4.158333333 | O54: 5.966666667 | P54: 6.436111111 | Q54: 6.713888889 | R54: 6.730555556 | S54: 6.822222222 | T54: 6.794444444 | U54: 6.838888889 | V54: 6.797222222 | W54: 6.941666667 | X54: 7.811111111 | Y54: 7.8 | Z54: 8.058333333 | AA54: 9.130555556 | AB54: 9.608333333 | AC54: 9.858333333 | AD54: 10.11111111 | AE54: 10.36111111 | AF54: 10.13333333 | AG54: 10.4
A55: 47 | B55: 36 | E55: =([4]Gaspreise!G50*'DCF (2012)'!$C$20)/0.9 -> 7.009259259 | F55: =([4]Gaspreise!H50*'DCF (2012)'!$C$20)/0.9 -> 6.541719763 | G55: =([4]Gaspreise!I50*'DCF (2012)'!$C$20)/$C$1 -> 10.0529826 | H55: 5.541666667 | I55: 6.369444444 | J55: 6.711111111 | K55: 6.461111111 | L55: 6.205555556 | M55: 5.952777778 | N55: 4.158333333 | O55: 5.966666667 | P55: 6.436111111 | Q55: 6.713888889 | R55: 6.730555556 | S55: 6.822222222 | T55: 6.794444444 | U55: 6.838888889 | V55: 6.797222222 | W55: 6.941666667 | X55: 7.811111111 | Y55: 7.8 | Z55: 8.058333333 | AA55: 9.130555556 | AB55: 9.608333333 | AC55: 9.858333333 | AD55: 10.11111111 | AE55: 10.36111111 | AF55: 10.13333333 | AG55: 10.4
A56: 48 | B56: 36 | E56: =([4]Gaspreise!G51*'DCF (2012)'!$C$20)/0.9 -> 7.009259259 | F56: =([4]Gaspreise!H51*'DCF (2012)'!$C$20)/0.9 -> 6.541719763 | G56: =([4]Gaspreise!I51*'DCF (2012)'!$C$20)/$C$1 -> 10.0529826 | H56: 5.541666667 | I56: 6.369444444 | J56: 6.711111111 | K56: 6.461111111 | L56: 6.205555556 | M56: 5.952777778 | N56: 4.158333333 | O56: 5.966666667 | P56: 6.436111111 | Q56: 6.713888889 | R56: 6.730555556 | S56: 6.822222222 | T56: 6.794444444 | U56: 6.838888889 | V56: 6.797222222 | W56: 6.941666667 | X56: 7.811111111 | Y56: 7.8 | Z56: 8.058333333 | AA56: 9.130555556 | AB56: 9.608333333 | AC56: 9.858333333 | AD56: 10.11111111 | AE56: 10.36111111 | AF56: 10.13333333 | AG56: 10.4
A57: 49 | B57: 72 | E57: =([4]Gaspreise!G52*'DCF (2012)'!$C$20)/0.9 -> 7.009259259 | F57: =([4]Gaspreise!H52*'DCF (2012)'!$C$20)/0.9 -> 6.541719763 | G57: =([4]Gaspreise!I52*'DCF (2012)'!$C$20)/$C$1 -> 10.0529826 | H57: 5.541666667 | I57: 6.369444444 | J57: 6.711111111 | K57: 6.461111111 | L57: 6.205555556 | M57: 5.952777778 | N57: 4.158333333 | O57: 5.966666667 | P57: 6.436111111 | Q57: 6.713888889 | R57: 6.730555556 | S57: 6.822222222 | T57: 6.794444444 | U57: 6.838888889 | V57: 6.797222222 | W57: 6.941666667 | X57: 7.811111111 | Y57: 7.8 | Z57: 8.058333333 | AA57: 9.130555556 | AB57: 9.608333333 | AC57: 9.858333333 | AD57: 10.11111111 | AE57: 10.36111111 | AF57: 10.13333333 | AG57: 10.4
A58: 50 | B58: 54 | E58: =([4]Gaspreise!G53*'DCF (2012)'!$C$20)/0.9 -> 7.009259259 | F58: =([4]Gaspreise!H53*'DCF (2012)'!$C$20)/0.9 -> 6.541719763 | G58: =([4]Gaspreise!I53*'DCF (2012)'!$C$20)/$C$1 -> 10.0529826 | H58: 5.541666667 | I58: 6.369444444 | J58: 6.711111111 | K58: 6.461111111 | L58: 6.205555556 | M58: 5.952777778 | N58: 4.158333333 | O58: 5.966666667 | P58: 6.436111111 | Q58: 6.713888889 | R58: 6.730555556 | S58: 6.822222222 | T58: 6.794444444 | U58: 6.838888889 | V58: 6.797222222 | W58: 6.941666667 | X58: 7.811111111 | Y58: 7.8 | Z58: 8.058333333 | AA58: 9.130555556 | AB58: 9.608333333 | AC58: 9.858333333 | AD58: 10.11111111 | AE58: 10.36111111 | AF58: 10.13333333 | AG58: 10.4
A59: 51 | B59: 72 | E59: =([4]Gaspreise!G54*'DCF (2012)'!$C$20)/0.9 -> 7.009259259 | F59: =([4]Gaspreise!H54*'DCF (2012)'!$C$20)/0.9 -> 6.541719763 | G59: =([4]Gaspreise!I54*'DCF (2012)'!$C$20)/$C$1 -> 10.0529826 | H59: 5.541666667 | I59: 6.369444444 | J59: 6.711111111 | K59: 6.461111111 | L59: 6.205555556 | M59: 5.952777778 | N59: 4.158333333 | O59: 5.966666667 | P59: 6.436111111 | Q59: 6.713888889 | R59: 6.730555556 | S59: 6.822222222 | T59: 6.794444444 | U59: 6.838888889 | V59: 6.797222222 | W59: 6.941666667 | X59: 7.811111111 | Y59: 7.8 | Z59: 8.058333333 | AA59: 9.130555556 | AB59: 9.608333333 | AC59: 9.858333333 | AD59: 10.11111111 | AE59: 10.36111111 | AF59: 10.13333333 | AG59: 10.4
A60: 52 | B60: 180 | E60: =([4]Gaspreise!G55*'DCF (2012)'!$C$20)/0.9 -> 7.009259259 | F60: =([4]Gaspreise!H55*'DCF (2012)'!$C$20)/0.9 -> 6.541719763 | G60: =([4]Gaspreise!I55*'DCF (2012)'!$C$20)/$C$1 -> 10.0529826 | H60: 5.441666667 | I60: 6.255555556 | J60: 6.569444444 | K60: 6.366666667 | L60: 6.158333333 | M60: 5.952777778 | N60: 4.158333333 | O60: 5.966666667 | P60: 6.436111111 | Q60: 6.713888889 | R60: 6.730555556 | S60: 6.822222222 | T60: 6.794444444 | U60: 6.838888889 | V60: 6.797222222 | W60: 6.941666667 | X60: 7.811111111 | Y60: 7.8 | Z60: 8.058333333 | AA60: 9.130555556 | AB60: 9.608333333 | AC60: 9.858333333 | AD60: 10.11111111 | AE60: 10.36111111 | AF60: 10.13333333 | AG60: 10.4
A61: 53 | B61: 90 | E61: =([4]Gaspreise!G56*'DCF (2012)'!$C$20)/0.9 -> 7.009259259 | F61: =([4]Gaspreise!H56*'DCF (2012)'!$C$20)/0.9 -> 6.541719763 | G61: =([4]Gaspreise!I56*'DCF (2012)'!$C$20)/$C$1 -> 10.0529826 | H61: 5.441666667 | I61: 6.255555556 | J61: 6.569444444 | K61: 6.366666667 | L61: 6.158333333 | M61: 5.952777778 | N61: 4.158333333 | O61: 5.966666667 | P61: 6.436111111 | Q61: 6.713888889 | R61: 6.730555556 | S61: 6.822222222 | T61: 6.794444444 | U61: 6.838888889 | V61: 6.797222222 | W61: 6.941666667 | X61: 7.811111111 | Y61: 7.8 | Z61: 8.058333333 | AA61: 9.130555556 | AB61: 9.608333333 | AC61: 9.858333333 | AD61: 10.11111111 | AE61: 10.36111111 | AF61: 10.13333333 | AG61: 10.4
A62: 54 | B62: 90 | E62: =([4]Gaspreise!G57*'DCF (2012)'!$C$20)/0.9 -> 7.009259259 | F62: =([4]Gaspreise!H57*'DCF (2012)'!$C$20)/0.9 -> 6.541719763 | G62: =([4]Gaspreise!I57*'DCF (2012)'!$C$20)/$C$1 -> 10.0529826 | H62: 5.441666667 | I62: 6.255555556 | J62: 6.569444444 | K62: 6.366666667 | L62: 6.158333333 | M62: 5.952777778 | N62: 4.158333333 | O62: 5.966666667 | P62: 6.436111111 | Q62: 6.713888889 | R62: 6.730555556 | S62: 6.822222222 | T62: 6.794444444 | U62: 6.838888889 | V62: 6.797222222 | W62: 6.941666667 | X62: 7.811111111 | Y62: 7.8 | Z62: 8.058333333 | AA62: 9.130555556 | AB62: 9.608333333 | AC62: 9.858333333 | AD62: 10.11111111 | AE62: 10.36111111 | AF62: 10.13333333 | AG62: 10.4
A63: 55 | B63: 90 | E63: =([4]Gaspreise!G58*'DCF (2012)'!$C$20)/0.9 -> 7.009259259 | F63: =([4]Gaspreise!H58*'DCF (2012)'!$C$20)/0.9 -> 6.541719763 | G63: =([4]Gaspreise!I58*'DCF (2012)'!$C$20)/$C$1 -> 10.0529826 | H63: 5.441666667 | I63: 6.255555556 | J63: 6.569444444 | K63: 6.366666667 | L63: 6.158333333 | M63: 5.952777778 | N63: 4.158333333 | O63: 5.966666667 | P63: 6.436111111 | Q63: 6.713888889 | R63: 6.730555556 | S63: 6.822222222 | T63: 6.794444444 | U63: 6.838888889 | V63: 6.797222222 | W63: 6.941666667 | X63: 7.811111111 | Y63: 7.8 | Z63: 8.058333333 | AA63: 9.130555556 | AB63: 9.608333333 | AC63: 9.858333333 | AD63: 10.11111111 | AE63: 10.36111111 | AF63: 10.13333333 | AG63: 10.4
A64: 56 | B64: 90 | E64: =([4]Gaspreise!G59*'DCF (2012)'!$C$20)/0.9 -> 7.009259259 | F64: =([4]Gaspreise!H59*'DCF (2012)'!$C$20)/0.9 -> 6.541719763 | G64: =([4]Gaspreise!I59*'DCF (2012)'!$C$20)/$C$1 -> 10.0529826 | H64: 5.441666667 | I64: 6.255555556 | J64: 6.569444444 | K64: 6.366666667 | L64: 6.158333333 | M64: 5.952777778 | N64: 4.158333333 | O64: 5.966666667 | P64: 6.436111111 | Q64: 6.713888889 | R64: 6.730555556 | S64: 6.822222222 | T64: 6.794444444 | U64: 6.838888889 | V64: 6.797222222 | W64: 6.941666667 | X64: 7.811111111 | Y64: 7.8 | Z64: 8.058333333 | AA64: 9.130555556 | AB64: 9.608333333 | AC64: 9.858333333 | AD64: 10.11111111 | AE64: 10.36111111 | AF64: 10.13333333 | AG64: 10.4
A65: 57 | B65: 90 | E65: =([4]Gaspreise!G60*'DCF (2012)'!$C$20)/0.9 -> 7.009259259 | F65: =([4]Gaspreise!H60*'DCF (2012)'!$C$20)/0.9 -> 6.541719763 | G65: =([4]Gaspreise!I60*'DCF (2012)'!$C$20)/$C$1 -> 10.0529826 | H65: 5.441666667 | I65: 6.255555556 | J65: 6.569444444 | K65: 6.366666667 | L65: 6.158333333 | M65: 5.952777778 | N65: 4.158333333 | O65: 5.966666667 | P65: 6.436111111 | Q65: 6.713888889 | R65: 6.730555556 | S65: 6.822222222 | T65: 6.794444444 | U65: 6.838888889 | V65: 6.797222222 | W65: 6.941666667 | X65: 7.811111111 | Y65: 7.8 | Z65: 8.058333333 | AA65: 9.130555556 | AB65: 9.608333333 | AC65: 9.858333333 | AD65: 10.11111111 | AE65: 10.36111111 | AF65: 10.13333333 | AG65: 10.4
A66: 58 | B66: 135 | E66: =([4]Gaspreise!G61*'DCF (2012)'!$C$20)/0.9 -> 7.009259259 | F66: =([4]Gaspreise!H61*'DCF (2012)'!$C$20)/0.9 -> 6.541719763 | G66: =([4]Gaspreise!I61*'DCF (2012)'!$C$20)/$C$1 -> 10.0529826 | H66: 5.441666667 | I66: 6.255555556 | J66: 6.569444444 | K66: 6.366666667 | L66: 6.158333333 | M66: 5.952777778 | N66: 4.158333333 | O66: 5.966666667 | P66: 6.436111111 | Q66: 6.713888889 | R66: 6.730555556 | S66: 6.822222222 | T66: 6.794444444 | U66: 6.838888889 | V66: 6.797222222 | W66: 6.941666667 | X66: 7.811111111 | Y66: 7.8 | Z66: 8.058333333 | AA66: 9.130555556 | AB66: 9.608333333 | AC66: 9.858333333 | AD66: 10.11111111 | AE66: 10.36111111 | AF66: 10.13333333 | AG66: 10.4
A67: 59 | B67: 135 | E67: =([4]Gaspreise!G62*'DCF (2012)'!$C$20)/0.9 -> 7.009259259 | F67: =([4]Gaspreise!H62*'DCF (2012)'!$C$20)/0.9 -> 6.541719763 | G67: =([4]Gaspreise!I62*'DCF (2012)'!$C$20)/$C$1 -> 10.0529826 | H67: 5.441666667 | I67: 6.255555556 | J67: 6.569444444 | K67: 6.366666667 | L67: 6.158333333 | M67: 5.952777778 | N67: 4.158333333 | O67: 5.966666667 | P67: 6.436111111 | Q67: 6.713888889 | R67: 6.730555556 | S67: 6.822222222 | T67: 6.794444444 | U67: 6.838888889 | V67: 6.797222222 | W67: 6.941666667 | X67: 7.811111111 | Y67: 7.8 | Z67: 8.058333333 | AA67: 9.130555556 | AB67: 9.608333333 | AC67: 9.858333333 | AD67: 10.11111111 | AE67: 10.36111111 | AF67: 10.13333333 | AG67: 10.4
A68: 60 | B68: 90 | E68: =([4]Gaspreise!G63*'DCF (2012)'!$C$20)/0.9 -> 7.009259259 | F68: =([4]Gaspreise!H63*'DCF (2012)'!$C$20)/0.9 -> 6.541719763 | G68: =([4]Gaspreise!I63*'DCF (2012)'!$C$20)/$C$1 -> 10.0529826 | H68: 5.441666667 | I68: 6.255555556 | J68: 6.569444444 | K68: 6.366666667 | L68: 6.158333333 | M68: 5.952777778 | N68: 4.158333333 | O68: 5.966666667 | P68: 6.436111111 | Q68: 6.713888889 | R68: 6.730555556 | S68: 6.822222222 | T68: 6.794444444 | U68: 6.838888889 | V68: 6.797222222 | W68: 6.941666667 | X68: 7.811111111 | Y68: 7.8 | Z68: 8.058333333 | AA68: 9.130555556 | AB68: 9.608333333 | AC68: 9.858333333 | AD68: 10.11111111 | AE68: 10.36111111 | AF68: 10.13333333 | AG68: 10.4
A69: 61 | B69: 90 | E69: =([4]Gaspreise!G64*'DCF (2012)'!$C$20)/0.9 -> 7.009259259 | F69: =([4]Gaspreise!H64*'DCF (2012)'!$C$20)/0.9 -> 6.541719763 | G69: =([4]Gaspreise!I64*'DCF (2012)'!$C$20)/$C$1 -> 10.0529826 | H69: 5.441666667 | I69: 6.255555556 | J69: 6.569444444 | K69: 6.366666667 | L69: 6.158333333 | M69: 5.952777778 | N69: 4.158333333 | O69: 5.966666667 | P69: 6.436111111 | Q69: 6.713888889 | R69: 6.730555556 | S69: 6.822222222 | T69: 6.794444444 | U69: 6.838888889 | V69: 6.797222222 | W69: 6.941666667 | X69: 7.811111111 | Y69: 7.8 | Z69: 8.058333333 | AA69: 9.130555556 | AB69: 9.608333333 | AC69: 9.858333333 | AD69: 10.11111111 | AE69: 10.36111111 | AF69: 10.13333333 | AG69: 10.4
A70: 62 | B70: 108 | E70: =([4]Gaspreise!G65*'DCF (2012)'!$C$20)/0.9 -> 7.009259259 | F70: =([4]Gaspreise!H65*'DCF (2012)'!$C$20)/0.9 -> 6.541719763 | G70: =([4]Gaspreise!I65*'DCF (2012)'!$C$20)/$C$1 -> 10.0529826 | H70: 5.441666667 | I70: 6.255555556 | J70: 6.569444444 | K70: 6.366666667 | L70: 6.158333333 | M70: 5.952777778 | N70: 4.158333333 | O70: 5.966666667 | P70: 6.436111111 | Q70: 6.713888889 | R70: 6.730555556 | S70: 6.822222222 | T70: 6.794444444 | U70: 6.838888889 | V70: 6.797222222 | W70: 6.941666667 | X70: 7.811111111 | Y70: 7.8 | Z70: 8.058333333 | AA70: 9.130555556 | AB70: 9.608333333 | AC70: 9.858333333 | AD70: 10.11111111 | AE70: 10.36111111 | AF70: 10.13333333 | AG70: 10.4
A71: 63 | B71: 54 | E71: =([4]Gaspreise!G66*'DCF (2012)'!$C$20)/0.9 -> 7.009259259 | F71: =([4]Gaspreise!H66*'DCF (2012)'!$C$20)/0.9 -> 6.541719763 | G71: =([4]Gaspreise!I66*'DCF (2012)'!$C$20)/$C$1 -> 10.0529826 | H71: 5.441666667 | I71: 6.255555556 | J71: 6.569444444 | K71: 6.366666667 | L71: 6.158333333 | M71: 5.952777778 | N71: 4.158333333 | O71: 5.966666667 | P71: 6.436111111 | Q71: 6.713888889 | R71: 6.730555556 | S71: 6.822222222 | T71: 6.794444444 | U71: 6.838888889 | V71: 6.797222222 | W71: 6.941666667 | X71: 7.811111111 | Y71: 7.8 | Z71: 8.058333333 | AA71: 9.130555556 | AB71: 9.608333333 | AC71: 9.858333333 | AD71: 10.11111111 | AE71: 10.36111111 | AF71: 10.13333333 | AG71: 10.4
A72: 64 | B72: 36 | E72: =([4]Gaspreise!G67*'DCF (2012)'!$C$20)/0.9 -> 7.009259259 | F72: =([4]Gaspreise!H67*'DCF (2012)'!$C$20)/0.9 -> 6.541719763 | G72: =([4]Gaspreise!I67*'DCF (2012)'!$C$20)/$C$1 -> 10.0529826 | H72: 5.441666667 | I72: 6.255555556 | J72: 6.569444444 | K72: 6.366666667 | L72: 6.158333333 | M72: 5.952777778 | N72: 4.158333333 | O72: 5.966666667 | P72: 6.436111111 | Q72: 6.713888889 | R72: 6.730555556 | S72: 6.822222222 | T72: 6.794444444 | U72: 6.838888889 | V72: 6.797222222 | W72: 6.941666667 | X72: 7.811111111 | Y72: 7.8 | Z72: 8.058333333 | AA72: 9.130555556 | AB72: 9.608333333 | AC72: 9.858333333 | AD72: 10.11111111 | AE72: 10.36111111 | AF72: 10.13333333 | AG72: 10.4
A73: 65 | B73: 36 | E73: =([4]Gaspreise!G68*'DCF (2012)'!$C$20)/0.9 -> 7.009259259 | F73: =([4]Gaspreise!H68*'DCF (2012)'!$C$20)/0.9 -> 6.541719763 | G73: =([4]Gaspreise!I68*'DCF (2012)'!$C$20)/$C$1 -> 10.0529826 | H73: 5.441666667 | I73: 6.255555556 | J73: 6.569444444 | K73: 6.366666667 | L73: 6.158333333 | M73: 5.952777778 | N73: 4.158333333 | O73: 5.966666667 | P73: 6.436111111 | Q73: 6.713888889 | R73: 6.730555556 | S73: 6.822222222 | T73: 6.794444444 | U73: 6.838888889 | V73: 6.797222222 | W73: 6.941666667 | X73: 7.811111111 | Y73: 7.8 | Z73: 8.058333333 | AA73: 9.130555556 | AB73: 9.608333333 | AC73: 9.858333333 | AD73: 10.11111111 | AE73: 10.36111111 | AF73: 10.13333333 | AG73: 10.4
A74: 66 | B74: 72 | E74: =([4]Gaspreise!G69*'DCF (2012)'!$C$20)/0.9 -> 7.009259259 | F74: =([4]Gaspreise!H69*'DCF (2012)'!$C$20)/0.9 -> 6.541719763 | G74: =([4]Gaspreise!I69*'DCF (2012)'!$C$20)/$C$1 -> 10.0529826 | H74: 5.441666667 | I74: 6.255555556 | J74: 6.569444444 | K74: 6.366666667 | L74: 6.158333333 | M74: 5.952777778 | N74: 4.158333333 | O74: 5.966666667 | P74: 6.436111111 | Q74: 6.713888889 | R74: 6.730555556 | S74: 6.822222222 | T74: 6.794444444 | U74: 6.838888889 | V74: 6.797222222 | W74: 6.941666667 | X74: 7.811111111 | Y74: 7.8 | Z74: 8.058333333 | AA74: 9.130555556 | AB74: 9.608333333 | AC74: 9.858333333 | AD74: 10.11111111 | AE74: 10.36111111 | AF74: 10.13333333 | AG74: 10.4
A75: 67 | B75: 54 | E75: =([4]Gaspreise!G70*'DCF (2012)'!$C$20)/0.9 -> 7.009259259 | F75: =([4]Gaspreise!H70*'DCF (2012)'!$C$20)/0.9 -> 6.541719763 | G75: =([4]Gaspreise!I70*'DCF (2012)'!$C$20)/$C$1 -> 10.0529826 | H75: 5.441666667 | I75: 6.255555556 | J75: 6.569444444 | K75: 6.366666667 | L75: 6.158333333 | M75: 5.952777778 | N75: 4.158333333 | O75: 5.966666667 | P75: 6.436111111 | Q75: 6.713888889 | R75: 6.730555556 | S75: 6.822222222 | T75: 6.794444444 | U75: 6.838888889 | V75: 6.797222222 | W75: 6.941666667 | X75: 7.811111111 | Y75: 7.8 | Z75: 8.058333333 | AA75: 9.130555556 | AB75: 9.608333333 | AC75: 9.858333333 | AD75: 10.11111111 | AE75: 10.36111111 | AF75: 10.13333333 | AG75: 10.4
A76: 68 | B76: 72 | E76: =([4]Gaspreise!G71*'DCF (2012)'!$C$20)/0.9 -> 7.009259259 | F76: =([4]Gaspreise!H71*'DCF (2012)'!$C$20)/0.9 -> 6.541719763 | G76: =([4]Gaspreise!I71*'DCF (2012)'!$C$20)/$C$1 -> 10.0529826 | H76: 5.441666667 | I76: 6.255555556 | J76: 6.569444444 | K76: 6.366666667 | L76: 6.158333333 | M76: 5.952777778 | N76: 4.158333333 | O76: 5.966666667 | P76: 6.436111111 | Q76: 6.713888889 | R76: 6.730555556 | S76: 6.822222222 | T76: 6.794444444 | U76: 6.838888889 | V76: 6.797222222 | W76: 6.941666667 | X76: 7.811111111 | Y76: 7.8 | Z76: 8.058333333 | AA76: 9.130555556 | AB76: 9.608333333 | AC76: 9.858333333 | AD76: 10.11111111 | AE76: 10.36111111 | AF76: 10.13333333 | AG76: 10.4
A77: 69 | B77: 160 | E77: =([4]Gaspreise!G72*'DCF (2012)'!$C$20)/0.9 -> 7.320987654 | F77: =([4]Gaspreise!H72*'DCF (2012)'!$C$20)/0.9 -> 6.541719763 | G77: =([4]Gaspreise!I72*'DCF (2012)'!$C$20)/$C$1 -> 10.0529826 | H77: 5.802777778 | I77: 6.288888889 | J77: 6.627777778 | K77: 6.402777778 | L77: 6.177777778 | M77: 5.952777778 | N77: 4.141666667 | O77: 5.947222222 | P77: 6.386111111 | Q77: 6.672222222 | R77: 6.658333333 | S77: 6.797222222 | T77: 6.736111111 | U77: 6.794444444 | V77: 6.783333333 | W77: 6.913888889 | X77: 7.783333333 | Y77: 7.772222222 | Z77: 8.030555556 | AA77: 9.108333333 | AB77: 9.602777778 | AC77: 9.852777778 | AD77: 10.10555556 | AE77: 10.35555556 | AF77: 10.11388889 | AG77: 10.375
A78: 70 | B78: 80 | E78: =([4]Gaspreise!G73*'DCF (2012)'!$C$20)/0.9 -> 7.320987654 | F78: =([4]Gaspreise!H73*'DCF (2012)'!$C$20)/0.9 -> 6.541719763 | G78: =([4]Gaspreise!I73*'DCF (2012)'!$C$20)/$C$1 -> 10.0529826 | H78: 5.802777778 | I78: 6.288888889 | J78: 6.627777778 | K78: 6.402777778 | L78: 6.177777778 | M78: 5.952777778 | N78: 4.141666667 | O78: 5.947222222 | P78: 6.386111111 | Q78: 6.672222222 | R78: 6.658333333 | S78: 6.797222222 | T78: 6.736111111 | U78: 6.794444444 | V78: 6.783333333 | W78: 6.913888889 | X78: 7.783333333 | Y78: 7.772222222 | Z78: 8.030555556 | AA78: 9.108333333 | AB78: 9.602777778 | AC78: 9.852777778 | AD78: 10.10555556 | AE78: 10.35555556 | AF78: 10.11388889 | AG78: 10.375
A79: 71 | B79: 80 | E79: =([4]Gaspreise!G74*'DCF (2012)'!$C$20)/0.9 -> 7.320987654 | F79: =([4]Gaspreise!H74*'DCF (2012)'!$C$20)/0.9 -> 6.541719763 | G79: =([4]Gaspreise!I74*'DCF (2012)'!$C$20)/$C$1 -> 10.0529826 | H79: 5.802777778 | I79: 6.288888889 | J79: 6.627777778 | K79: 6.402777778 | L79: 6.177777778 | M79: 5.952777778 | N79: 4.141666667 | O79: 5.947222222 | P79: 6.386111111 | Q79: 6.672222222 | R79: 6.658333333 | S79: 6.797222222 | T79: 6.736111111 | U79: 6.794444444 | V79: 6.783333333 | W79: 6.913888889 | X79: 7.783333333 | Y79: 7.772222222 | Z79: 8.030555556 | AA79: 9.108333333 | AB79: 9.602777778 | AC79: 9.852777778 | AD79: 10.10555556 | AE79: 10.35555556 | AF79: 10.11388889 | AG79: 10.375
A80: 72 | B80: 80 | E80: =([4]Gaspreise!G75*'DCF (2012)'!$C$20)/0.9 -> 7.320987654 | F80: =([4]Gaspreise!H75*'DCF (2012)'!$C$20)/0.9 -> 6.541719763 | G80: =([4]Gaspreise!I75*'DCF (2012)'!$C$20)/$C$1 -> 10.0529826 | H80: 5.802777778 | I80: 6.288888889 | J80: 6.627777778 | K80: 6.402777778 | L80: 6.177777778 | M80: 5.952777778 | N80: 4.141666667 | O80: 5.947222222 | P80: 6.386111111 | Q80: 6.672222222 | R80: 6.658333333 | S80: 6.797222222 | T80: 6.736111111 | U80: 6.794444444 | V80: 6.783333333 | W80: 6.913888889 | X80: 7.783333333 | Y80: 7.772222222 | Z80: 8.030555556 | AA80: 9.108333333 | AB80: 9.602777778 | AC80: 9.852777778 | AD80: 10.10555556 | AE80: 10.35555556 | AF80: 10.11388889 | AG80: 10.375
A81: 73 | B81: 80 | E81: =([4]Gaspreise!G76*'DCF (2012)'!$C$20)/0.9 -> 7.320987654 | F81: =([4]Gaspreise!H76*'DCF (2012)'!$C$20)/0.9 -> 6.541719763 | G81: =([4]Gaspreise!I76*'DCF (2012)'!$C$20)/$C$1 -> 10.0529826 | H81: 5.802777778 | I81: 6.288888889 | J81: 6.627777778 | K81: 6.402777778 | L81: 6.177777778 | M81: 5.952777778 | N81: 4.141666667 | O81: 5.947222222 | P81: 6.386111111 | Q81: 6.672222222 | R81: 6.658333333 | S81: 6.797222222 | T81: 6.736111111 | U81: 6.794444444 | V81: 6.783333333 | W81: 6.913888889 | X81: 7.783333333 | Y81: 7.772222222 | Z81: 8.030555556 | AA81: 9.108333333 | AB81: 9.602777778 | AC81: 9.852777778 | AD81: 10.10555556 | AE81: 10.35555556 | AF81: 10.11388889 | AG81: 10.375
A82: 74 | B82: 80 | E82: =([4]Gaspreise!G77*'DCF (2012)'!$C$20)/0.9 -> 7.320987654 | F82: =([4]Gaspreise!H77*'DCF (2012)'!$C$20)/0.9 -> 6.541719763 | G82: =([4]Gaspreise!I77*'DCF (2012)'!$C$20)/$C$1 -> 10.0529826 | H82: 5.802777778 | I82: 6.288888889 | J82: 6.627777778 | K82: 6.402777778 | L82: 6.177777778 | M82: 5.952777778 | N82: 4.141666667 | O82: 5.947222222 | P82: 6.386111111 | Q82: 6.672222222 | R82: 6.658333333 | S82: 6.797222222 | T82: 6.736111111 | U82: 6.794444444 | V82: 6.783333333 | W82: 6.913888889 | X82: 7.783333333 | Y82: 7.772222222 | Z82: 8.030555556 | AA82: 9.108333333 | AB82: 9.602777778 | AC82: 9.852777778 | AD82: 10.10555556 | AE82: 10.35555556 | AF82: 10.11388889 | AG82: 10.375
A83: 75 | B83: 120 | E83: =([4]Gaspreise!G78*'DCF (2012)'!$C$20)/0.9 -> 7.320987654 | F83: =([4]Gaspreise!H78*'DCF (2012)'!$C$20)/0.9 -> 6.541719763 | G83: =([4]Gaspreise!I78*'DCF (2012)'!$C$20)/$C$1 -> 10.0529826 | H83: 5.802777778 | I83: 6.288888889 | J83: 6.627777778 | K83: 6.402777778 | L83: 6.177777778 | M83: 5.952777778 | N83: 4.141666667 | O83: 5.947222222 | P83: 6.386111111 | Q83: 6.672222222 | R83: 6.658333333 | S83: 6.797222222 | T83: 6.736111111 | U83: 6.794444444 | V83: 6.783333333 | W83: 6.913888889 | X83: 7.783333333 | Y83: 7.772222222 | Z83: 8.030555556 | AA83: 9.108333333 | AB83: 9.602777778 | AC83: 9.852777778 | AD83: 10.10555556 | AE83: 10.35555556 | AF83: 10.11388889 | AG83: 10.375
A84: 76 | B84: 120 | E84: =([4]Gaspreise!G79*'DCF (2012)'!$C$20)/0.9 -> 7.320987654 | F84: =([4]Gaspreise!H79*'DCF (2012)'!$C$20)/0.9 -> 6.541719763 | G84: =([4]Gaspreise!I79*'DCF (2012)'!$C$20)/$C$1 -> 10.0529826 | H84: 5.802777778 | I84: 6.288888889 | J84: 6.627777778 | K84: 6.402777778 | L84: 6.177777778 | M84: 5.952777778 | N84: 4.141666667 | O84: 5.947222222 | P84: 6.386111111 | Q84: 6.672222222 | R84: 6.658333333 | S84: 6.797222222 | T84: 6.736111111 | U84: 6.794444444 | V84: 6.783333333 | W84: 6.913888889 | X84: 7.783333333 | Y84: 7.772222222 | Z84: 8.030555556 | AA84: 9.108333333 | AB84: 9.602777778 | AC84: 9.852777778 | AD84: 10.10555556 | AE84: 10.35555556 | AF84: 10.11388889 | AG84: 10.375
A85: 77 | B85: 80 | E85: =([4]Gaspreise!G80*'DCF (2012)'!$C$20)/0.9 -> 7.320987654 | F85: =([4]Gaspreise!H80*'DCF (2012)'!$C$20)/0.9 -> 6.541719763 | G85: =([4]Gaspreise!I80*'DCF (2012)'!$C$20)/$C$1 -> 10.0529826 | H85: 5.802777778 | I85: 6.288888889 | J85: 6.627777778 | K85: 6.402777778 | L85: 6.177777778 | M85: 5.952777778 | N85: 4.141666667 | O85: 5.947222222 | P85: 6.386111111 | Q85: 6.672222222 | R85: 6.658333333 | S85: 6.797222222 | T85: 6.736111111 | U85: 6.794444444 | V85: 6.783333333 | W85: 6.913888889 | X85: 7.783333333 | Y85: 7.772222222 | Z85: 8.030555556 | AA85: 9.108333333 | AB85: 9.602777778 | AC85: 9.852777778 | AD85: 10.10555556 | AE85: 10.35555556 | AF85: 10.11388889 | AG85: 10.375
A86: 78 | B86: 80 | E86: =([4]Gaspreise!G81*'DCF (2012)'!$C$20)/0.9 -> 7.320987654 | F86: =([4]Gaspreise!H81*'DCF (2012)'!$C$20)/0.9 -> 6.541719763 | G86: =([4]Gaspreise!I81*'DCF (2012)'!$C$20)/$C$1 -> 10.0529826 | H86: 5.802777778 | I86: 6.288888889 | J86: 6.627777778 | K86: 6.402777778 | L86: 6.177777778 | M86: 5.952777778 | N86: 4.141666667 | O86: 5.947222222 | P86: 6.386111111 | Q86: 6.672222222 | R86: 6.658333333 | S86: 6.797222222 | T86: 6.736111111 | U86: 6.794444444 | V86: 6.783333333 | W86: 6.913888889 | X86: 7.783333333 | Y86: 7.772222222 | Z86: 8.030555556 | AA86: 9.108333333 | AB86: 9.602777778 | AC86: 9.852777778 | AD86: 10.10555556 | AE86: 10.35555556 | AF86: 10.11388889 | AG86: 10.375
A87: 79 | B87: 96 | E87: =([4]Gaspreise!G82*'DCF (2012)'!$C$20)/0.9 -> 7.320987654 | F87: =([4]Gaspreise!H82*'DCF (2012)'!$C$20)/0.9 -> 6.541719763 | G87: =([4]Gaspreise!I82*'DCF (2012)'!$C$20)/$C$1 -> 10.0529826 | H87: 5.802777778 | I87: 6.288888889 | J87: 6.627777778 | K87: 6.402777778 | L87: 6.177777778 | M87: 5.952777778 | N87: 4.141666667 | O87: 5.947222222 | P87: 6.386111111 | Q87: 6.672222222 | R87: 6.658333333 | S87: 6.797222222 | T87: 6.736111111 | U87: 6.794444444 | V87: 6.783333333 | W87: 6.913888889 | X87: 7.783333333 | Y87: 7.772222222 | Z87: 8.030555556 | AA87: 9.108333333 | AB87: 9.602777778 | AC87: 9.852777778 | AD87: 10.10555556 | AE87: 10.35555556 | AF87: 10.11388889 | AG87: 10.375
A88: 80 | B88: 48 | E88: =([4]Gaspreise!G83*'DCF (2012)'!$C$20)/0.9 -> 7.320987654 | F88: =([4]Gaspreise!H83*'DCF (2012)'!$C$20)/0.9 -> 6.541719763 | G88: =([4]Gaspreise!I83*'DCF (2012)'!$C$20)/$C$1 -> 10.0529826 | H88: 5.802777778 | I88: 6.288888889 | J88: 6.627777778 | K88: 6.402777778 | L88: 6.177777778 | M88: 5.952777778 | N88: 4.141666667 | O88: 5.947222222 | P88: 6.386111111 | Q88: 6.672222222 | R88: 6.658333333 | S88: 6.797222222 | T88: 6.736111111 | U88: 6.794444444 | V88: 6.783333333 | W88: 6.913888889 | X88: 7.783333333 | Y88: 7.772222222 | Z88: 8.030555556 | AA88: 9.108333333 | AB88: 9.602777778 | AC88: 9.852777778 | AD88: 10.10555556 | AE88: 10.35555556 | AF88: 10.11388889 | AG88: 10.375
A89: 81 | B89: 32 | E89: =([4]Gaspreise!G84*'DCF (2012)'!$C$20)/0.9 -> 7.320987654 | F89: =([4]Gaspreise!H84*'DCF (2012)'!$C$20)/0.9 -> 6.541719763 | G89: =([4]Gaspreise!I84*'DCF (2012)'!$C$20)/$C$1 -> 10.0529826 | H89: 5.802777778 | I89: 6.288888889 | J89: 6.627777778 | K89: 6.402777778 | L89: 6.177777778 | M89: 5.952777778 | N89: 4.141666667 | O89: 5.947222222 | P89: 6.386111111 | Q89: 6.672222222 | R89: 6.658333333 | S89: 6.797222222 | T89: 6.736111111 | U89: 6.794444444 | V89: 6.783333333 | W89: 6.913888889 | X89: 7.783333333 | Y89: 7.772222222 | Z89: 8.030555556 | AA89: 9.108333333 | AB89: 9.602777778 | AC89: 9.852777778 | AD89: 10.10555556 | AE89: 10.35555556 | AF89: 10.11388889 | AG89: 10.375
A90: 82 | B90: 32 | E90: =([4]Gaspreise!G85*'DCF (2012)'!$C$20)/0.9 -> 7.320987654 | F90: =([4]Gaspreise!H85*'DCF (2012)'!$C$20)/0.9 -> 6.541719763 | G90: =([4]Gaspreise!I85*'DCF (2012)'!$C$20)/$C$1 -> 10.0529826 | H90: 5.802777778 | I90: 6.288888889 | J90: 6.627777778 | K90: 6.402777778 | L90: 6.177777778 | M90: 5.952777778 | N90: 4.141666667 | O90: 5.947222222 | P90: 6.386111111 | Q90: 6.672222222 | R90: 6.658333333 | S90: 6.797222222 | T90: 6.736111111 | U90: 6.794444444 | V90: 6.783333333 | W90: 6.913888889 | X90: 7.783333333 | Y90: 7.772222222 | Z90: 8.030555556 | AA90: 9.108333333 | AB90: 9.602777778 | AC90: 9.852777778 | AD90: 10.10555556 | AE90: 10.35555556 | AF90: 10.11388889 | AG90: 10.375
A91: 83 | B91: 64 | E91: =([4]Gaspreise!G86*'DCF (2012)'!$C$20)/0.9 -> 7.320987654 | F91: =([4]Gaspreise!H86*'DCF (2012)'!$C$20)/0.9 -> 6.541719763 | G91: =([4]Gaspreise!I86*'DCF (2012)'!$C$20)/$C$1 -> 10.0529826 | H91: 5.802777778 | I91: 6.288888889 | J91: 6.627777778 | K91: 6.402777778 | L91: 6.177777778 | M91: 5.952777778 | N91: 4.141666667 | O91: 5.947222222 | P91: 6.386111111 | Q91: 6.672222222 | R91: 6.658333333 | S91: 6.797222222 | T91: 6.736111111 | U91: 6.794444444 | V91: 6.783333333 | W91: 6.913888889 | X91: 7.783333333 | Y91: 7.772222222 | Z91: 8.030555556 | AA91: 9.108333333 | AB91: 9.602777778 | AC91: 9.852777778 | AD91: 10.10555556 | AE91: 10.35555556 | AF91: 10.11388889 | AG91: 10.375
A92: 84 | B92: 48 | E92: =([4]Gaspreise!G87*'DCF (2012)'!$C$20)/0.9 -> 7.320987654 | F92: =([4]Gaspreise!H87*'DCF (2012)'!$C$20)/0.9 -> 6.541719763 | G92: =([4]Gaspreise!I87*'DCF (2012)'!$C$20)/$C$1 -> 10.0529826 | H92: 5.802777778 | I92: 6.288888889 | J92: 6.627777778 | K92: 6.402777778 | L92: 6.177777778 | M92: 5.952777778 | N92: 4.141666667 | O92: 5.947222222 | P92: 6.386111111 | Q92: 6.672222222 | R92: 6.658333333 | S92: 6.797222222 | T92: 6.736111111 | U92: 6.794444444 | V92: 6.783333333 | W92: 6.913888889 | X92: 7.783333333 | Y92: 7.772222222 | Z92: 8.030555556 | AA92: 9.108333333 | AB92: 9.602777778 | AC92: 9.852777778 | AD92: 10.10555556 | AE92: 10.35555556 | AF92: 10.11388889 | AG92: 10.375
A93: 85 | B93: 64 | E93: =([4]Gaspreise!G88*'DCF (2012)'!$C$20)/0.9 -> 7.320987654 | F93: =([4]Gaspreise!H88*'DCF (2012)'!$C$20)/0.9 -> 6.541719763 | G93: =([4]Gaspreise!I88*'DCF (2012)'!$C$20)/$C$1 -> 10.0529826 | H93: 5.802777778 | I93: 6.288888889 | J93: 6.627777778 | K93: 6.402777778 | L93: 6.177777778 | M93: 5.952777778 | N93: 4.141666667 | O93: 5.947222222 | P93: 6.386111111 | Q93: 6.672222222 | R93: 6.658333333 | S93: 6.797222222 | T93: 6.736111111 | U93: 6.794444444 | V93: 6.783333333 | W93: 6.913888889 | X93: 7.783333333 | Y93: 7.772222222 | Z93: 8.030555556 | AA93: 9.108333333 | AB93: 9.602777778 | AC93: 9.852777778 | AD93: 10.10555556 | AE93: 10.35555556 | AF93: 10.11388889 | AG93: 10.375
A94: 86 | B94: 180 | E94: =([4]Gaspreise!G89*'DCF (2012)'!$C$20)/0.9 -> 7.634876543 | F94: =([4]Gaspreise!H89*'DCF (2012)'!$C$20)/0.9 -> 8.211161124 | G94: =([4]Gaspreise!I89*'DCF (2012)'!$C$20)/$C$1 -> 11.59558439 | H94: 7.691666667 | I94: 7.880555556 | J94: 8.294444444 | K94: 7.975 | L94: 7.652777778 | M94: 7.325 | N94: 5.319444444 | O94: 7.027777778 | P94: 7.611111111 | Q94: 7.961111111 | R94: 7.894444444 | S94: 7.919444444 | T94: 7.944444444 | U94: 7.911111111 | V94: 7.641666667 | W94: 7.947222222 | X94: 8.838888889 | Y94: 8.908333333 | Z94: 9.175 | AA94: 10.13333333 | AB94: 11.525 | AC94: 11.775 | AD94: 12.02777778 | AE94: 12.27777778 | AF94: 11.35555556 | AG94: 11.65
A95: 87 | B95: 90 | E95: =([4]Gaspreise!G90*'DCF (2012)'!$C$20)/0.9 -> 7.634876543 | F95: =([4]Gaspreise!H90*'DCF (2012)'!$C$20)/0.9 -> 8.211161124 | G95: =([4]Gaspreise!I90*'DCF (2012)'!$C$20)/$C$1 -> 11.59558439 | H95: 7.691666667 | I95: 7.880555556 | J95: 8.294444444 | K95: 7.975 | L95: 7.652777778 | M95: 7.325 | N95: 5.319444444 | O95: 7.027777778 | P95: 7.611111111 | Q95: 7.961111111 | R95: 7.894444444 | S95: 7.919444444 | T95: 7.944444444 | U95: 7.911111111 | V95: 7.641666667 | W95: 7.947222222 | X95: 8.838888889 | Y95: 8.908333333 | Z95: 9.175 | AA95: 10.13333333 | AB95: 11.525 | AC95: 11.775 | AD95: 12.02777778 | AE95: 12.27777778 | AF95: 11.35555556 | AG95: 11.65
A96: 88 | B96: 90 | E96: =([4]Gaspreise!G91*'DCF (2012)'!$C$20)/0.9 -> 7.634876543 | F96: =([4]Gaspreise!H91*'DCF (2012)'!$C$20)/0.9 -> 8.211161124 | G96: =([4]Gaspreise!I91*'DCF (2012)'!$C$20)/$C$1 -> 11.59558439 | H96: 7.691666667 | I96: 7.880555556 | J96: 8.294444444 | K96: 7.975 | L96: 7.652777778 | M96: 7.325 | N96: 5.319444444 | O96: 7.027777778 | P96: 7.611111111 | Q96: 7.961111111 | R96: 7.894444444 | S96: 7.919444444 | T96: 7.944444444 | U96: 7.911111111 | V96: 7.641666667 | W96: 7.947222222 | X96: 8.838888889 | Y96: 8.908333333 | Z96: 9.175 | AA96: 10.13333333 | AB96: 11.525 | AC96: 11.775 | AD96: 12.02777778 | AE96: 12.27777778 | AF96: 11.35555556 | AG96: 11.65
A97: 89 | B97: 90 | E97: =([4]Gaspreise!G92*'DCF (2012)'!$C$20)/0.9 -> 7.634876543 | F97: =([4]Gaspreise!H92*'DCF (2012)'!$C$20)/0.9 -> 8.211161124 | G97: =([4]Gaspreise!I92*'DCF (2012)'!$C$20)/$C$1 -> 11.59558439 | H97: 7.691666667 | I97: 7.880555556 | J97: 8.294444444 | K97: 7.975 | L97: 7.652777778 | M97: 7.325 | N97: 5.319444444 | O97: 7.027777778 | P97: 7.611111111 | Q97: 7.961111111 | R97: 7.894444444 | S97: 7.919444444 | T97: 7.944444444 | U97: 7.911111111 | V97: 7.641666667 | W97: 7.947222222 | X97: 8.838888889 | Y97: 8.908333333 | Z97: 9.175 | AA97: 10.13333333 | AB97: 11.525 | AC97: 11.775 | AD97: 12.02777778 | AE97: 12.27777778 | AF97: 11.35555556 | AG97: 11.65
A98: 90 | B98: 90 | E98: =([4]Gaspreise!G93*'DCF (2012)'!$C$20)/0.9 -> 7.634876543 | F98: =([4]Gaspreise!H93*'DCF (2012)'!$C$20)/0.9 -> 8.211161124 | G98: =([4]Gaspreise!I93*'DCF (2012)'!$C$20)/$C$1 -> 11.59558439 | H98: 7.691666667 | I98: 7.880555556 | J98: 8.294444444 | K98: 7.975 | L98: 7.652777778 | M98: 7.325 | N98: 5.319444444 | O98: 7.027777778 | P98: 7.611111111 | Q98: 7.961111111 | R98: 7.894444444 | S98: 7.919444444 | T98: 7.944444444 | U98: 7.911111111 | V98: 7.641666667 | W98: 7.947222222 | X98: 8.838888889 | Y98: 8.908333333 | Z98: 9.175 | AA98: 10.13333333 | AB98: 11.525 | AC98: 11.775 | AD98: 12.02777778 | AE98: 12.27777778 | AF98: 11.35555556 | AG98: 11.65
A99: 91 | B99: 90 | E99: =([4]Gaspreise!G94*'DCF (2012)'!$C$20)/0.9 -> 7.634876543 | F99: =([4]Gaspreise!H94*'DCF (2012)'!$C$20)/0.9 -> 8.211161124 | G99: =([4]Gaspreise!I94*'DCF (2012)'!$C$20)/$C$1 -> 11.59558439 | H99: 7.691666667 | I99: 7.880555556 | J99: 8.294444444 | K99: 7.975 | L99: 7.652777778 | M99: 7.325 | N99: 5.319444444 | O99: 7.027777778 | P99: 7.611111111 | Q99: 7.961111111 | R99: 7.894444444 | S99: 7.919444444 | T99: 7.944444444 | U99: 7.911111111 | V99: 7.641666667 | W99: 7.947222222 | X99: 8.838888889 | Y99: 8.908333333 | Z99: 9.175 | AA99: 10.13333333 | AB99: 11.525 | AC99: 11.775 | AD99: 12.02777778 | AE99: 12.27777778 | AF99: 11.35555556 | AG99: 11.65
A100: 92 | B100: 135 | E100: =([4]Gaspreise!G95*'DCF (2012)'!$C$20)/0.9 -> 7.634876543 | F100: =([4]Gaspreise!H95*'DCF (2012)'!$C$20)/0.9 -> 8.211161124 | G100: =([4]Gaspreise!I95*'DCF (2012)'!$C$20)/$C$1 -> 11.59558439 | H100: 7.691666667 | I100: 7.880555556 | J100: 8.294444444 | K100: 7.975 | L100: 7.652777778 | M100: 7.325 | N100: 5.319444444 | O100: 7.027777778 | P100: 7.611111111 | Q100: 7.961111111 | R100: 7.894444444 | S100: 7.919444444 | T100: 7.944444444 | U100: 7.911111111 | V100: 7.641666667 | W100: 7.947222222 | X100: 8.838888889 | Y100: 8.908333333 | Z100: 9.175 | AA100: 10.13333333 | AB100: 11.525 | AC100: 11.775 | AD100: 12.02777778 | AE100: 12.27777778 | AF100: 11.35555556 | AG100: 11.65
A101: 93 | B101: 135 | E101: =([4]Gaspreise!G96*'DCF (2012)'!$C$20)/0.9 -> 7.634876543 | F101: =([4]Gaspreise!H96*'DCF (2012)'!$C$20)/0.9 -> 8.211161124 | G101: =([4]Gaspreise!I96*'DCF (2012)'!$C$20)/$C$1 -> 11.59558439 | H101: 7.691666667 | I101: 7.880555556 | J101: 8.294444444 | K101: 7.975 | L101: 7.652777778 | M101: 7.325 | N101: 5.319444444 | O101: 7.027777778 | P101: 7.611111111 | Q101: 7.961111111 | R101: 7.894444444 | S101: 7.919444444 | T101: 7.944444444 | U101: 7.911111111 | V101: 7.641666667 | W101: 7.947222222 | X101: 8.838888889 | Y101: 8.908333333 | Z101: 9.175 | AA101: 10.13333333 | AB101: 11.525 | AC101: 11.775 | AD101: 12.02777778 | AE101: 12.27777778 | AF101: 11.35555556 | AG101: 11.65
A102: 94 | B102: 90 | E102: =([4]Gaspreise!G97*'DCF (2012)'!$C$20)/0.9 -> 7.634876543 | F102: =([4]Gaspreise!H97*'DCF (2012)'!$C$20)/0.9 -> 8.211161124 | G102: =([4]Gaspreise!I97*'DCF (2012)'!$C$20)/$C$1 -> 11.59558439 | H102: 7.691666667 | I102: 7.880555556 | J102: 8.294444444 | K102: 7.975 | L102: 7.652777778 | M102: 7.325 | N102: 5.319444444 | O102: 7.027777778 | P102: 7.611111111 | Q102: 7.961111111 | R102: 7.894444444 | S102: 7.919444444 | T102: 7.944444444 | U102: 7.911111111 | V102: 7.641666667 | W102: 7.947222222 | X102: 8.838888889 | Y102: 8.908333333 | Z102: 9.175 | AA102: 10.13333333 | AB102: 11.525 | AC102: 11.775 | AD102: 12.02777778 | AE102: 12.27777778 | AF102: 11.35555556 | AG102: 11.65
A103: 95 | B103: 90 | E103: =([4]Gaspreise!G98*'DCF (2012)'!$C$20)/0.9 -> 7.634876543 | F103: =([4]Gaspreise!H98*'DCF (2012)'!$C$20)/0.9 -> 8.211161124 | G103: =([4]Gaspreise!I98*'DCF (2012)'!$C$20)/$C$1 -> 11.59558439 | H103: 7.691666667 | I103: 7.880555556 | J103: 8.294444444 | K103: 7.975 | L103: 7.652777778 | M103: 7.325 | N103: 5.319444444 | O103: 7.027777778 | P103: 7.611111111 | Q103: 7.961111111 | R103: 7.894444444 | S103: 7.919444444 | T103: 7.944444444 | U103: 7.911111111 | V103: 7.641666667 | W103: 7.947222222 | X103: 8.838888889 | Y103: 8.908333333 | Z103: 9.175 | AA103: 10.13333333 | AB103: 11.525 | AC103: 11.775 | AD103: 12.02777778 | AE103: 12.27777778 | AF103: 11.35555556 | AG103: 11.65
A104: 96 | B104: 108 | E104: =([4]Gaspreise!G99*'DCF (2012)'!$C$20)/0.9 -> 7.634876543 | F104: =([4]Gaspreise!H99*'DCF (2012)'!$C$20)/0.9 -> 8.211161124 | G104: =([4]Gaspreise!I99*'DCF (2012)'!$C$20)/$C$1 -> 11.59558439 | H104: 7.691666667 | I104: 7.880555556 | J104: 8.294444444 | K104: 7.975 | L104: 7.652777778 | M104: 7.325 | N104: 5.319444444 | O104: 7.027777778 | P104: 7.611111111 | Q104: 7.961111111 | R104: 7.894444444 | S104: 7.919444444 | T104: 7.944444444 | U104: 7.911111111 | V104: 7.641666667 | W104: 7.947222222 | X104: 8.838888889 | Y104: 8.908333333 | Z104: 9.175 | AA104: 10.13333333 | AB104: 11.525 | AC104: 11.775 | AD104: 12.02777778 | AE104: 12.27777778 | AF104: 11.35555556 | AG104: 11.65
A105: 97 | B105: 54 | E105: =([4]Gaspreise!G100*'DCF (2012)'!$C$20)/0.9 -> 7.634876543 | F105: =([4]Gaspreise!H100*'DCF (2012)'!$C$20)/0.9 -> 8.211161124 | G105: =([4]Gaspreise!I100*'DCF (2012)'!$C$20)/$C$1 -> 11.59558439 | H105: 7.691666667 | I105: 7.880555556 | J105: 8.294444444 | K105: 7.975 | L105: 7.652777778 | M105: 7.325 | N105: 5.319444444 | O105: 7.027777778 | P105: 7.611111111 | Q105: 7.961111111 | R105: 7.894444444 | S105: 7.919444444 | T105: 7.944444444 | U105: 7.911111111 | V105: 7.641666667 | W105: 7.947222222 | X105: 8.838888889 | Y105: 8.908333333 | Z105: 9.175 | AA105: 10.13333333 | AB105: 11.525 | AC105: 11.775 | AD105: 12.02777778 | AE105: 12.27777778 | AF105: 11.35555556 | AG105: 11.65
A106: 98 | B106: 36 | E106: =([4]Gaspreise!G101*'DCF (2012)'!$C$20)/0.9 -> 7.634876543 | F106: =([4]Gaspreise!H101*'DCF (2012)'!$C$20)/0.9 -> 8.211161124 | G106: =([4]Gaspreise!I101*'DCF (2012)'!$C$20)/$C$1 -> 11.59558439 | H106: 7.691666667 | I106: 7.880555556 | J106: 8.294444444 | K106: 7.975 | L106: 7.652777778 | M106: 7.325 | N106: 5.319444444 | O106: 7.027777778 | P106: 7.611111111 | Q106: 7.961111111 | R106: 7.894444444 | S106: 7.919444444 | T106: 7.944444444 | U106: 7.911111111 | V106: 7.641666667 | W106: 7.947222222 | X106: 8.838888889 | Y106: 8.908333333 | Z106: 9.175 | AA106: 10.13333333 | AB106: 11.525 | AC106: 11.775 | AD106: 12.02777778 | AE106: 12.27777778 | AF106: 11.35555556 | AG106: 11.65
A107: 99 | B107: 36 | E107: =([4]Gaspreise!G102*'DCF (2012)'!$C$20)/0.9 -> 7.634876543 | F107: =([4]Gaspreise!H102*'DCF (2012)'!$C$20)/0.9 -> 8.211161124 | G107: =([4]Gaspreise!I102*'DCF (2012)'!$C$20)/$C$1 -> 11.59558439 | H107: 7.691666667 | I107: 7.880555556 | J107: 8.294444444 | K107: 7.975 | L107: 7.652777778 | M107: 7.325 | N107: 5.319444444 | O107: 7.027777778 | P107: 7.611111111 | Q107: 7.961111111 | R107: 7.894444444 | S107: 7.919444444 | T107: 7.944444444 | U107: 7.911111111 | V107: 7.641666667 | W107: 7.947222222 | X107: 8.838888889 | Y107: 8.908333333 | Z107: 9.175 | AA107: 10.13333333 | AB107: 11.525 | AC107: 11.775 | AD107: 12.02777778 | AE107: 12.27777778 | AF107: 11.35555556 | AG107: 11.65
A108: 100 | B108: 72 | E108: =([4]Gaspreise!G103*'DCF (2012)'!$C$20)/0.9 -> 7.634876543 | F108: =([4]Gaspreise!H103*'DCF (2012)'!$C$20)/0.9 -> 8.211161124 | G108: =([4]Gaspreise!I103*'DCF (2012)'!$C$20)/$C$1 -> 11.59558439 | H108: 7.691666667 | I108: 7.880555556 | J108: 8.294444444 | K108: 7.975 | L108: 7.652777778 | M108: 7.325 | N108: 5.319444444 | O108: 7.027777778 | P108: 7.611111111 | Q108: 7.961111111 | R108: 7.894444444 | S108: 7.919444444 | T108: 7.944444444 | U108: 7.911111111 | V108: 7.641666667 | W108: 7.947222222 | X108: 8.838888889 | Y108: 8.908333333 | Z108: 9.175 | AA108: 10.13333333 | AB108: 11.525 | AC108: 11.775 | AD108: 12.02777778 | AE108: 12.27777778 | AF108: 11.35555556 | AG108: 11.65
A109: 101 | B109: 54 | E109: =([4]Gaspreise!G104*'DCF (2012)'!$C$20)/0.9 -> 7.634876543 | F109: =([4]Gaspreise!H104*'DCF (2012)'!$C$20)/0.9 -> 8.211161124 | G109: =([4]Gaspreise!I104*'DCF (2012)'!$C$20)/$C$1 -> 11.59558439 | H109: 7.691666667 | I109: 7.880555556 | J109: 8.294444444 | K109: 7.975 | L109: 7.652777778 | M109: 7.325 | N109: 5.319444444 | O109: 7.027777778 | P109: 7.611111111 | Q109: 7.961111111 | R109: 7.894444444 | S109: 7.919444444 | T109: 7.944444444 | U109: 7.911111111 | V109: 7.641666667 | W109: 7.947222222 | X109: 8.838888889 | Y109: 8.908333333 | Z109: 9.175 | AA109: 10.13333333 | AB109: 11.525 | AC109: 11.775 | AD109: 12.02777778 | AE109: 12.27777778 | AF109: 11.35555556 | AG109: 11.65
A110: 102 | B110: 72 | E110: =([4]Gaspreise!G105*'DCF (2012)'!$C$20)/0.9 -> 7.634876543 | F110: =([4]Gaspreise!H105*'DCF (2012)'!$C$20)/0.9 -> 8.211161124 | G110: =([4]Gaspreise!I105*'DCF (2012)'!$C$20)/$C$1 -> 11.59558439 | H110: 7.691666667 | I110: 7.880555556 | J110: 8.294444444 | K110: 7.975 | L110: 7.652777778 | M110: 7.325 | N110: 5.319444444 | O110: 7.027777778 | P110: 7.611111111 | Q110: 7.961111111 | R110: 7.894444444 | S110: 7.919444444 | T110: 7.944444444 | U110: 7.911111111 | V110: 7.641666667 | W110: 7.947222222 | X110: 8.838888889 | Y110: 8.908333333 | Z110: 9.175 | AA110: 10.13333333 | AB110: 11.525 | AC110: 11.775 | AD110: 12.02777778 | AE110: 12.27777778 | AF110: 11.35555556 | AG110: 11.65

Sheet Riskpremium
A4: Riskpremium | B4: [€/MWh]
A8: Lastpunkt | B8: RegBSSteuer | C8: 2005 | D8: 2006 | E8: 2007 | F8: 2008 | G8: 2009 | H8: 2010 | I8: 2011 | J8: 2012 | K8: 2013 | L8: 2014 | M8: 2015 | N8: 2016 | O8: 2017 | P8: 2018 | Q8: 2019 | R8: 2020 | S8: 2021 | T8: 2022 | U8: 2023 | V8: 2024 | W8: 2025 | X8: 2026 | Y8: 2027 | Z8: 2028 | AA8: 2029 | AB8: 2030 | AC8: 2031 | AD8: 2032 | AE8: 2033 | AF8: 2034 | AG8: 2035
A9: 1
A10: 2
A11: 3
A12: 4
A13: 5
A14: 6
A15: 7
A16: 8
A17: 9
A18: 10
A19: 11
A20: 12
A21: 13
A22: 14
A23: 15
A24: 16
A25: 17
A26: 18
A27: 19
A28: 20
A29: 21
A30: 22
A31: 23
A32: 24
A33: 25
A34: 26
A35: 27
A36: 28
A37: 29
A38: 30
A39: 31
A40: 32
A41: 33
A42: 34
A43: 35
A44: 36
A45: 37
A46: 38
A47: 39
A48: 40
A49: 41
A50: 42
A51: 43
A52: 44
A53: 45
A54: 46
A55: 47
A56: 48
A57: 49
A58: 50
A59: 51
A60: 52
A61: 53
A62: 54
A63: 55
A64: 56
A65: 57
A66: 58
A67: 59
A68: 60
A69: 61
A70: 62
A71: 63
A72: 64
A73: 65
A74: 66
A75: 67
A76: 68
A77: 69
A78: 70
A79: 71
A80: 72
A81: 73
A82: 74
A83: 75
A84: 76
A85: 77
A86: 78
A87: 79
A88: 80
A89: 81
A90: 82
A91: 83
A92: 84
A93: 85
A94: 86
A95: 87
A96: 88
A97: 89
A98: 90
A99: 91
A100: 92
A101: 93
A102: 94
A103: 95
A104: 96
A105: 97
A106: 98
A107: 99
A108: 100
A109: 101
A110: 102

Sheet Feuil2
B2: Production cost with gas | C2: Prod cost+Riskpremium | D2: Electricity/Lowcut | F2: Risk premium
A3: 1 | B3: ='DCF (2012)'!$O$29+Gaspreise!M9*3.6/'DCF (2012)'!$O$8 -> 59.47328615 | C3: =B3+F3 -> 59.47328615 | D3: =Strompreise!M9/Strompreise!C9 -> 61.30286435 | F3: =Riskpremium!M9 -> 0
A4: 2 | B4: ='DCF (2012)'!$O$29+Gaspreise!M10*3.6/'DCF (2012)'!$O$8 -> 59.47328615 | C4: 59.47328615 | D4: =Strompreise!M10/Strompreise!C10 -> 60.19686614 | F4: =Riskpremium!M10 -> 0
A5: 3 | B5: ='DCF (2012)'!$O$29+Gaspreise!M11*3.6/'DCF (2012)'!$O$8 -> 59.47328615 | C5: 59.47328615 | D5: =Strompreise!M11/Strompreise!C11 -> 179.2675049 | F5: =Riskpremium!M11 -> 0
A6: 4 | B6: ='DCF (2012)'!$O$29+Gaspreise!M12*3.6/'DCF (2012)'!$O$8 -> 59.47328615 | C6: 59.47328615 | D6: =Strompreise!M12/Strompreise!C12 -> 209.9332534 | F6: =Riskpremium!M12 -> 0
A7: 5 | B7: ='DCF (2012)'!$O$29+Gaspreise!M13*3.6/'DCF (2012)'!$O$8 -> 59.47328615 | C7: 59.47328615 | D7: =Strompreise!M13/Strompreise!C13 -> 154.0990333 | F7: =Riskpremium!M13 -> 0
A8: 6 | B8: ='DCF (2012)'!$O$29+Gaspreise!M14*3.6/'DCF (2012)'!$O$8 -> 59.47328615 | C8: 59.47328615 | D8: =Strompreise!M14/Strompreise!C14 -> 98.35118622 | F8: =Riskpremium!M14 -> 0
A9: 7 | B9: ='DCF (2012)'!$O$29+Gaspreise!M15*3.6/'DCF (2012)'!$O$8 -> 59.47328615 | C9: 59.47328615 | D9: =Strompreise!M15/Strompreise!C15 -> 67.60867411 | F9: =Riskpremium!M15 -> 0
A10: 8 | B10: ='DCF (2012)'!$O$29+Gaspreise!M16*3.6/'DCF (2012)'!$O$8 -> 59.47328615 | C10: 59.47328615 | D10: =Strompreise!M16/Strompreise!C16 -> 124.6640225 | F10: =Riskpremium!M16 -> 0
A11: 9 | B11: ='DCF (2012)'!$O$29+Gaspreise!M17*3.6/'DCF (2012)'!$O$8 -> 59.47328615 | C11: 59.47328615 | D11: =Strompreise!M17/Strompreise!C17 -> 166.1479189 | F11: =Riskpremium!M17 -> 0
A12: 10 | B12: ='DCF (2012)'!$O$29+Gaspreise!M18*3.6/'DCF (2012)'!$O$8 -> 59.47328615 | C12: 59.47328615 | D12: =Strompreise!M18/Strompreise!C18 -> 140.7186732 | F12: =Riskpremium!M18 -> 0
A13: 11 | B13: ='DCF (2012)'!$O$29+Gaspreise!M19*3.6/'DCF (2012)'!$O$8 -> 59.47328615 | C13: 59.47328615 | D13: =Strompreise!M19/Strompreise!C19 -> 58.00690861 | F13: =Riskpremium!M19 -> 0
A14: 12 | B14: ='DCF (2012)'!$O$29+Gaspreise!M20*3.6/'DCF (2012)'!$O$8 -> 59.47328615 | C14: 59.47328615 | D14: =Strompreise!M20/Strompreise!C20 -> 55.1628178 | F14: =Riskpremium!M20 -> 0
A15: 13 | B15: ='DCF (2012)'!$O$29+Gaspreise!M21*3.6/'DCF (2012)'!$O$8 -> 59.47328615 | C15: 59.47328615 | D15: =Strompreise!M21/Strompreise!C21 -> 58.58991788 | F15: =Riskpremium!M21 -> 0
A16: 14 | B16: ='DCF (2012)'!$O$29+Gaspreise!M22*3.6/'DCF (2012)'!$O$8 -> 59.47328615 | C16: 59.47328615 | D16: =Strompreise!M22/Strompreise!C22 -> 58.672496 | F16: =Riskpremium!M22 -> 0
A17: 15 | B17: ='DCF (2012)'!$O$29+Gaspreise!M23*3.6/'DCF (2012)'!$O$8 -> 59.47328615 | C17: 59.47328615 | D17: =Strompreise!M23/Strompreise!C23 -> 57.21423257 | F17: =Riskpremium!M23 -> 0
A18: 16 | B18: ='DCF (2012)'!$O$29+Gaspreise!M24*3.6/'DCF (2012)'!$O$8 -> 59.47328615 | C18: 59.47328615 | D18: =Strompreise!M24/Strompreise!C24 -> 60.5000538 | F18: =Riskpremium!M24 -> 0
A19: 17 | B19: ='DCF (2012)'!$O$29+Gaspreise!M25*3.6/'DCF (2012)'!$O$8 -> 59.47328615 | C19: 59.47328615 | D19: =Strompreise!M25/Strompreise!C25 -> 61.93985426 | F19: =Riskpremium!M25 -> 0
A20: 18 | B20: ='DCF (2012)'!$O$29+Gaspreise!M26*3.6/'DCF (2012)'!$O$8 -> 57.06555328 | C20: 57.06555328 | D20: =Strompreise!M26/Strompreise!C26 -> 56.25623126 | F20: =Riskpremium!M26 -> 0
A21: 19 | B21: ='DCF (2012)'!$O$29+Gaspreise!M27*3.6/'DCF (2012)'!$O$8 -> 57.06555328 | C21: 57.06555328 | D21: =Strompreise!M27/Strompreise!C27 -> 56.09028503 | F21: =Riskpremium!M27 -> 0
A22: 20 | B22: ='DCF (2012)'!$O$29+Gaspreise!M28*3.6/'DCF (2012)'!$O$8 -> 57.06555328 | C22: 57.06555328 | D22: =Strompreise!M28/Strompreise!C28 -> 59.01984416 | F22: =Riskpremium!M28 -> 0
A23: 21 | B23: ='DCF (2012)'!$O$29+Gaspreise!M29*3.6/'DCF (2012)'!$O$8 -> 57.06555328 | C23: 57.06555328 | D23: =Strompreise!M29/Strompreise!C29 -> 60.8455305 | F23: =Riskpremium!M29 -> 0
A24: 22 | B24: ='DCF (2012)'!$O$29+Gaspreise!M30*3.6/'DCF (2012)'!$O$8 -> 57.06555328 | C24: 57.06555328 | D24: =Strompreise!M30/Strompreise!C30 -> 57.65868056 | F24: =Riskpremium!M30 -> 0
A25: 23 | B25: ='DCF (2012)'!$O$29+Gaspreise!M31*3.6/'DCF (2012)'!$O$8 -> 57.06555328 | C25: 57.06555328 | D25: =Strompreise!M31/Strompreise!C31 -> 56.9832094 | F25: =Riskpremium!M31 -> 0
A26: 24 | B26: ='DCF (2012)'!$O$29+Gaspreise!M32*3.6/'DCF (2012)'!$O$8 -> 57.06555328 | C26: 57.06555328 | D26: =Strompreise!M32/Strompreise!C32 -> 56.6920416 | F26: =Riskpremium!M32 -> 0
A27: 25 | B27: ='DCF (2012)'!$O$29+Gaspreise!M33*3.6/'DCF (2012)'!$O$8 -> 57.06555328 | C27: 57.06555328 | D27: =Strompreise!M33/Strompreise!C33 -> 59.67957836 | F27: =Riskpremium!M33 -> 0
A28: 26 | B28: ='DCF (2012)'!$O$29+Gaspreise!M34*3.6/'DCF (2012)'!$O$8 -> 57.06555328 | C28: 57.06555328 | D28: =Strompreise!M34/Strompreise!C34 -> 60.0002793 | F28: =Riskpremium!M34 -> 0
A29: 27 | B29: ='DCF (2012)'!$O$29+Gaspreise!M35*3.6/'DCF (2012)'!$O$8 -> 57.06555328 | C29: 57.06555328 | D29: =Strompreise!M35/Strompreise!C35 -> 58.36914335 | F29: =Riskpremium!M35 -> 0
A30: 28 | B30: ='DCF (2012)'!$O$29+Gaspreise!M36*3.6/'DCF (2012)'!$O$8 -> 57.06555328 | C30: 57.06555328 | D30: =Strompreise!M36/Strompreise!C36 -> 54.37853102 | F30: =Riskpremium!M36 -> 0
A31: 29 | B31: ='DCF (2012)'!$O$29+Gaspreise!M37*3.6/'DCF (2012)'!$O$8 -> 57.06555328 | C31: 57.06555328 | D31: =Strompreise!M37/Strompreise!C37 -> 51.96833291 | F31: =Riskpremium!M37 -> 0
A32: 30 | B32: ='DCF (2012)'!$O$29+Gaspreise!M38*3.6/'DCF (2012)'!$O$8 -> 57.06555328 | C32: 57.06555328 | D32: =Strompreise!M38/Strompreise!C38 -> 48.17633525 | F32: =Riskpremium!M38 -> 0
A33: 31 | B33: ='DCF (2012)'!$O$29+Gaspreise!M39*3.6/'DCF (2012)'!$O$8 -> 57.06555328 | C33: 57.06555328 | D33: =Strompreise!M39/Strompreise!C39 -> 47.75448135 | F33: =Riskpremium!M39 -> 0
A34: 32 | B34: ='DCF (2012)'!$O$29+Gaspreise!M40*3.6/'DCF (2012)'!$O$8 -> 57.06555328 | C34: 57.06555328 | D34: =Strompreise!M40/Strompreise!C40 -> 47.28668076 | F34: =Riskpremium!M40 -> 0
A35: 33 | B35: ='DCF (2012)'!$O$29+Gaspreise!M41*3.6/'DCF (2012)'!$O$8 -> 57.06555328 | C35: =B35+F35 -> 57.06555328 | D35: =Strompreise!M41/Strompreise!C41 -> 54.621792 | F35: =Riskpremium!M41 -> 0
A36: 34 | B36: ='DCF (2012)'!$O$29+Gaspreise!M42*3.6/'DCF (2012)'!$O$8 -> 57.06555328 | C36: 57.06555328 | D36: =Strompreise!M42/Strompreise!C42 -> 55.9216865 | F36: =Riskpremium!M42 -> 0
A37: 35 | B37: ='DCF (2012)'!$O$29+Gaspreise!M43*3.6/'DCF (2012)'!$O$8 -> 54.39420003 | C37: 54.39420003 | D37: =Strompreise!M43/Strompreise!C43 -> 43.14185824 | F37: =Riskpremium!M43 -> 0
A38: 36 | B38: ='DCF (2012)'!$O$29+Gaspreise!M44*3.6/'DCF (2012)'!$O$8 -> 54.39420003 | C38: 54.39420003 | D38: =Strompreise!M44/Strompreise!C44 -> 42.83713242 | F38: =Riskpremium!M44 -> 0
A39: 37 | B39: ='DCF (2012)'!$O$29+Gaspreise!M45*3.6/'DCF (2012)'!$O$8 -> 54.39420003 | C39: 54.39420003 | D39: =Strompreise!M45/Strompreise!C45 -> 45.89715184 | F39: =Riskpremium!M45 -> 0
A40: 38 | B40: ='DCF (2012)'!$O$29+Gaspreise!M46*3.6/'DCF (2012)'!$O$8 -> 54.39420003 | C40: 54.39420003 | D40: =Strompreise!M46/Strompreise!C46 -> 49.302134 | F40: =Riskpremium!M46 -> 0
A41: 39 | B41: ='DCF (2012)'!$O$29+Gaspreise!M47*3.6/'DCF (2012)'!$O$8 -> 54.39420003 | C41: 54.39420003 | D41: =Strompreise!M47/Strompreise!C47 -> 46.65596315 | F41: =Riskpremium!M47 -> 0
A42: 40 | B42: ='DCF (2012)'!$O$29+Gaspreise!M48*3.6/'DCF (2012)'!$O$8 -> 54.39420003 | C42: 54.39420003 | D42: =Strompreise!M48/Strompreise!C48 -> 46.38171896 | F42: =Riskpremium!M48 -> 0
A43: 41 | B43: ='DCF (2012)'!$O$29+Gaspreise!M49*3.6/'DCF (2012)'!$O$8 -> 54.39420003 | C43: 54.39420003 | D43: =Strompreise!M49/Strompreise!C49 -> 46.09668488 | F43: =Riskpremium!M49 -> 0
A44: 42 | B44: ='DCF (2012)'!$O$29+Gaspreise!M50*3.6/'DCF (2012)'!$O$8 -> 54.39420003 | C44: 54.39420003 | D44: =Strompreise!M50/Strompreise!C50 -> 46.22052818 | F44: =Riskpremium!M50 -> 0
A45: 43 | B45: ='DCF (2012)'!$O$29+Gaspreise!M51*3.6/'DCF (2012)'!$O$8 -> 54.39420003 | C45: 54.39420003 | D45: =Strompreise!M51/Strompreise!C51 -> 51.12716654 | F45: =Riskpremium!M51 -> 0
A46: 44 | B46: ='DCF (2012)'!$O$29+Gaspreise!M52*3.6/'DCF (2012)'!$O$8 -> 54.39420003 | C46: 54.39420003 | D46: =Strompreise!M52/Strompreise!C52 -> 55.05478198 | F46: =Riskpremium!M52 -> 0
A47: 45 | B47: ='DCF (2012)'!$O$29+Gaspreise!M53*3.6/'DCF (2012)'!$O$8 -> 54.39420003 | C47: 54.39420003 | D47: =Strompreise!M53/Strompreise!C53 -> 41.9244278 | F47: =Riskpremium!M53 -> 0
A48: 46 | B48: ='DCF (2012)'!$O$29+Gaspreise!M54*3.6/'DCF (2012)'!$O$8 -> 54.39420003 | C48: 54.39420003 | D48: =Strompreise!M54/Strompreise!C54 -> 37.02536611 | F48: =Riskpremium!M54 -> 0
A49: 47 | B49: ='DCF (2012)'!$O$29+Gaspreise!M55*3.6/'DCF (2012)'!$O$8 -> 54.39420003 | C49: 54.39420003 | D49: =Strompreise!M55/Strompreise!C55 -> 41.46085324 | F49: =Riskpremium!M55 -> 0
A50: 48 | B50: ='DCF (2012)'!$O$29+Gaspreise!M56*3.6/'DCF (2012)'!$O$8 -> 54.39420003 | C50: 54.39420003 | D50: =Strompreise!M56/Strompreise!C56 -> 41.49694694 | F50: =Riskpremium!M56 -> 0
A51: 49 | B51: ='DCF (2012)'!$O$29+Gaspreise!M57*3.6/'DCF (2012)'!$O$8 -> 54.39420003 | C51: 54.39420003 | D51: =Strompreise!M57/Strompreise!C57 -> 40.98867424 | F51: =Riskpremium!M57 -> 0
A52: 50 | B52: ='DCF (2012)'!$O$29+Gaspreise!M58*3.6/'DCF (2012)'!$O$8 -> 54.39420003 | C52: 54.39420003 | D52: =Strompreise!M58/Strompreise!C58 -> 41.54172 | F52: =Riskpremium!M58 -> 0
A53: 51 | B53: ='DCF (2012)'!$O$29+Gaspreise!M59*3.6/'DCF (2012)'!$O$8 -> 54.39420003 | C53: 54.39420003 | D53: =Strompreise!M59/Strompreise!C59 -> 42.36916268 | F53: =Riskpremium!M59 -> 0
A54: 52 | B54: ='DCF (2012)'!$O$29+Gaspreise!M60*3.6/'DCF (2012)'!$O$8 -> 54.39420003 | C54: 54.39420003 | D54: =Strompreise!M60/Strompreise!C60 -> 42.36876272 | F54: =Riskpremium!M60 -> 0
A55: 53 | B55: ='DCF (2012)'!$O$29+Gaspreise!M61*3.6/'DCF (2012)'!$O$8 -> 54.39420003 | C55: 54.39420003 | D55: =Strompreise!M61/Strompreise!C61 -> 42.36322574 | F55: =Riskpremium!M61 -> 0
A56: 54 | B56: ='DCF (2012)'!$O$29+Gaspreise!M62*3.6/'DCF (2012)'!$O$8 -> 54.39420003 | C56: 54.39420003 | D56: =Strompreise!M62/Strompreise!C62 -> 42.72140648 | F56: =Riskpremium!M62 -> 0
A57: 55 | B57: ='DCF (2012)'!$O$29+Gaspreise!M63*3.6/'DCF (2012)'!$O$8 -> 54.39420003 | C57: 54.39420003 | D57: =Strompreise!M63/Strompreise!C63 -> 43.86538763 | F57: =Riskpremium!M63 -> 0
A58: 56 | B58: ='DCF (2012)'!$O$29+Gaspreise!M64*3.6/'DCF (2012)'!$O$8 -> 54.39420003 | C58: 54.39420003 | D58: =Strompreise!M64/Strompreise!C64 -> 45.77105338 | F58: =Riskpremium!M64 -> 0
A59: 57 | B59: ='DCF (2012)'!$O$29+Gaspreise!M65*3.6/'DCF (2012)'!$O$8 -> 54.39420003 | C59: 54.39420003 | D59: =Strompreise!M65/Strompreise!C65 -> 45.23485044 | F59: =Riskpremium!M65 -> 0
A60: 58 | B60: ='DCF (2012)'!$O$29+Gaspreise!M66*3.6/'DCF (2012)'!$O$8 -> 54.39420003 | C60: 54.39420003 | D60: =Strompreise!M66/Strompreise!C66 -> 44.52096782 | F60: =Riskpremium!M66 -> 0
A61: 59 | B61: ='DCF (2012)'!$O$29+Gaspreise!M67*3.6/'DCF (2012)'!$O$8 -> 54.39420003 | C61: 54.39420003 | D61: =Strompreise!M67/Strompreise!C67 -> 44.05216944 | F61: =Riskpremium!M67 -> 0
A62: 60 | B62: ='DCF (2012)'!$O$29+Gaspreise!M68*3.6/'DCF (2012)'!$O$8 -> 54.39420003 | C62: 54.39420003 | D62: =Strompreise!M68/Strompreise!C68 -> 43.92305514 | F62: =Riskpremium!M68 -> 0
A63: 61 | B63: ='DCF (2012)'!$O$29+Gaspreise!M69*3.6/'DCF (2012)'!$O$8 -> 54.39420003 | C63: 54.39420003 | D63: =Strompreise!M69/Strompreise!C69 -> 52.4621342 | F63: =Riskpremium!M69 -> 0
A64: 62 | B64: ='DCF (2012)'!$O$29+Gaspreise!M70*3.6/'DCF (2012)'!$O$8 -> 54.39420003 | C64: 54.39420003 | D64: =Strompreise!M70/Strompreise!C70 -> 42.25576736 | F64: =Riskpremium!M70 -> 0
A65: 63 | B65: ='DCF (2012)'!$O$29+Gaspreise!M71*3.6/'DCF (2012)'!$O$8 -> 54.39420003 | C65: 54.39420003 | D65: =Strompreise!M71/Strompreise!C71 -> 41.48896292 | F65: =Riskpremium!M71 -> 0
A66: 64 | B66: ='DCF (2012)'!$O$29+Gaspreise!M72*3.6/'DCF (2012)'!$O$8 -> 54.39420003 | C66: 54.39420003 | D66: =Strompreise!M72/Strompreise!C72 -> 42.16901961 | F66: =Riskpremium!M72 -> 0
A67: 65 | B67: ='DCF (2012)'!$O$29+Gaspreise!M73*3.6/'DCF (2012)'!$O$8 -> 54.39420003 | C67: =B67+F67 -> 54.39420003 | D67: =Strompreise!M73/Strompreise!C73 -> 41.95728359 | F67: =Riskpremium!M73 -> 0
A68: 66 | B68: ='DCF (2012)'!$O$29+Gaspreise!M74*3.6/'DCF (2012)'!$O$8 -> 54.39420003 | C68: 54.39420003 | D68: =Strompreise!M74/Strompreise!C74 -> 42.12417356 | F68: =Riskpremium!M74 -> 0
A69: 67 | B69: ='DCF (2012)'!$O$29+Gaspreise!M75*3.6/'DCF (2012)'!$O$8 -> 54.39420003 | C69: 54.39420003 | D69: =Strompreise!M75/Strompreise!C75 -> 42.34557812 | F69: =Riskpremium!M75 -> 0
A70: 68 | B70: ='DCF (2012)'!$O$29+Gaspreise!M76*3.6/'DCF (2012)'!$O$8 -> 54.39420003 | C70: 54.39420003 | D70: =Strompreise!M76/Strompreise!C76 -> 42.3733 | F70: =Riskpremium!M76 -> 0
A71: 69 | B71: ='DCF (2012)'!$O$29+Gaspreise!M77*3.6/'DCF (2012)'!$O$8 -> 54.39420003 | C71: 54.39420003 | D71: =Strompreise!M77/Strompreise!C77 -> 53.00296006 | F71: =Riskpremium!M77 -> 0
A72: 70 | B72: ='DCF (2012)'!$O$29+Gaspreise!M78*3.6/'DCF (2012)'!$O$8 -> 54.39420003 | C72: 54.39420003 | D72: =Strompreise!M78/Strompreise!C78 -> 46.87724472 | F72: =Riskpremium!M78 -> 0
A73: 71 | B73: ='DCF (2012)'!$O$29+Gaspreise!M79*3.6/'DCF (2012)'!$O$8 -> 54.39420003 | C73: 54.39420003 | D73: =Strompreise!M79/Strompreise!C79 -> 55.7307335 | F73: =Riskpremium!M79 -> 0
A74: 72 | B74: ='DCF (2012)'!$O$29+Gaspreise!M80*3.6/'DCF (2012)'!$O$8 -> 54.39420003 | C74: 54.39420003 | D74: =Strompreise!M80/Strompreise!C80 -> 54.20660098 | F74: =Riskpremium!M80 -> 0
A75: 73 | B75: ='DCF (2012)'!$O$29+Gaspreise!M81*3.6/'DCF (2012)'!$O$8 -> 54.39420003 | C75: 54.39420003 | D75: =Strompreise!M81/Strompreise!C81 -> 54.794612 | F75: =Riskpremium!M81 -> 0
A76: 74 | B76: ='DCF (2012)'!$O$29+Gaspreise!M82*3.6/'DCF (2012)'!$O$8 -> 54.39420003 | C76: 54.39420003 | D76: =Strompreise!M82/Strompreise!C82 -> 53.6218085 | F76: =Riskpremium!M82 -> 0
A77: 75 | B77: ='DCF (2012)'!$O$29+Gaspreise!M83*3.6/'DCF (2012)'!$O$8 -> 54.39420003 | C77: 54.39420003 | D77: =Strompreise!M83/Strompreise!C83 -> 53.92910239 | F77: =Riskpremium!M83 -> 0
A78: 76 | B78: ='DCF (2012)'!$O$29+Gaspreise!M84*3.6/'DCF (2012)'!$O$8 -> 54.39420003 | C78: 54.39420003 | D78: =Strompreise!M84/Strompreise!C84 -> 55.3536065 | F78: =Riskpremium!M84 -> 0
A79: 77 | B79: ='DCF (2012)'!$O$29+Gaspreise!M85*3.6/'DCF (2012)'!$O$8 -> 54.39420003 | C79: 54.39420003 | D79: =Strompreise!M85/Strompreise!C85 -> 56.54393268 | F79: =Riskpremium!M85 -> 0
A80: 78 | B80: ='DCF (2012)'!$O$29+Gaspreise!M86*3.6/'DCF (2012)'!$O$8 -> 54.39420003 | C80: 54.39420003 | D80: =Strompreise!M86/Strompreise!C86 -> 55.56565928 | F80: =Riskpremium!M86 -> 0
A81: 79 | B81: ='DCF (2012)'!$O$29+Gaspreise!M87*3.6/'DCF (2012)'!$O$8 -> 54.39420003 | C81: 54.39420003 | D81: =Strompreise!M87/Strompreise!C87 -> 45.86567138 | F81: =Riskpremium!M87 -> 0
A82: 80 | B82: ='DCF (2012)'!$O$29+Gaspreise!M88*3.6/'DCF (2012)'!$O$8 -> 54.39420003 | C82: 54.39420003 | D82: =Strompreise!M88/Strompreise!C88 -> 41.8884716 | F82: =Riskpremium!M88 -> 0
A83: 81 | B83: ='DCF (2012)'!$O$29+Gaspreise!M89*3.6/'DCF (2012)'!$O$8 -> 54.39420003 | C83: 54.39420003 | D83: =Strompreise!M89/Strompreise!C89 -> 42.22008056 | F83: =Riskpremium!M89 -> 0
A84: 82 | B84: ='DCF (2012)'!$O$29+Gaspreise!M90*3.6/'DCF (2012)'!$O$8 -> 54.39420003 | C84: 54.39420003 | D84: =Strompreise!M90/Strompreise!C90 -> 42.39373897 | F84: =Riskpremium!M90 -> 0
A85: 83 | B85: ='DCF (2012)'!$O$29+Gaspreise!M91*3.6/'DCF (2012)'!$O$8 -> 54.39420003 | C85: 54.39420003 | D85: =Strompreise!M91/Strompreise!C91 -> 42.37873747 | F85: =Riskpremium!M91 -> 0
A86: 84 | B86: ='DCF (2012)'!$O$29+Gaspreise!M92*3.6/'DCF (2012)'!$O$8 -> 54.39420003 | C86: 54.39420003 | D86: =Strompreise!M92/Strompreise!C92 -> 43.69305105 | F86: =Riskpremium!M92 -> 0
A87: 85 | B87: ='DCF (2012)'!$O$29+Gaspreise!M93*3.6/'DCF (2012)'!$O$8 -> 54.39420003 | C87: 54.39420003 | D87: =Strompreise!M93/Strompreise!C93 -> 53.766326 | F87: =Riskpremium!M93 -> 0
A88: 86 | B88: ='DCF (2012)'!$O$29+Gaspreise!M94*3.6/'DCF (2012)'!$O$8 -> 63.0760981 | C88: 63.0760981 | D88: =Strompreise!M94/Strompreise!C94 -> 63.93908192 | F88: =Riskpremium!M94 -> 0
A89: 87 | B89: ='DCF (2012)'!$O$29+Gaspreise!M95*3.6/'DCF (2012)'!$O$8 -> 63.0760981 | C89: 63.0760981 | D89: =Strompreise!M95/Strompreise!C95 -> 62.81507048 | F89: =Riskpremium!M95 -> 0
A90: 88 | B90: ='DCF (2012)'!$O$29+Gaspreise!M96*3.6/'DCF (2012)'!$O$8 -> 63.0760981 | C90: 63.0760981 | D90: =Strompreise!M96/Strompreise!C96 -> 66.42795817 | F90: =Riskpremium!M96 -> 0
A91: 89 | B91: ='DCF (2012)'!$O$29+Gaspreise!M97*3.6/'DCF (2012)'!$O$8 -> 63.0760981 | C91: 63.0760981 | D91: =Strompreise!M97/Strompreise!C97 -> 78.40611772 | F91: =Riskpremium!M97 -> 0
A92: 90 | B92: ='DCF (2012)'!$O$29+Gaspreise!M98*3.6/'DCF (2012)'!$O$8 -> 63.0760981 | C92: 63.0760981 | D92: =Strompreise!M98/Strompreise!C98 -> 83.54189671 | F92: =Riskpremium!M98 -> 0
A93: 91 | B93: ='DCF (2012)'!$O$29+Gaspreise!M99*3.6/'DCF (2012)'!$O$8 -> 63.0760981 | C93: 63.0760981 | D93: =Strompreise!M99/Strompreise!C99 -> 69.45916268 | F93: =Riskpremium!M99 -> 0
A94: 92 | B94: ='DCF (2012)'!$O$29+Gaspreise!M100*3.6/'DCF (2012)'!$O$8 -> 63.0760981 | C94: 63.0760981 | D94: =Strompreise!M100/Strompreise!C100 -> 73.01670554 | F94: =Riskpremium!M100 -> 0
A95: 93 | B95: ='DCF (2012)'!$O$29+Gaspreise!M101*3.6/'DCF (2012)'!$O$8 -> 63.0760981 | C95: 63.0760981 | D95: =Strompreise!M101/Strompreise!C101 -> 108.8008458 | F95: =Riskpremium!M101 -> 0
A96: 94 | B96: ='DCF (2012)'!$O$29+Gaspreise!M102*3.6/'DCF (2012)'!$O$8 -> 63.0760981 | C96: 63.0760981 | D96: =Strompreise!M102/Strompreise!C102 -> 90.90454586 | F96: =Riskpremium!M102 -> 0
A97: 95 | B97: ='DCF (2012)'!$O$29+Gaspreise!M103*3.6/'DCF (2012)'!$O$8 -> 63.0760981 | C97: 63.0760981 | D97: =Strompreise!M103/Strompreise!C103 -> 65.5405463 | F97: =Riskpremium!M103 -> 0
A98: 96 | B98: ='DCF (2012)'!$O$29+Gaspreise!M104*3.6/'DCF (2012)'!$O$8 -> 63.0760981 | C98: 63.0760981 | D98: =Strompreise!M104/Strompreise!C104 -> 62.27227307 | F98: =Riskpremium!M104 -> 0
A99: 97 | B99: ='DCF (2012)'!$O$29+Gaspreise!M105*3.6/'DCF (2012)'!$O$8 -> 63.0760981 | C99: =B99+F99 -> 63.0760981 | D99: =Strompreise!M105/Strompreise!C105 -> 57.3512609 | F99: =Riskpremium!M105 -> 0
A100: 98 | B100: ='DCF (2012)'!$O$29+Gaspreise!M106*3.6/'DCF (2012)'!$O$8 -> 63.0760981 | C100: 63.0760981 | D100: =Strompreise!M106/Strompreise!C106 -> 57.5153693 | F100: =Riskpremium!M106 -> 0
A101: 99 | B101: ='DCF (2012)'!$O$29+Gaspreise!M107*3.6/'DCF (2012)'!$O$8 -> 63.0760981 | C101: 63.0760981 | D101: =Strompreise!M107/Strompreise!C107 -> 58.77840699 | F101: =Riskpremium!M107 -> 0
A102: 100 | B102: ='DCF (2012)'!$O$29+Gaspreise!M108*3.6/'DCF (2012)'!$O$8 -> 63.0760981 | C102: 63.0760981 | D102: =Strompreise!M108/Strompreise!C108 -> 59.26814325 | F102: =Riskpremium!M108 -> 0
A103: 101 | B103: ='DCF (2012)'!$O$29+Gaspreise!M109*3.6/'DCF (2012)'!$O$8 -> 63.0760981 | C103: 63.0760981 | D103: =Strompreise!M109/Strompreise!C109 -> 63.27798764 | F103: =Riskpremium!M109 -> 0
A104: 102 | B104: ='DCF (2012)'!$O$29+Gaspreise!M110*3.6/'DCF (2012)'!$O$8 -> 63.0760981 | C104: 63.0760981 | D104: =Strompreise!M110/Strompreise!C110 -> 64.79569182 | F104: =Riskpremium!M110 -> 0
